﻿OrganisationName,OrganisationalUnit,BeneficiaryName,PaymentDate,Amount,Purpose,CategoryInternal,OrganisationURI,
Staffordshire County Council,Cannock Invoice Led Older Peop,ADVANCE HEALTHCARE UK LTD,03/12/2018,1032.13,Practical Care,Practical Care,http://opendatacommunities.org/id/county-council/staffordshire  ,
Staffordshire County Council,Headquarters - I.S.P,Archways Care Ltd,03/12/2018,8685.71,Specialist Childs Res Services,Specialist Childs Res Services,http://opendatacommunities.org/id/county-council/staffordshire  ,
Staffordshire County Council,Headquarters - I.S.P,BARNARDO'S,03/12/2018,3641.26,Social Services Oth Local Auth,Social Services Oth Local Auth,http://opendatacommunities.org/id/county-council/staffordshire  ,
Staffordshire County Council,Headquarters - I.S.P,BARNARDO'S,03/12/2018,3296.99,Social Services Oth Local Auth,Social Services Oth Local Auth,http://opendatacommunities.org/id/county-council/staffordshire  ,
Staffordshire County Council,Stock Management,Bertram Library Services,03/12/2018,1066.12,Books,Books,http://opendatacommunities.org/id/county-council/staffordshire  ,
Staffordshire County Council,Stock Management,Bertram Library Services,03/12/2018,1331.98,Books,Books,http://opendatacommunities.org/id/county-council/staffordshire  ,
Staffordshire County Council,Stock Management,Bertram Library Services,03/12/2018,1133.33,Books,Books,http://opendatacommunities.org/id/county-council/staffordshire  ,
Staffordshire County Council,Stock Management,Bertram Library Services,03/12/2018,2614.09,Books,Books,http://opendatacommunities.org/id/county-council/staffordshire  ,
Staffordshire County Council,Stafford Invoice Led Older Peo,Christies Care Ltd,03/12/2018,4448.00,Practical Care,Practical Care,http://opendatacommunities.org/id/county-council/staffordshire  ,
Staffordshire County Council,Meadows School,CLOWES COACHES,03/12/2018,3753.36,Home School Contract Vehicles,Home School Contract Vehicles,http://opendatacommunities.org/id/county-council/staffordshire  ,
Staffordshire County Council,Pupil Premium Grant,Community Academies Trust,03/12/2018,1000.00,Grants to third parties,Grants to third parties,http://opendatacommunities.org/id/county-council/staffordshire  ,
Staffordshire County Council,South Staffs Coroner,Coroners Courts Support Service,03/12/2018,3836.00,INQ EXPS S STAFFS,INQ EXPS S STAFFS,http://opendatacommunities.org/id/county-council/staffordshire  ,
Staffordshire County Council,Stock Suspense Account,D G Russell Commercials Ltd,03/12/2018,2271.54,CFC Purchase of Stock,CFC Purchase of Stock,http://opendatacommunities.org/id/county-council/staffordshire  ,
Staffordshire County Council,Mary Howard Primary Car Park,DAWKES & CO LTD,03/12/2018,34716.00,Construction Works,Construction Works,http://opendatacommunities.org/id/county-council/staffordshire  ,
Staffordshire County Council,Lighting & Signals Works,E ON UK ENERGY SERVICES LTD,03/12/2018,1665.20,Street Lighting Improvements,Street Lighting Improvements,http://opendatacommunities.org/id/county-council/staffordshire  ,
Staffordshire County Council,Speech and Language/O Therapy,Emma Machin,03/12/2018,1455.00,OTHER HIRED SERVICES,OTHER HIRED SERVICES,http://opendatacommunities.org/id/county-council/staffordshire  ,
Staffordshire County Council,Headquarters - I.S.P,Family Options Ltd,03/12/2018,18711.42,Social Services Oth Local Auth,Social Services Oth Local Auth,http://opendatacommunities.org/id/county-council/staffordshire  ,
Staffordshire County Council,Headquarters - I.S.P,Family Options Ltd,03/12/2018,3630.30,Social Services Oth Local Auth,Social Services Oth Local Auth,http://opendatacommunities.org/id/county-council/staffordshire  ,
Staffordshire County Council,Asylum Seekers,Family Options Ltd,03/12/2018,5057.14,Social Services Oth Local Auth,Social Services Oth Local Auth,http://opendatacommunities.org/id/county-council/staffordshire  ,
Staffordshire County Council,Headquarters - I.S.P,Family Options Ltd,03/12/2018,19486.28,Social Services Oth Local Auth,Social Services Oth Local Auth,http://opendatacommunities.org/id/county-council/staffordshire  ,
Staffordshire County Council,County,Fleet Factors Ltd,03/12/2018,3437.26,CFC Parts Issues - County,CFC Parts Issues - County,http://opendatacommunities.org/id/county-council/staffordshire  ,
Staffordshire County Council,Headquarters - I.S.P,Fostering Options Ltd,03/12/2018,3205.71,Social Services Oth Local Auth,Social Services Oth Local Auth,http://opendatacommunities.org/id/county-council/staffordshire  ,
Staffordshire County Council,Cannock Resource Centre,HAGS-SMP LTD,03/12/2018,2123.10,Furniture & Bedding,Furniture & Bedding,http://opendatacommunities.org/id/county-council/staffordshire  ,
Staffordshire County Council,Moorlands LD Team,HAYFIELD,03/12/2018,1216.60,Day Care,Day Care,http://opendatacommunities.org/id/county-council/staffordshire  ,
Staffordshire County Council,Moorlands LD Team,HAYFIELD,03/12/2018,1399.09,Day Care,Day Care,http://opendatacommunities.org/id/county-council/staffordshire  ,
Staffordshire County Council,Moorlands LD Team,HAYFIELD,03/12/2018,1474.21,Day Care,Day Care,http://opendatacommunities.org/id/county-council/staffordshire  ,
Staffordshire County Council,Pupil Premium Grant,Hazel Slade Primary Academy,03/12/2018,50005.00,Grants to third parties,Grants to third parties,http://opendatacommunities.org/id/county-council/staffordshire  ,
Staffordshire County Council,"Bluestone Lane, B-O-T South",Heritage Care,03/12/2018,877.80,Supported Group Care,Supported Group Care,http://opendatacommunities.org/id/county-council/staffordshire  ,
Staffordshire County Council,Newcastle LD Team,In Out and About Ltd,03/12/2018,1633.60,Day Care,Day Care,http://opendatacommunities.org/id/county-council/staffordshire  ,
Staffordshire County Council,Saxon Hill School,,03/12/2018,1687.00,Personal Travel Budgets,Personal Travel Budgets,http://opendatacommunities.org/id/county-council/staffordshire  ,
Staffordshire County Council,John Taylor High - 4 Classroom,John Taylor MAT,03/12/2018,2974.75,Construction Works,Construction Works,http://opendatacommunities.org/id/county-council/staffordshire  ,
Staffordshire County Council,Doxey Road Car Park,Jonathan Lloyd Developments Limited,03/12/2018,1800.00,OTHER HIRED SERVICES,OTHER HIRED SERVICES,http://opendatacommunities.org/id/county-council/staffordshire  ,
Staffordshire County Council,Newcastle Invoice Led Older Pe,Jump 2 Independence Ltd,03/12/2018,1449.25,Supported Group Care,Supported Group Care,http://opendatacommunities.org/id/county-council/staffordshire  ,
Staffordshire County Council,Newcastle Invoice Led Older Pe,Jump 2 Independence Ltd,03/12/2018,1449.25,Supported Group Care,Supported Group Care,http://opendatacommunities.org/id/county-council/staffordshire  ,
Staffordshire County Council,Newcastle Invoice Led Older Pe,Jump 2 Independence Ltd,03/12/2018,1538.50,Supported Group Care,Supported Group Care,http://opendatacommunities.org/id/county-council/staffordshire  ,
Staffordshire County Council,Monitor Record AONB Landscape,Land Use Consultants,03/12/2018,10490.76,CONSULTANT FEES,CONSULTANT FEES,http://opendatacommunities.org/id/county-council/staffordshire  ,
Staffordshire County Council,Newcastle LD Team,Lifeways Community Care Ltd,03/12/2018,2736.00,Supported Group Care,Supported Group Care,http://opendatacommunities.org/id/county-council/staffordshire  ,
Staffordshire County Council,Independent School Fee Nursery,LITTLE ASTON PRE-SCHOOL,03/12/2018,525.00,Grants to third parties,Grants to third parties,http://opendatacommunities.org/id/county-council/staffordshire  ,
Staffordshire County Council,Stafford Invoice Led Phys Disa,Living Ambitions Limited,03/12/2018,2979.76,Practical Care,Practical Care,http://opendatacommunities.org/id/county-council/staffordshire  ,
Staffordshire County Council,Stafford Invoice Led Phys Disa,Living Ambitions Ltd,03/12/2018,2979.76,Practical Care,Practical Care,http://opendatacommunities.org/id/county-council/staffordshire  ,
Staffordshire County Council,Stafford Invoice Led Phys Disa,Living Ambitions Ltd,03/12/2018,2979.76,Practical Care,Practical Care,http://opendatacommunities.org/id/county-council/staffordshire  ,
Staffordshire County Council,Pool Car,LOOKERS LEASING LTD,03/12/2018,707.40,CFC Recharge for Vehicles,CFC Recharge for Vehicles,http://opendatacommunities.org/id/county-council/staffordshire  ,
Staffordshire County Council,Speed Awareness,M O'NEILL,03/12/2018,780.00,DRIVING INSTRUCTION,DRIVING INSTRUCTION,http://opendatacommunities.org/id/county-council/staffordshire  ,
Staffordshire County Council,0927 Burton Library Riverside ,M W CRIPWELL LTD,03/12/2018,1514.46,Repair and Maint Buildings NPS,Repair and Maint Buildings NPS,http://opendatacommunities.org/id/county-council/staffordshire  ,
Staffordshire County Council,Headquarters - I.S.P,Malvern Achievement Services Ltd,03/12/2018,26056.76,Specialist Childs Res Services,Specialist Childs Res Services,http://opendatacommunities.org/id/county-council/staffordshire  ,
Staffordshire County Council,Headquarters - I.S.P,Malvern Achievement Services Ltd,03/12/2018,8338.28,Specialist Childs Res Services,Specialist Childs Res Services,http://opendatacommunities.org/id/county-council/staffordshire  ,
Staffordshire County Council,Home to school transport-main,Milestone Minibuses,03/12/2018,1605.50,Home School Contract Vehicles,Home School Contract Vehicles,http://opendatacommunities.org/id/county-council/staffordshire  ,
Staffordshire County Council,Headquarters - I.S.P,NATIONAL FOSTERING AGENCY LTD,03/12/2018,3171.64,Social Services Oth Local Auth,Social Services Oth Local Auth,http://opendatacommunities.org/id/county-council/staffordshire  ,
Staffordshire County Council,Headquarters - I.S.P,NATIONAL FOSTERING AGENCY LTD,03/12/2018,3171.64,Social Services Oth Local Auth,Social Services Oth Local Auth,http://opendatacommunities.org/id/county-council/staffordshire  ,
Staffordshire County Council,Headquarters - I.S.P,NATIONAL FOSTERING AGENCY LTD,03/12/2018,2972.14,Social Services Oth Local Auth,Social Services Oth Local Auth,http://opendatacommunities.org/id/county-council/staffordshire  ,
Staffordshire County Council,Headquarters - I.S.P,NATIONAL FOSTERING AGENCY LTD,03/12/2018,18730.59,Social Services Oth Local Auth,Social Services Oth Local Auth,http://opendatacommunities.org/id/county-council/staffordshire  ,
Staffordshire County Council,Headquarters - I.S.P,NATIONAL FOSTERING AGENCY LTD,03/12/2018,3171.64,Social Services Oth Local Auth,Social Services Oth Local Auth,http://opendatacommunities.org/id/county-council/staffordshire  ,
Staffordshire County Council,Headquarters - I.S.P,NATIONAL FOSTERING AGENCY LTD,03/12/2018,12686.40,Social Services Oth Local Auth,Social Services Oth Local Auth,http://opendatacommunities.org/id/county-council/staffordshire  ,
Staffordshire County Council,Headquarters - I.S.P,NATIONAL FOSTERING AGENCY LTD,03/12/2018,28424.70,Social Services Oth Local Auth,Social Services Oth Local Auth,http://opendatacommunities.org/id/county-council/staffordshire  ,
Staffordshire County Council,Headquarters - I.S.P,NATIONAL FOSTERING AGENCY LTD,03/12/2018,3271.80,Social Services Oth Local Auth,Social Services Oth Local Auth,http://opendatacommunities.org/id/county-council/staffordshire  ,
Staffordshire County Council,Headquarters - I.S.P,NATIONAL FOSTERING AGENCY LTD,03/12/2018,11810.40,Social Services Oth Local Auth,Social Services Oth Local Auth,http://opendatacommunities.org/id/county-council/staffordshire  ,
Staffordshire County Council,Headquarters - I.S.P,NATIONAL FOSTERING AGENCY LTD,03/12/2018,3192.90,Social Services Oth Local Auth,Social Services Oth Local Auth,http://opendatacommunities.org/id/county-council/staffordshire  ,
Staffordshire County Council,Headquarters - I.S.P,NATIONAL FOSTERING AGENCY LTD,03/12/2018,3277.37,Social Services Oth Local Auth,Social Services Oth Local Auth,http://opendatacommunities.org/id/county-council/staffordshire  ,
Staffordshire County Council,Headquarters - I.S.P,NATIONAL FOSTERING AGENCY LTD,03/12/2018,3277.37,Social Services Oth Local Auth,Social Services Oth Local Auth,http://opendatacommunities.org/id/county-council/staffordshire  ,
Staffordshire County Council,Headquarters - I.S.P,NATIONAL FOSTERING AGENCY LTD,03/12/2018,3071.22,Social Services Oth Local Auth,Social Services Oth Local Auth,http://opendatacommunities.org/id/county-council/staffordshire  ,
Staffordshire County Council,Headquarters - I.S.P,NATIONAL FOSTERING AGENCY LTD,03/12/2018,12697.18,Social Services Oth Local Auth,Social Services Oth Local Auth,http://opendatacommunities.org/id/county-council/staffordshire  ,
Staffordshire County Council,Headquarters - I.S.P,NATIONAL FOSTERING AGENCY LTD,03/12/2018,3277.37,Social Services Oth Local Auth,Social Services Oth Local Auth,http://opendatacommunities.org/id/county-council/staffordshire  ,
Staffordshire County Council,Headquarters - I.S.P,NATIONAL FOSTERING AGENCY LTD,03/12/2018,13109.28,Social Services Oth Local Auth,Social Services Oth Local Auth,http://opendatacommunities.org/id/county-council/staffordshire  ,
Staffordshire County Council,Headquarters - I.S.P,NATIONAL FOSTERING AGENCY LTD,03/12/2018,29372.19,Social Services Oth Local Auth,Social Services Oth Local Auth,http://opendatacommunities.org/id/county-council/staffordshire  ,
Staffordshire County Council,Headquarters - I.S.P,NATIONAL FOSTERING AGENCY LTD,03/12/2018,3380.86,Social Services Oth Local Auth,Social Services Oth Local Auth,http://opendatacommunities.org/id/county-council/staffordshire  ,
Staffordshire County Council,Headquarters - I.S.P,NATIONAL FOSTERING AGENCY LTD,03/12/2018,12204.08,Social Services Oth Local Auth,Social Services Oth Local Auth,http://opendatacommunities.org/id/county-council/staffordshire  ,
Staffordshire County Council,Headquarters - I.S.P,NATIONAL FOSTERING AGENCY LTD,03/12/2018,3299.33,Social Services Oth Local Auth,Social Services Oth Local Auth,http://opendatacommunities.org/id/county-council/staffordshire  ,
Staffordshire County Council,Growth Hub ERDF 2016-2019,Neida Products (Engineering) Ltd,03/12/2018,4523.55,Grants Other,Grants Other,http://opendatacommunities.org/id/county-council/staffordshire  ,
Staffordshire County Council,Staff Development Ctr,Opal Creative Healthcare Sols Ltd,03/12/2018,747.00,EXTERNAL TRAINING,EXTERNAL TRAINING,http://opendatacommunities.org/id/county-council/staffordshire  ,
Staffordshire County Council,Staff Development Ctr,Opal Creative Healthcare Sols Ltd,03/12/2018,747.00,EXTERNAL TRAINING,EXTERNAL TRAINING,http://opendatacommunities.org/id/county-council/staffordshire  ,
Staffordshire County Council,Staff Development Ctr,Opal Creative Healthcare Sols Ltd,03/12/2018,747.00,EXTERNAL TRAINING,EXTERNAL TRAINING,http://opendatacommunities.org/id/county-council/staffordshire  ,
Staffordshire County Council,CMU - Corporate Support,PHS GROUP PLC,03/12/2018,829.42,WASTE COLLECTION,WASTE COLLECTION,http://opendatacommunities.org/id/county-council/staffordshire  ,
Staffordshire County Council,Headquarters - I.S.P,PINE FOREST HOMES LTD,03/12/2018,28228.56,Specialist Childs Res Services,Specialist Childs Res Services,http://opendatacommunities.org/id/county-council/staffordshire  ,
Staffordshire County Council,Speed Awareness,Port Vale Football Club Ltd,03/12/2018,990.00,Premises Services,Premises Services,http://opendatacommunities.org/id/county-council/staffordshire  ,
Staffordshire County Council,Headquarters - I.S.P,PROGRESSIVE CARE LTD,03/12/2018,70609.29,Specialist Childs Res Services,Specialist Childs Res Services,http://opendatacommunities.org/id/county-council/staffordshire  ,
Staffordshire County Council,Headquarters - I.S.P,Prospects for Young People,03/12/2018,13228.12,Social Services Oth Local Auth,Social Services Oth Local Auth,http://opendatacommunities.org/id/county-council/staffordshire  ,
Staffordshire County Council,1 STI Test & Treat,Provide,03/12/2018,500.00,other services internal,other services internal,http://opendatacommunities.org/id/county-council/staffordshire  ,
Staffordshire County Council,S Staffs LD Team,PSS,03/12/2018,980.00,Supported Group Care,Supported Group Care,http://opendatacommunities.org/id/county-council/staffordshire  ,
Staffordshire County Council,SCC Digital,Purple Sprout Limited,03/12/2018,3000.00,Advertising,Advertising,http://opendatacommunities.org/id/county-council/staffordshire  ,
Staffordshire County Council,Holding No 2 Rowley,R E F Services Ltd,03/12/2018,2076.00,Construction Works,Construction Works,http://opendatacommunities.org/id/county-council/staffordshire  ,
Staffordshire County Council,Tamworth ASO,Royal Mail Group Ltd,03/12/2018,695.64,Postages,Postages,http://opendatacommunities.org/id/county-council/staffordshire  ,
Staffordshire County Council,Speed Awareness,S CHIPMAN,03/12/2018,520.00,DRIVING INSTRUCTION,DRIVING INSTRUCTION,http://opendatacommunities.org/id/county-council/staffordshire  ,
Staffordshire County Council,SStaffs Invoice Led Older Peop,Sevacare,03/12/2018,1014.30,Practical Care,Practical Care,http://opendatacommunities.org/id/county-council/staffordshire  ,
Staffordshire County Council,Operations Delivery,SOUTH STAFFS DIST COUNCIL,03/12/2018,32812.74,Other Non-Accord Work,Other Non-Accord Work,http://opendatacommunities.org/id/county-council/staffordshire  ,
Staffordshire County Council,Inter authority Recoup- Mainst,ST FRANCIS OF ASSISI CATH TECH COLL,03/12/2018,2273.34,Extra District Charges Other,Extra District Charges Other,http://opendatacommunities.org/id/county-council/staffordshire  ,
Staffordshire County Council,Pooled Accom Central Charges,Stafford Borough Council,03/12/2018,770.69,Winter Salt Purchases,Winter Salt Purchases,http://opendatacommunities.org/id/county-council/staffordshire  ,
Staffordshire County Council,Newcastle Hub,Taybar Limited,03/12/2018,850.50,Ext Fees Construction,Ext Fees Construction,http://opendatacommunities.org/id/county-council/staffordshire  ,
Staffordshire County Council,Advocacy,VoiceAbility Advocacy,03/12/2018,45113.92,OTHER HIRED SERVICES,OTHER HIRED SERVICES,http://opendatacommunities.org/id/county-council/staffordshire  ,
Staffordshire County Council,Tamworth Invoice Led Phy Disab,Voyage Care Ltd,03/12/2018,1660.50,Supported Group Care,Supported Group Care,http://opendatacommunities.org/id/county-council/staffordshire  ,
Staffordshire County Council,Tamworth Invoice Led Phy Disab,Voyage Care Ltd,03/12/2018,1660.50,Supported Group Care,Supported Group Care,http://opendatacommunities.org/id/county-council/staffordshire  ,
Staffordshire County Council,Tamworth Invoice Led Phy Disab,Voyage Care Ltd,03/12/2018,1660.50,Supported Group Care,Supported Group Care,http://opendatacommunities.org/id/county-council/staffordshire  ,
Staffordshire County Council,Stafford LD Team,Voyage Care Ltd,03/12/2018,1008.96,Supported Group Care,Supported Group Care,http://opendatacommunities.org/id/county-council/staffordshire  ,
Staffordshire County Council,Tamworth Invoice Led Phy Disab,Voyage Ltd,03/12/2018,1660.50,Supported Group Care,Supported Group Care,http://opendatacommunities.org/id/county-council/staffordshire  ,
Staffordshire County Council,Stafford LD Team,Voyage Ltd,03/12/2018,3071.04,Supported Group Care,Supported Group Care,http://opendatacommunities.org/id/county-council/staffordshire  ,
Staffordshire County Council,Stafford LD Team,Voyage Ltd,03/12/2018,3125.88,Supported Group Care,Supported Group Care,http://opendatacommunities.org/id/county-council/staffordshire  ,
Staffordshire County Council,Stafford LD Team,Voyage Ltd,03/12/2018,7046.96,Supported Group Care,Supported Group Care,http://opendatacommunities.org/id/county-council/staffordshire  ,
Staffordshire County Council,Stafford LD Team,Voyage Ltd,03/12/2018,12265.00,Supported Group Care,Supported Group Care,http://opendatacommunities.org/id/county-council/staffordshire  ,
Staffordshire County Council,Stafford LD Team,Voyage Ltd,03/12/2018,8432.20,Supported Group Care,Supported Group Care,http://opendatacommunities.org/id/county-council/staffordshire  ,
Staffordshire County Council,Stafford LD Team,Voyage Ltd,03/12/2018,4551.72,Supported Group Care,Supported Group Care,http://opendatacommunities.org/id/county-council/staffordshire  ,
Staffordshire County Council,Stafford LD Team,Voyage Ltd,03/12/2018,7568.96,Supported Group Care,Supported Group Care,http://opendatacommunities.org/id/county-council/staffordshire  ,
Staffordshire County Council,Stafford LD Team,Voyage Ltd,03/12/2018,1107.06,Supported Group Care,Supported Group Care,http://opendatacommunities.org/id/county-council/staffordshire  ,
Staffordshire County Council,Stafford LD Team,Voyage Ltd,03/12/2018,1107.06,Supported Group Care,Supported Group Care,http://opendatacommunities.org/id/county-council/staffordshire  ,
Staffordshire County Council,Stafford LD Team,Voyage Ltd,03/12/2018,1107.06,Supported Group Care,Supported Group Care,http://opendatacommunities.org/id/county-council/staffordshire  ,
Staffordshire County Council,Stafford LD Team,Voyage Ltd,03/12/2018,2358.12,Supported Group Care,Supported Group Care,http://opendatacommunities.org/id/county-council/staffordshire  ,
Staffordshire County Council,Stafford LD Team,Voyage Ltd,03/12/2018,1107.06,Supported Group Care,Supported Group Care,http://opendatacommunities.org/id/county-council/staffordshire  ,
Staffordshire County Council,SStaffs Invoice Led Older Peop,Wisdom Healthcare Ltd,03/12/2018,892.50,Practical Care,Practical Care,http://opendatacommunities.org/id/county-council/staffordshire  ,
Staffordshire County Council,SStaffs Invoice Led Older Peop,Wisdom Healthcare Ltd,03/12/2018,1338.75,Practical Care,Practical Care,http://opendatacommunities.org/id/county-council/staffordshire  ,
Staffordshire County Council,SStaffs Invoice Led Older Peop,Wisdom Healthcare Ltd,03/12/2018,1338.75,Practical Care,Practical Care,http://opendatacommunities.org/id/county-council/staffordshire  ,
Staffordshire County Council,Extra Care Contracts,WREKIN HOUSING TRUST LTD,03/12/2018,5304.32,Extra Care Long Stay,Extra Care Long Stay,http://opendatacommunities.org/id/county-council/staffordshire  ,
Staffordshire County Council,Extra Care Contracts,WREKIN HOUSING TRUST LTD,03/12/2018,765.93,Extra Care Long Stay,Extra Care Long Stay,http://opendatacommunities.org/id/county-council/staffordshire  ,
Staffordshire County Council,Court & Care Plan - Burton/Tam,5 TEN CONTRACTS LTD,04/12/2018,588.00,S17 TRANSPORT,S17 TRANSPORT,http://opendatacommunities.org/id/county-council/staffordshire  ,
Staffordshire County Council,Saxon Hill School,ABLE TAXIS,04/12/2018,7121.60,Home School Contract Vehicles,Home School Contract Vehicles,http://opendatacommunities.org/id/county-council/staffordshire  ,
Staffordshire County Council,Cannock Invoice Led Phys Disab,Active Assistance,04/12/2018,1176.56,Practical Care,Practical Care,http://opendatacommunities.org/id/county-council/staffordshire  ,
Staffordshire County Council,Cannock Invoice Led Phys Disab,Active Assistance,04/12/2018,1176.56,Practical Care,Practical Care,http://opendatacommunities.org/id/county-council/staffordshire  ,
Staffordshire County Council,Cannock Invoice Led Phys Disab,Active Assistance,04/12/2018,1176.56,Practical Care,Practical Care,http://opendatacommunities.org/id/county-council/staffordshire  ,
Staffordshire County Council,12 Drug Misuse - A,Addiction Dependency Solutions,04/12/2018,380050.00,OTHER HIRED SERVICES,OTHER HIRED SERVICES,http://opendatacommunities.org/id/county-council/staffordshire  ,
Staffordshire County Council,Blurton Grange Farm,AIB SOLUTIONS LTD,04/12/2018,7870.80,General Equipment Repair/Maint,General Equipment Repair/Maint,http://opendatacommunities.org/id/county-council/staffordshire  ,
Staffordshire County Council,LD Staffing Central,Alex Cisneros,04/12/2018,720.00,Legal Costs and Stamp Duty,Legal Costs and Stamp Duty,http://opendatacommunities.org/id/county-council/staffordshire  ,
Staffordshire County Council,Redhill Employment Park,Apex Ecology Ltd,04/12/2018,1500.00,Construction Works,Construction Works,http://opendatacommunities.org/id/county-council/staffordshire  ,
Staffordshire County Council,Court & Care Plan - Burton/Tam,Appoint Us Services (Midlands) CIC,04/12/2018,1511.10,S17 FAMILY SUPPORT,S17 FAMILY SUPPORT,http://opendatacommunities.org/id/county-council/staffordshire  ,
Staffordshire County Council,Libraries Opportunities for Ev,Arts Council England,04/12/2018,10777.00,General Grants,General Grants,http://opendatacommunities.org/id/county-council/staffordshire  ,
Staffordshire County Council,Cent Cty Psychol Service HQ,Association Educatnl Psychologists,04/12/2018,996.00,Subscriptions General,Subscriptions General,http://opendatacommunities.org/id/county-council/staffordshire  ,
Staffordshire County Council,Stock Management,Bertram Library Services,04/12/2018,852.58,Books,Books,http://opendatacommunities.org/id/county-council/staffordshire  ,
Staffordshire County Council,Stock Management,Bertram Library Services,04/12/2018,790.51,Books,Books,http://opendatacommunities.org/id/county-council/staffordshire  ,
Staffordshire County Council,LEP Core,Bloom Procurement Services Ltd,04/12/2018,7800.00,Advertising,Advertising,http://opendatacommunities.org/id/county-council/staffordshire  ,
Staffordshire County Council,Cannock Invoice Led Older Peop,CARE PLUS,04/12/2018,3878.98,Practical Care,Practical Care,http://opendatacommunities.org/id/county-council/staffordshire  ,
Staffordshire County Council,Cannock Invoice Led Older Peop,CARE PLUS,04/12/2018,1362.69,Practical Care,Practical Care,http://opendatacommunities.org/id/county-council/staffordshire  ,
Staffordshire County Council,Adoption Support Fund,Child Psychology Service,04/12/2018,731.50,PROFESSIONAL FEES,PROFESSIONAL FEES,http://opendatacommunities.org/id/county-council/staffordshire  ,
Staffordshire County Council,Local Members Initiatives,Christ The King T/A St Mary's CPS,04/12/2018,1000.00,Local Member Initiative Scheme,Local Member Initiative Scheme,http://opendatacommunities.org/id/county-council/staffordshire  ,
Staffordshire County Council,Local Members Initiatives,CLAYTON LAP,04/12/2018,1840.00,Local Member Initiative Scheme,Local Member Initiative Scheme,http://opendatacommunities.org/id/county-council/staffordshire  ,
Staffordshire County Council,2 Contraception,Colliery Practice,04/12/2018,4317.08,other services external,other services external,http://opendatacommunities.org/id/county-council/staffordshire  ,
Staffordshire County Council,Practice Improvement,Compass Career Opportunties,04/12/2018,12344.40,OFFICE MATERIALS,OFFICE MATERIALS,http://opendatacommunities.org/id/county-council/staffordshire  ,
Staffordshire County Council,Cannock Chase LD Team,CREATIVE SUPPORT,04/12/2018,5746.72,Supported Group Care,Supported Group Care,http://opendatacommunities.org/id/county-council/staffordshire  ,
Staffordshire County Council,Bikeability,CYCLIST TRAINING LTD,04/12/2018,600.00,CONSULTANT FEES,CONSULTANT FEES,http://opendatacommunities.org/id/county-council/staffordshire  ,
Staffordshire County Council,MCA / DoLs / AMHP,Dawn Marie Woodcock Ltd,04/12/2018,500.00,Independent Investigations,Independent Investigations,http://opendatacommunities.org/id/county-council/staffordshire  ,
Staffordshire County Council,ERDF Low Carbon Bus Evol Prog,ESP Ltd,04/12/2018,834.00,CONSULTANT FEES,CONSULTANT FEES,http://opendatacommunities.org/id/county-council/staffordshire  ,
Staffordshire County Council,Stafford South SU20,E-voice Speech Recognition Ltd,04/12/2018,2167.20,Training Expenses,Training Expenses,http://opendatacommunities.org/id/county-council/staffordshire  ,
Staffordshire County Council,SCC Digital,Ex Libris (UK) Ltd,04/12/2018,45600.00,SOFTWARE LICENCES,SOFTWARE LICENCES,http://opendatacommunities.org/id/county-council/staffordshire  ,
Staffordshire County Council,Burton Resource Centre,EXPRESS CURTAINS LTD,04/12/2018,1443.48,Furniture & Bedding,Furniture & Bedding,http://opendatacommunities.org/id/county-council/staffordshire  ,
Staffordshire County Council,Staffordshire Wood Fuel,H R J Gould Ltd,04/12/2018,2705.40,General Equipment Purchase,General Equipment Purchase,http://opendatacommunities.org/id/county-council/staffordshire  ,
Staffordshire County Council,15 Servs & Interven,ICE CREATES LTD,04/12/2018,5292.00,OTHER HIRED SERVICES,OTHER HIRED SERVICES,http://opendatacommunities.org/id/county-council/staffordshire  ,
Staffordshire County Council,15 Servs & Interven,ICE CREATES LTD,04/12/2018,6174.00,OTHER HIRED SERVICES,OTHER HIRED SERVICES,http://opendatacommunities.org/id/county-council/staffordshire  ,
Staffordshire County Council,Selling Service,James Marwick,04/12/2018,600.00,Court Costs/Legal Exp Recoverd,Court Costs/Legal Exp Recoverd,http://opendatacommunities.org/id/county-council/staffordshire  ,
Staffordshire County Council,MCA / DoLs / AMHP,JG Social Care Ltd,04/12/2018,1100.00,Independent Investigations,Independent Investigations,http://opendatacommunities.org/id/county-council/staffordshire  ,
Staffordshire County Council,MCA / DoLs / AMHP,JG Social Care Ltd,04/12/2018,1100.00,Independent Investigations,Independent Investigations,http://opendatacommunities.org/id/county-council/staffordshire  ,
Staffordshire County Council,Moorlands LD Team,Jump 2 Independence Ltd,04/12/2018,1256.62,Supported Group Care,Supported Group Care,http://opendatacommunities.org/id/county-council/staffordshire  ,
Staffordshire County Council,Family Group Conferencing,L Instone,04/12/2018,575.00,AGENCY STAFF,AGENCY STAFF,http://opendatacommunities.org/id/county-council/staffordshire  ,
Staffordshire County Council,Cannock Chase,L W SKIPS & CONQUEST TRANSPORT LTD,04/12/2018,1575.12,WASTE COLLECTION,WASTE COLLECTION,http://opendatacommunities.org/id/county-council/staffordshire  ,
Staffordshire County Council,Growth Hub LEP 2016-2018 BIS,Let's Do Ltd,04/12/2018,3600.00,Advertising,Advertising,http://opendatacommunities.org/id/county-council/staffordshire  ,
Staffordshire County Council,Local Members Initiatives,Lichfield RUFC,04/12/2018,1000.00,Local Member Initiative Scheme,Local Member Initiative Scheme,http://opendatacommunities.org/id/county-council/staffordshire  ,
Staffordshire County Council,Newcastle Invoice Led Physical,Lifeways Community Care Ltd,04/12/2018,961.42,Practical Care,Practical Care,http://opendatacommunities.org/id/county-council/staffordshire  ,
Staffordshire County Council,Newcastle Invoice Led Physical,Lifeways Community Care Ltd,04/12/2018,1277.66,Practical Care,Practical Care,http://opendatacommunities.org/id/county-council/staffordshire  ,
Staffordshire County Council,Stafford Invoice Led Phys Disa,Living Ambitions Limited,04/12/2018,2979.76,Practical Care,Practical Care,http://opendatacommunities.org/id/county-council/staffordshire  ,
Staffordshire County Council,Stafford Invoice Led Phys Disa,Living Ambitions Limited,04/12/2018,2979.76,Practical Care,Practical Care,http://opendatacommunities.org/id/county-council/staffordshire  ,
Staffordshire County Council,Practice Improvement,MA EDUCATION LTD,04/12/2018,7600.00,AGENCY STAFF,AGENCY STAFF,http://opendatacommunities.org/id/county-council/staffordshire  ,
Staffordshire County Council,Extra Care Contracts,Midland Heart Ltd,04/12/2018,84000.00,Extra Care Long Stay,Extra Care Long Stay,http://opendatacommunities.org/id/county-council/staffordshire  ,
Staffordshire County Council,Extra Care Contracts,Midland Heart Ltd,04/12/2018,83678.92,Extra Care Long Stay,Extra Care Long Stay,http://opendatacommunities.org/id/county-council/staffordshire  ,
Staffordshire County Council,Tower View Primary Roofs,MIDLAND ROOFING SERVICES DERBY LTD,04/12/2018,1119.67,Construction Works,Construction Works,http://opendatacommunities.org/id/county-council/staffordshire  ,
Staffordshire County Council,Recharge to Trust,Midlands Part NHS FT,04/12/2018,67988.00,Reimbursemnt from Health Trust,Reimbursemnt from Health Trust,http://opendatacommunities.org/id/county-council/staffordshire  ,
Staffordshire County Council,LTC - Occupational Therapy,Midlands Part NHS FT,04/12/2018,100000.00,OTHER HIRED SERVICES,OTHER HIRED SERVICES,http://opendatacommunities.org/id/county-council/staffordshire  ,
Staffordshire County Council,LTC - Reablement,Midlands Part NHS FT,04/12/2018,383000.00,OTHER HIRED SERVICES,OTHER HIRED SERVICES,http://opendatacommunities.org/id/county-council/staffordshire  ,
Staffordshire County Council,2 Contraception,MILL BANK SURGERY,04/12/2018,1280.96,other services external,other services external,http://opendatacommunities.org/id/county-council/staffordshire  ,
Staffordshire County Council,Lymedale Enterprise Centre,NOVUS PROPERTY SOLS LTD,04/12/2018,2460.73,Planned Int Wall Door Fixtures,Planned Int Wall Door Fixtures,http://opendatacommunities.org/id/county-council/staffordshire  ,
Staffordshire County Council,Independent School Fee Special,Options Autism 4 Limited,04/12/2018,5580.00,Fees to Independent Schools,Fees to Independent Schools,http://opendatacommunities.org/id/county-council/staffordshire  ,
Staffordshire County Council,Independent School Fee Special,Options Autism 4 Limited,04/12/2018,7440.00,Fees to Independent Schools,Fees to Independent Schools,http://opendatacommunities.org/id/county-council/staffordshire  ,
Staffordshire County Council,Independent School Fee Special,Options Autism 4 Limited,04/12/2018,5580.00,Fees to Independent Schools,Fees to Independent Schools,http://opendatacommunities.org/id/county-council/staffordshire  ,
Staffordshire County Council,Independent School Fee Special,Options Autism 4 Limited,04/12/2018,6696.00,Fees to Independent Schools,Fees to Independent Schools,http://opendatacommunities.org/id/county-council/staffordshire  ,
Staffordshire County Council,Independent School Fee Special,Options Autism 4 Limited,04/12/2018,1860.00,Fees to Independent Schools,Fees to Independent Schools,http://opendatacommunities.org/id/county-council/staffordshire  ,
Staffordshire County Council,County Fleet Care Purchase Of ,P E VAN TECH,04/12/2018,1504.80,Vehicle Purchase,Vehicle Purchase,http://opendatacommunities.org/id/county-council/staffordshire  ,
Staffordshire County Council,County Fleet Care Purchase Of ,P E VAN TECH,04/12/2018,1504.80,Vehicle Purchase,Vehicle Purchase,http://opendatacommunities.org/id/county-council/staffordshire  ,
Staffordshire County Council,County Fleet Care Purchase Of ,P E VAN TECH,04/12/2018,1504.80,Vehicle Purchase,Vehicle Purchase,http://opendatacommunities.org/id/county-council/staffordshire  ,
Staffordshire County Council,County Fleet Care Purchase Of ,P E VAN TECH,04/12/2018,1504.80,Vehicle Purchase,Vehicle Purchase,http://opendatacommunities.org/id/county-council/staffordshire  ,
Staffordshire County Council,County Fleet Care Purchase Of ,P E VAN TECH,04/12/2018,1504.80,Vehicle Purchase,Vehicle Purchase,http://opendatacommunities.org/id/county-council/staffordshire  ,
Staffordshire County Council,County Fleet Care Purchase Of ,P E VAN TECH,04/12/2018,1504.80,Vehicle Purchase,Vehicle Purchase,http://opendatacommunities.org/id/county-council/staffordshire  ,
Staffordshire County Council,Other NDORS Courses,P Law,04/12/2018,1820.00,DRIVING INSTRUCTION,DRIVING INSTRUCTION,http://opendatacommunities.org/id/county-council/staffordshire  ,
Staffordshire County Council,Rowan Contract,Prepaid Financial Services (PFS),04/12/2018,3792.28,COMM CARE DIRECT PAYMENTS,COMM CARE DIRECT PAYMENTS,http://opendatacommunities.org/id/county-council/staffordshire  ,
Staffordshire County Council,Rowan Contract,Prepaid Financial Services (PFS),04/12/2018,3808.62,COMM CARE DIRECT PAYMENTS,COMM CARE DIRECT PAYMENTS,http://opendatacommunities.org/id/county-council/staffordshire  ,
Staffordshire County Council,Emergency Duty Service,Prometheus Safe & Secure Ltd,04/12/2018,2582.00,other services external,other services external,http://opendatacommunities.org/id/county-council/staffordshire  ,
Staffordshire County Council,Emergency Duty Service,Prometheus Safe & Secure Ltd,04/12/2018,1838.00,other services external,other services external,http://opendatacommunities.org/id/county-council/staffordshire  ,
Staffordshire County Council,Cannock Invoice Led Older Peop,Rainbow Care Solutions,04/12/2018,507.22,Practical Care,Practical Care,http://opendatacommunities.org/id/county-council/staffordshire  ,
Staffordshire County Council,MCA / DoLs / AMHP,RKJ Contracts Ltd,04/12/2018,1100.00,Independent Investigations,Independent Investigations,http://opendatacommunities.org/id/county-council/staffordshire  ,
Staffordshire County Council,Moorlands Invoice Led Older Pe,S&W INDEPENDENT LIVING,04/12/2018,574.00,Practical Care,Practical Care,http://opendatacommunities.org/id/county-council/staffordshire  ,
Staffordshire County Council,Moorlands Invoice Led Older Pe,S&W INDEPENDENT LIVING,04/12/2018,909.60,Practical Care,Practical Care,http://opendatacommunities.org/id/county-council/staffordshire  ,
Staffordshire County Council,1323 Hawthorn House WS13 6EN,South Staffs Water Business,04/12/2018,1756.51,Water Charges Metered,Water Charges Metered,http://opendatacommunities.org/id/county-council/staffordshire  ,
Staffordshire County Council,Chasewater Visitor Centre,South Staffs Water Business,04/12/2018,974.43,Water Charges Metered,Water Charges Metered,http://opendatacommunities.org/id/county-council/staffordshire  ,
Staffordshire County Council,Chasewater Visitor Centre,South Staffs Water Business,04/12/2018,1001.93,Water Charges Metered,Water Charges Metered,http://opendatacommunities.org/id/county-council/staffordshire  ,
Staffordshire County Council,Local Members Initiatives,St Mary's Priory Church Tutbury,04/12/2018,500.00,Local Member Initiative Scheme,Local Member Initiative Scheme,http://opendatacommunities.org/id/county-council/staffordshire  ,
Staffordshire County Council,Pupil Premium Grant,Stoneydelph Primary School,04/12/2018,63947.00,Grants to third parties,Grants to third parties,http://opendatacommunities.org/id/county-council/staffordshire  ,
Staffordshire County Council,Home to school transport-main,TELFORD & WREKIN COUNCIL,04/12/2018,1071.51,Home School Tickets,Home School Tickets,http://opendatacommunities.org/id/county-council/staffordshire  ,
Staffordshire County Council,Stafford Invoice Led Phys Disa,The Practice Group,04/12/2018,5177.00,Practical Care,Practical Care,http://opendatacommunities.org/id/county-council/staffordshire  ,
Staffordshire County Council,Stafford Invoice Led Phys Disa,The Practice Group,04/12/2018,5177.00,Practical Care,Practical Care,http://opendatacommunities.org/id/county-council/staffordshire  ,
Staffordshire County Council,SEND Assessment Planning Serv,Together Trust,04/12/2018,650.00,other services external,other services external,http://opendatacommunities.org/id/county-council/staffordshire  ,
Staffordshire County Council,SEND Assessment Planning Serv,Together Trust,04/12/2018,650.00,other services external,other services external,http://opendatacommunities.org/id/county-council/staffordshire  ,
Staffordshire County Council,SEND Assessment Planning Serv,Together Trust,04/12/2018,650.00,other services external,other services external,http://opendatacommunities.org/id/county-council/staffordshire  ,
Staffordshire County Council,Home to school transport-main,Trent Travel Ltd,04/12/2018,969.00,Home School Contract Vehicles,Home School Contract Vehicles,http://opendatacommunities.org/id/county-council/staffordshire  ,
Staffordshire County Council,Other NDORS Courses,UKROED LTD,04/12/2018,15148.80,PROFESSIONAL FEES,PROFESSIONAL FEES,http://opendatacommunities.org/id/county-council/staffordshire  ,
Staffordshire County Council,Home to school transport-main,Ultimate Taxis Ltd,04/12/2018,2745.00,Home School Contract Vehicles,Home School Contract Vehicles,http://opendatacommunities.org/id/county-council/staffordshire  ,
Staffordshire County Council,2 Contraception,University Medical Centre Keele,04/12/2018,1568.40,other services external,other services external,http://opendatacommunities.org/id/county-council/staffordshire  ,
Staffordshire County Council,Specialist Supp Serv VI Cent,UNIVERSITY OF BIRMINGHAM,04/12/2018,1452.00,Training Expenses,Training Expenses,http://opendatacommunities.org/id/county-council/staffordshire  ,
Staffordshire County Council,Specialist Supp Serv VI Cent,UNIVERSITY OF BIRMINGHAM,04/12/2018,1452.00,Training Expenses,Training Expenses,http://opendatacommunities.org/id/county-council/staffordshire  ,
Staffordshire County Council,Stafford LD Team,Voyage Ltd,04/12/2018,2522.64,Supported Group Care,Supported Group Care,http://opendatacommunities.org/id/county-council/staffordshire  ,
Staffordshire County Council,Stafford LD Team,Voyage Ltd,04/12/2018,3071.04,Supported Group Care,Supported Group Care,http://opendatacommunities.org/id/county-council/staffordshire  ,
Staffordshire County Council,Stafford LD Team,Voyage Ltd,04/12/2018,3071.04,Supported Group Care,Supported Group Care,http://opendatacommunities.org/id/county-council/staffordshire  ,
Staffordshire County Council,Former Short Street - Security,VPS (UK) LTD,04/12/2018,2661.98,Construction Works,Construction Works,http://opendatacommunities.org/id/county-council/staffordshire  ,
Staffordshire County Council,Local Members Initiatives,Walton & Baswich Comm Ctre,04/12/2018,650.00,Local Member Initiative Scheme,Local Member Initiative Scheme,http://opendatacommunities.org/id/county-council/staffordshire  ,
Staffordshire County Council,Highways Laboratory,XCALIBRE EQUIPMENT LTD,04/12/2018,1848.00,General Equipment Repair/Maint,General Equipment Repair/Maint,http://opendatacommunities.org/id/county-council/staffordshire  ,
Staffordshire County Council,Branston Road - New Sec School,YORKSHIRE PURCHASING ORG,04/12/2018,580.00,Furniture/Equip Purchase,Furniture/Equip Purchase,http://opendatacommunities.org/id/county-council/staffordshire  ,
Staffordshire County Council,Madeley SU4,AA GLOBAL LANGUAGE SERVICES LTD,05/12/2018,508.20,S17 FAMILY SUPPORT,S17 FAMILY SUPPORT,http://opendatacommunities.org/id/county-council/staffordshire  ,
Staffordshire County Council,Stafford Invoice Led Phys Disa,About Me Care and Support Ltd,05/12/2018,772.00,INTERPRETERS SERVICE,INTERPRETERS SERVICE,http://opendatacommunities.org/id/county-council/staffordshire  ,
Staffordshire County Council,Cannock Invoice Led Older Peop,About Me Care and Support Ltd,05/12/2018,926.40,INTERPRETERS SERVICE,INTERPRETERS SERVICE,http://opendatacommunities.org/id/county-council/staffordshire  ,
Staffordshire County Council,Cannock Invoice Led Phys Disab,About Me Care and Support Ltd,05/12/2018,617.60,INTERPRETERS SERVICE,INTERPRETERS SERVICE,http://opendatacommunities.org/id/county-council/staffordshire  ,
Staffordshire County Council,Newcastle Invoice Led Physical,About Me Care and Support Ltd,05/12/2018,1080.80,INTERPRETERS SERVICE,INTERPRETERS SERVICE,http://opendatacommunities.org/id/county-council/staffordshire  ,
Staffordshire County Council,Newcastle Invoice Led Physical,About Me Care and Support Ltd,05/12/2018,540.40,INTERPRETERS SERVICE,INTERPRETERS SERVICE,http://opendatacommunities.org/id/county-council/staffordshire  ,
Staffordshire County Council,Fuel,ALLSTAR BUSINESS SOLUTIONS LTD,05/12/2018,5765.12,Petrol & Oil,Petrol & Oil,http://opendatacommunities.org/id/county-council/staffordshire  ,
Staffordshire County Council,Central County Wide Works,AMEY LG LTD,05/12/2018,5049714.56,Gen highway Maint bud only,Gen highway Maint bud only,http://opendatacommunities.org/id/county-council/staffordshire  ,
Staffordshire County Council,Moorlands Invoice Led Older Pe,AMG NURSING & CARE SERVICES,05/12/2018,507.08,Practical Care,Practical Care,http://opendatacommunities.org/id/county-council/staffordshire  ,
Staffordshire County Council,Newcastle Invoice Led Older Pe,AUSTIN BEN LTD,05/12/2018,756.00,Practical Care,Practical Care,http://opendatacommunities.org/id/county-council/staffordshire  ,
Staffordshire County Council,Workforce Wellbeing Strategy,BURTON  & DISTRICT MIND,05/12/2018,580.00,CONSULTANT FEES,CONSULTANT FEES,http://opendatacommunities.org/id/county-council/staffordshire  ,
Staffordshire County Council,Kidsgrove SU3,Capita Translation & Interpreting Ltd,05/12/2018,866.16,S17 - TRANSLATION,S17 - TRANSLATION,http://opendatacommunities.org/id/county-council/staffordshire  ,
Staffordshire County Council,Local Members Initiatives,CHECKLEY PARISH COUNCIL,05/12/2018,1500.00,Local Member Initiative Scheme,Local Member Initiative Scheme,http://opendatacommunities.org/id/county-council/staffordshire  ,
Staffordshire County Council,Newcastle Invoice Led Older Pe,CHOICES HOUSING ASSOCIATION LTD,05/12/2018,563.50,Practical Care,Practical Care,http://opendatacommunities.org/id/county-council/staffordshire  ,
Staffordshire County Council,Central Winter Maintenance Wor,COMPASS MINERALS UK LTD,05/12/2018,6349.07,Winter Salt Purchases,Winter Salt Purchases,http://opendatacommunities.org/id/county-council/staffordshire  ,
Staffordshire County Council,1323 Hawthorn House WS13 6EN,Corona Energy Retail 4 Ltd,05/12/2018,677.42,Gas,Gas,http://opendatacommunities.org/id/county-council/staffordshire  ,
Staffordshire County Council,Family and Friends Team,CPK Empowering Families Ltd,05/12/2018,611.88,AGENCY STAFF,AGENCY STAFF,http://opendatacommunities.org/id/county-council/staffordshire  ,
Staffordshire County Council,S Staffs LD Team,Craegmoor Bentons Lane 297,05/12/2018,4330.40,Supported Group Care,Supported Group Care,http://opendatacommunities.org/id/county-council/staffordshire  ,
Staffordshire County Council,2 Contraception,Crown Surgery Ltd,05/12/2018,1360.40,other services external,other services external,http://opendatacommunities.org/id/county-council/staffordshire  ,
Staffordshire County Council,Stafford Invoice Led Phys Disa,Fairfield Guest House,05/12/2018,1170.00,OTHER HIRED SERVICES,OTHER HIRED SERVICES,http://opendatacommunities.org/id/county-council/staffordshire  ,
Staffordshire County Council,2 Contraception,Featherstone Family Health Centre,05/12/2018,738.00,other services external,other services external,http://opendatacommunities.org/id/county-council/staffordshire  ,
Staffordshire County Council,Libraries Live,FRILLY,05/12/2018,1000.00,other services external,other services external,http://opendatacommunities.org/id/county-council/staffordshire  ,
Staffordshire County Council,3816 Glascote Childrens Centre,G EVANS (SERVICES) LTD,05/12/2018,7270.80,Day to Day Mechanical Services,Day to Day Mechanical Services,http://opendatacommunities.org/id/county-council/staffordshire  ,
Staffordshire County Council,Asset Renewal  - Maint Work 04,G EVANS (SERVICES) LTD,05/12/2018,21600.00,Construction Works,Construction Works,http://opendatacommunities.org/id/county-council/staffordshire  ,
Staffordshire County Council,E Staffs MH Team U65,Grangemoor Care Homes Limited,05/12/2018,2090.29,Supported Group Care,Supported Group Care,http://opendatacommunities.org/id/county-council/staffordshire  ,
Staffordshire County Council,Staffordshire Wood Fuel,H R J Gould Ltd,05/12/2018,1482.00,General Equipment Purchase,General Equipment Purchase,http://opendatacommunities.org/id/county-council/staffordshire  ,
Staffordshire County Council,Recoupment Academy- Mainstream,Haberdashers Adams,05/12/2018,4628.25,Extra District Charges Other,Extra District Charges Other,http://opendatacommunities.org/id/county-council/staffordshire  ,
Staffordshire County Council,Highways Laboratory,HAMMOND CHEMICALS LTD,05/12/2018,573.60,Consumables,Consumables,http://opendatacommunities.org/id/county-council/staffordshire  ,
Staffordshire County Council,Moorlands LD Team,HAYFIELD,05/12/2018,1338.26,Day Care,Day Care,http://opendatacommunities.org/id/county-council/staffordshire  ,
Staffordshire County Council,Moorlands LD Team,HAYFIELD,05/12/2018,2555.95,Supported Group Care,Supported Group Care,http://opendatacommunities.org/id/county-council/staffordshire  ,
Staffordshire County Council,S Staffs Invoice Led Physic Di,HaywardLiving,05/12/2018,2112.00,Supported Group Care,Supported Group Care,http://opendatacommunities.org/id/county-council/staffordshire  ,
Staffordshire County Council,S Staffs Invoice Led Physic Di,HaywardLiving,05/12/2018,2112.00,Supported Group Care,Supported Group Care,http://opendatacommunities.org/id/county-council/staffordshire  ,
Staffordshire County Council,Tamworth Invoice Led Older Peo,Housing & Care 21,05/12/2018,546.70,Practical Care,Practical Care,http://opendatacommunities.org/id/county-council/staffordshire  ,
Staffordshire County Council,Cannock Invoice Led Older Peop,ICare (GB) Ltd,05/12/2018,528.90,Practical Care,Practical Care,http://opendatacommunities.org/id/county-council/staffordshire  ,
Staffordshire County Council,Infrastructure Project,INSIGHT DIRECT (UK) LTD,05/12/2018,56628.00,Computer Equipment purchase,Computer Equipment purchase,http://opendatacommunities.org/id/county-council/staffordshire  ,
Staffordshire County Council,Cheslyn Hay High School,INTEGRATED WATER SERVICES,05/12/2018,509.90,Special Water Hygiene Service,Special Water Hygiene Service,http://opendatacommunities.org/id/county-council/staffordshire  ,
Staffordshire County Council,Newcastle Tipping Away,J W Cantrell Haulage Contractors Ltd,05/12/2018,1093.25,WASTE TRANSPORT,WASTE TRANSPORT,http://opendatacommunities.org/id/county-council/staffordshire  ,
Staffordshire County Council,MCA / DoLs / AMHP,JG Social Care Ltd,05/12/2018,1100.00,Independent Investigations,Independent Investigations,http://opendatacommunities.org/id/county-council/staffordshire  ,
Staffordshire County Council,Newcastle MH Team U65,Jump 2 Independence Ltd,05/12/2018,520.57,Supported Group Care,Supported Group Care,http://opendatacommunities.org/id/county-council/staffordshire  ,
Staffordshire County Council,SAP Archiving & Other Costs,Keytree Ltd,05/12/2018,1538.57,SOFTWARE LICENCES,SOFTWARE LICENCES,http://opendatacommunities.org/id/county-council/staffordshire  ,
Staffordshire County Council,SAP Archiving & Other Costs,Keytree Ltd,05/12/2018,1538.57,SOFTWARE LICENCES,SOFTWARE LICENCES,http://opendatacommunities.org/id/county-council/staffordshire  ,
Staffordshire County Council,Newcastle Invoice Led Physical,Lifeways Community Care Ltd,05/12/2018,1922.84,Practical Care,Practical Care,http://opendatacommunities.org/id/county-council/staffordshire  ,
Staffordshire County Council,Newcastle Invoice Led Physical,Lifeways Community Care Ltd,05/12/2018,2555.32,Practical Care,Practical Care,http://opendatacommunities.org/id/county-council/staffordshire  ,
Staffordshire County Council,Newcastle Invoice Led Physical,Lifeways Community Care Ltd,05/12/2018,2239.08,Practical Care,Practical Care,http://opendatacommunities.org/id/county-council/staffordshire  ,
Staffordshire County Council,Stafford LD Team,LINKAGE COMMUNITY TRUST,05/12/2018,6653.92,RCLS Learning Disability,RCLS Learning Disability,http://opendatacommunities.org/id/county-council/staffordshire  ,
Staffordshire County Council,Third Car Leasing Scheme,LOOKERS LEASING LTD,05/12/2018,3799.44,Staff Car Leasing Recharge,Staff Car Leasing Recharge,http://opendatacommunities.org/id/county-council/staffordshire  ,
Staffordshire County Council,Chesterton LST5,M G CHALLINOR T/A CHALLINOR TRAVEL,05/12/2018,1550.00,Group Work,Group Work,http://opendatacommunities.org/id/county-council/staffordshire  ,
Staffordshire County Council,Top Up Funding -Academies/Free,Manor Hall Academy Trust,05/12/2018,116877.51,Grants to third parties,Grants to third parties,http://opendatacommunities.org/id/county-council/staffordshire  ,
Staffordshire County Council,E Staffs LD Team,Mediline Nurses & Carers Ltd,05/12/2018,3133.90,Practical Care,Practical Care,http://opendatacommunities.org/id/county-council/staffordshire  ,
Staffordshire County Council,Home to school transport-main,Midland Classic Ltd,05/12/2018,3880.00,Home School Tickets,Home School Tickets,http://opendatacommunities.org/id/county-council/staffordshire  ,
Staffordshire County Council,2 Contraception,Midlands Part NHS FT,05/12/2018,172484.25,OTHER HIRED SERVICES,OTHER HIRED SERVICES,http://opendatacommunities.org/id/county-council/staffordshire  ,
Staffordshire County Council,Virtual School - Pupil Premium,NATIONAL TEACHING ADVISORY SERVI,05/12/2018,1347.60,OTHER ALLOWANCES,OTHER ALLOWANCES,http://opendatacommunities.org/id/county-council/staffordshire  ,
Staffordshire County Council,Lymedale West Business Centre,PHS GROUP PLC,05/12/2018,1757.83,General Equipment Purchase,General Equipment Purchase,http://opendatacommunities.org/id/county-council/staffordshire  ,
Staffordshire County Council,Coton Green - Windows,R A EDWARDS & PARTNERS LTD,05/12/2018,5074.80,Construction Works,Construction Works,http://opendatacommunities.org/id/county-council/staffordshire  ,
Staffordshire County Council,Practice Improvement,,05/12/2018,572.04,S17 FAMILY SUPPORT,S17 FAMILY SUPPORT,http://opendatacommunities.org/id/county-council/staffordshire  ,
Staffordshire County Council,MCA / DoLs / AMHP,Shamrock Care Ltd,05/12/2018,860.00,Independent Investigations,Independent Investigations,http://opendatacommunities.org/id/county-council/staffordshire  ,
Staffordshire County Council,HS2,Sharpe Pritchard,05/12/2018,3705.60,PROFESSIONAL FEES,PROFESSIONAL FEES,http://opendatacommunities.org/id/county-council/staffordshire  ,
Staffordshire County Council,Local Members Initiatives,St James PCC,05/12/2018,1000.00,Local Member Initiative Scheme,Local Member Initiative Scheme,http://opendatacommunities.org/id/county-council/staffordshire  ,
Staffordshire County Council,Cannock MH Team U65,St Matthews Support Services Limited,05/12/2018,1633.04,Supported Group Care,Supported Group Care,http://opendatacommunities.org/id/county-council/staffordshire  ,
Staffordshire County Council,Local Members Initiatives,Staffordshire Adults Autistic Soc,05/12/2018,960.00,Local Member Initiative Scheme,Local Member Initiative Scheme,http://opendatacommunities.org/id/county-council/staffordshire  ,
Staffordshire County Council,E Staffs MH Team U65,THE POPLARS LTD,05/12/2018,1894.32,Supported Group Care,Supported Group Care,http://opendatacommunities.org/id/county-council/staffordshire  ,
Staffordshire County Council,Independent School Fee Nursery,Tynsel Parkes CofE First School,05/12/2018,852.62,Grants to third parties,Grants to third parties,http://opendatacommunities.org/id/county-council/staffordshire  ,
Staffordshire County Council,Speed Awareness,UKROED LTD,05/12/2018,156211.20,PROFESSIONAL FEES,PROFESSIONAL FEES,http://opendatacommunities.org/id/county-council/staffordshire  ,
Staffordshire County Council,South Staffs Coroner,Univ Hospitals of North Mids NHS Trust,05/12/2018,1440.00,INQ EXPS S STAFFS,INQ EXPS S STAFFS,http://opendatacommunities.org/id/county-council/staffordshire  ,
Staffordshire County Council,South Staffs Coroner,Univ Hospitals of North Mids NHS Trust,05/12/2018,3745.37,INQ EXPS S STAFFS,INQ EXPS S STAFFS,http://opendatacommunities.org/id/county-council/staffordshire  ,
Staffordshire County Council,South Staffs Coroner,Univ Hospitals of North Mids NHS Trust,05/12/2018,720.00,INQ EXPS S STAFFS,INQ EXPS S STAFFS,http://opendatacommunities.org/id/county-council/staffordshire  ,
Staffordshire County Council,South Staffs Coroner,Univ Hospitals of North Mids NHS Trust,05/12/2018,1440.00,INQ EXPS S STAFFS,INQ EXPS S STAFFS,http://opendatacommunities.org/id/county-council/staffordshire  ,
Staffordshire County Council,Adult Social Care & Safeguard,UTTOXETER RACECOURSE,05/12/2018,1320.00,Conference Fees,Conference Fees,http://opendatacommunities.org/id/county-council/staffordshire  ,
Staffordshire County Council,Contracts,Venn Group Ltd,05/12/2018,2078.40,AGENCY STAFF,AGENCY STAFF,http://opendatacommunities.org/id/county-council/staffordshire  ,
Staffordshire County Council,Contracts,Venn Group Ltd,05/12/2018,2078.40,AGENCY STAFF,AGENCY STAFF,http://opendatacommunities.org/id/county-council/staffordshire  ,
Staffordshire County Council,Knutton Enterprise Centre,VEOLIA ES CLEANAWAY (UK) LTD,05/12/2018,616.80,WASTE COLLECTION,WASTE COLLECTION,http://opendatacommunities.org/id/county-council/staffordshire  ,
Staffordshire County Council,Newcastle LD Team,Welmede,05/12/2018,3286.31,Supported Group Care,Supported Group Care,http://opendatacommunities.org/id/county-council/staffordshire  ,
Staffordshire County Council,Recoupment Academies - Special,Wilson Stuart School-A Special Academy,05/12/2018,2707.00,Extra District Charges Other,Extra District Charges Other,http://opendatacommunities.org/id/county-council/staffordshire  ,
Staffordshire County Council,Stafford LD Team,Wrekin Housing Trust,05/12/2018,642.00,Supported Group Care,Supported Group Care,http://opendatacommunities.org/id/county-council/staffordshire  ,
Staffordshire County Council,Stafford LD Team,Wrekin Housing Trust,05/12/2018,663.40,Supported Group Care,Supported Group Care,http://opendatacommunities.org/id/county-council/staffordshire  ,
Staffordshire County Council,St Stephen's Expansion,Adcocks Solicitors,06/12/2018,906.00,Construction Works,Construction Works,http://opendatacommunities.org/id/county-council/staffordshire  ,
Staffordshire County Council,Central County Wide Works,AMEY LG LTD,06/12/2018,240054.73,Gen highway Maint bud only,Gen highway Maint bud only,http://opendatacommunities.org/id/county-council/staffordshire  ,
Staffordshire County Council,Moorlands Invoice Led Older Pe,AMG NURSING & CARE SERVICES,06/12/2018,800.86,Practical Care,Practical Care,http://opendatacommunities.org/id/county-council/staffordshire  ,
Staffordshire County Council,Moorlands Invoice Led Older Pe,AMG NURSING & CARE SERVICES,06/12/2018,731.22,Practical Care,Practical Care,http://opendatacommunities.org/id/county-council/staffordshire  ,
Staffordshire County Council,Moorlands Invoice Led Older Pe,AMG NURSING & CARE SERVICES,06/12/2018,731.22,Practical Care,Practical Care,http://opendatacommunities.org/id/county-council/staffordshire  ,
Staffordshire County Council,Moorlands Invoice Led Older Pe,AMG NURSING & CARE SERVICES,06/12/2018,731.22,Practical Care,Practical Care,http://opendatacommunities.org/id/county-council/staffordshire  ,
Staffordshire County Council,Moorlands Invoice Led Older Pe,AMG NURSING & CARE SERVICES,06/12/2018,731.22,Practical Care,Practical Care,http://opendatacommunities.org/id/county-council/staffordshire  ,
Staffordshire County Council,Moorlands Invoice Led Older Pe,AMG NURSING & CARE SERVICES,06/12/2018,996.05,Practical Care,Practical Care,http://opendatacommunities.org/id/county-council/staffordshire  ,
Staffordshire County Council,Moorlands Invoice Led Older Pe,AMG NURSING & CARE SERVICES,06/12/2018,507.08,Practical Care,Practical Care,http://opendatacommunities.org/id/county-council/staffordshire  ,
Staffordshire County Council,Moorlands Invoice Led Older Pe,AMG NURSING & CARE SERVICES,06/12/2018,507.08,Practical Care,Practical Care,http://opendatacommunities.org/id/county-council/staffordshire  ,
Staffordshire County Council,Moorlands Invoice Led Older Pe,AMG NURSING & CARE SERVICES,06/12/2018,507.08,Practical Care,Practical Care,http://opendatacommunities.org/id/county-council/staffordshire  ,
Staffordshire County Council,Moorlands Invoice Led Older Pe,AMG NURSING & CARE SERVICES,06/12/2018,507.08,Practical Care,Practical Care,http://opendatacommunities.org/id/county-council/staffordshire  ,
Staffordshire County Council,Moorlands Invoice Led Older Pe,AMG NURSING & CARE SERVICES,06/12/2018,760.62,Practical Care,Practical Care,http://opendatacommunities.org/id/county-council/staffordshire  ,
Staffordshire County Council,Moorlands Invoice Led Older Pe,AMG NURSING & CARE SERVICES,06/12/2018,507.08,Practical Care,Practical Care,http://opendatacommunities.org/id/county-council/staffordshire  ,
Staffordshire County Council,Moorlands Invoice Led Older Pe,AMG NURSING & CARE SERVICES,06/12/2018,507.08,Practical Care,Practical Care,http://opendatacommunities.org/id/county-council/staffordshire  ,
Staffordshire County Council,Moorlands Invoice Led Older Pe,AMG NURSING & CARE SERVICES,06/12/2018,507.08,Practical Care,Practical Care,http://opendatacommunities.org/id/county-council/staffordshire  ,
Staffordshire County Council,Moorlands Invoice Led Older Pe,AMG NURSING & CARE SERVICES,06/12/2018,507.08,Practical Care,Practical Care,http://opendatacommunities.org/id/county-council/staffordshire  ,
Staffordshire County Council,Moorlands Invoice Led Older Pe,AMG NURSING & CARE SERVICES,06/12/2018,507.08,Practical Care,Practical Care,http://opendatacommunities.org/id/county-council/staffordshire  ,
Staffordshire County Council,Moorlands Invoice Led Older Pe,AMG NURSING & CARE SERVICES,06/12/2018,507.08,Practical Care,Practical Care,http://opendatacommunities.org/id/county-council/staffordshire  ,
Staffordshire County Council,Moorlands Invoice Led Older Pe,AMG NURSING & CARE SERVICES,06/12/2018,507.08,Practical Care,Practical Care,http://opendatacommunities.org/id/county-council/staffordshire  ,
Staffordshire County Council,Moorlands Invoice Led Older Pe,AMG NURSING & CARE SERVICES,06/12/2018,507.08,Practical Care,Practical Care,http://opendatacommunities.org/id/county-council/staffordshire  ,
Staffordshire County Council,Moorlands Invoice Led Older Pe,AMG NURSING & CARE SERVICES,06/12/2018,1014.16,Practical Care,Practical Care,http://opendatacommunities.org/id/county-council/staffordshire  ,
Staffordshire County Council,Moorlands Invoice Led Older Pe,AR1 Homecare,06/12/2018,2127.00,Practical Care,Practical Care,http://opendatacommunities.org/id/county-council/staffordshire  ,
Staffordshire County Council,Moorlands Invoice Led Older Pe,AR1 Homecare,06/12/2018,2197.90,Practical Care,Practical Care,http://opendatacommunities.org/id/county-council/staffordshire  ,
Staffordshire County Council,Moorlands Invoice Led Older Pe,Assist DC Ltd TA Choose Your Care,06/12/2018,644.00,Practical Care,Practical Care,http://opendatacommunities.org/id/county-council/staffordshire  ,
Staffordshire County Council,Moorlands Invoice Led Older Pe,Assist DC Ltd TA Choose Your Care,06/12/2018,635.00,Practical Care,Practical Care,http://opendatacommunities.org/id/county-council/staffordshire  ,
Staffordshire County Council,Stock Management,Bertram Library Services,06/12/2018,964.34,Books,Books,http://opendatacommunities.org/id/county-council/staffordshire  ,
Staffordshire County Council,5438 Staffs Place 1&2Tipping S,BID,06/12/2018,552.00,Service/Test Controlled Access,Service/Test Controlled Access,http://opendatacommunities.org/id/county-council/staffordshire  ,
Staffordshire County Council,Local Members Initiatives,BrightFutures Un-Ltd,06/12/2018,840.00,Local Member Initiative Scheme,Local Member Initiative Scheme,http://opendatacommunities.org/id/county-council/staffordshire  ,
Staffordshire County Council,Growth Hub ERDF 2016-2019,Broad Oak Properties Ltd,06/12/2018,7234.04,Grants Other,Grants Other,http://opendatacommunities.org/id/county-council/staffordshire  ,
Staffordshire County Council,Tamworth LD Team,Care First,06/12/2018,1056.00,Day Care,Day Care,http://opendatacommunities.org/id/county-council/staffordshire  ,
Staffordshire County Council,General Overheads,Certas Energy UK LTD,06/12/2018,25840.06,Petrol & Oil,Petrol & Oil,http://opendatacommunities.org/id/county-council/staffordshire  ,
Staffordshire County Council,Growth Hub ERDF 2016-2019,Charles Martin Watch Company,06/12/2018,2774.61,Grants Other,Grants Other,http://opendatacommunities.org/id/county-council/staffordshire  ,
Staffordshire County Council,Newcastle Invoice Led Older Pe,CHOICES HOUSING ASSOCIATION LTD,06/12/2018,1550.00,Practical Care,Practical Care,http://opendatacommunities.org/id/county-council/staffordshire  ,
Staffordshire County Council,Cannock Invoice Led Older Peop,CHOICES HOUSING ASSOCIATION LTD,06/12/2018,717.52,Practical Care,Practical Care,http://opendatacommunities.org/id/county-council/staffordshire  ,
Staffordshire County Council,0934 Eccleshall Library High S,CHUBB FIRE & SECURITY LTD,06/12/2018,1008.20,Day to Day Electrical Services,Day to Day Electrical Services,http://opendatacommunities.org/id/county-council/staffordshire  ,
Staffordshire County Council,Lymedale Enterprise Centre,CHUBB FIRE & SECURITY LTD,06/12/2018,819.00,Service/Test Intruder Alarms,Service/Test Intruder Alarms,http://opendatacommunities.org/id/county-council/staffordshire  ,
Staffordshire County Council,0897 Biddulph Library Tunstall,CHUBB FIRE & SECURITY LTD,06/12/2018,840.00,Day to Day Mechanical Services,Day to Day Mechanical Services,http://opendatacommunities.org/id/county-council/staffordshire  ,
Staffordshire County Council,Chasewater Innovation Centre,CITY OF STOKE ON TRENT,06/12/2018,792.00,Advertising,Advertising,http://opendatacommunities.org/id/county-council/staffordshire  ,
Staffordshire County Council,S Staffs LD Team,CREATIVE SUPPORT,06/12/2018,566.40,Extra Care,Extra Care,http://opendatacommunities.org/id/county-council/staffordshire  ,
Staffordshire County Council,Staff Development Ctr,CRISIS PREVENTION INSTITUTE,06/12/2018,1254.00,EXTERNAL TRAINING,EXTERNAL TRAINING,http://opendatacommunities.org/id/county-council/staffordshire  ,
Staffordshire County Council,Bikeability,CYCLIST TRAINING LTD,06/12/2018,36185.00,CONSULTANT FEES,CONSULTANT FEES,http://opendatacommunities.org/id/county-council/staffordshire  ,
Staffordshire County Council,Richard Clarke External,DAWKES & CO LTD,06/12/2018,22626.30,Construction Works,Construction Works,http://opendatacommunities.org/id/county-council/staffordshire  ,
Staffordshire County Council,Stafford Invoice Led Older Peo,Daycare Domicilliary Services Ltd,06/12/2018,1702.40,Practical Care,Practical Care,http://opendatacommunities.org/id/county-council/staffordshire  ,
Staffordshire County Council,East Staffs Invoice Led Older ,Desire Care,06/12/2018,1014.30,Practical Care,Practical Care,http://opendatacommunities.org/id/county-council/staffordshire  ,
Staffordshire County Council,1 STI Test & Treat,EAST CHESHIRE NHS TRUST,06/12/2018,3408.75,other services internal,other services internal,http://opendatacommunities.org/id/county-council/staffordshire  ,
Staffordshire County Council,ERDF Low Carbon Bus Evol Prog,ESP Ltd,06/12/2018,834.00,CONSULTANT FEES,CONSULTANT FEES,http://opendatacommunities.org/id/county-council/staffordshire  ,
Staffordshire County Council,Branston Road - New Sec School,ESPO,06/12/2018,554.40,Furniture/Equip Purchase,Furniture/Equip Purchase,http://opendatacommunities.org/id/county-council/staffordshire  ,
Staffordshire County Council,Court & Care Plan-Staff/SouthS,Featherstone Academy,06/12/2018,650.40,S17-NURSERY,S17-NURSERY,http://opendatacommunities.org/id/county-council/staffordshire  ,
Staffordshire County Council,Hanbury's Farm Pr Toilet Refur,G EVANS (SERVICES) LTD,06/12/2018,26455.41,Construction Works,Construction Works,http://opendatacommunities.org/id/county-council/staffordshire  ,
Staffordshire County Council,Case Manage Team -Central West,G EYLES,06/12/2018,2870.65,Prev Supp Legal Costs,Prev Supp Legal Costs,http://opendatacommunities.org/id/county-council/staffordshire  ,
Staffordshire County Council,Case Manage Team -Central West,GATEWAY PSYCHOLOGY LTD,06/12/2018,567.00,Prev Supp Legal Costs,Prev Supp Legal Costs,http://opendatacommunities.org/id/county-council/staffordshire  ,
Staffordshire County Council,Local Members Initiatives,Gnosall PC GGs Youth Club,06/12/2018,500.00,Local Member Initiative Scheme,Local Member Initiative Scheme,http://opendatacommunities.org/id/county-council/staffordshire  ,
Staffordshire County Council,Moorlands Invoice Led Older Pe,H I C A,06/12/2018,2016.00,Practical Care,Practical Care,http://opendatacommunities.org/id/county-council/staffordshire  ,
Staffordshire County Council,Moorlands Invoice Led Older Pe,H I C A,06/12/2018,2000.00,Practical Care,Practical Care,http://opendatacommunities.org/id/county-council/staffordshire  ,
Staffordshire County Council,Moorlands Invoice Led Phys Dis,Helping Hands,06/12/2018,536.30,Practical Care,Practical Care,http://opendatacommunities.org/id/county-council/staffordshire  ,
Staffordshire County Council,Moorlands Invoice Led Older Pe,Helping Hands,06/12/2018,2054.00,Practical Care,Practical Care,http://opendatacommunities.org/id/county-council/staffordshire  ,
Staffordshire County Council,Employment,J Cavanagh QC,06/12/2018,1980.00,Legal Costs and Stamp Duty,Legal Costs and Stamp Duty,http://opendatacommunities.org/id/county-council/staffordshire  ,
Staffordshire County Council,Local Members Initiatives,Kidsgrove Sports Centre Community Group,06/12/2018,1000.00,Local Member Initiative Scheme,Local Member Initiative Scheme,http://opendatacommunities.org/id/county-council/staffordshire  ,
Staffordshire County Council,Ashcroft Infants' Roofs,MIDLAND ROOFING SERVICES DERBY LTD,06/12/2018,55190.40,Construction Works,Construction Works,http://opendatacommunities.org/id/county-council/staffordshire  ,
Staffordshire County Council,LTC - Overheads,Midlands Part NHS FT,06/12/2018,246400.00,OTHER HIRED SERVICES,OTHER HIRED SERVICES,http://opendatacommunities.org/id/county-council/staffordshire  ,
Staffordshire County Council,Independent School Fee Nursery,MOORHILL PRE SCHOOL & FUN CLUB,06/12/2018,1032.15,Grants to third parties,Grants to third parties,http://opendatacommunities.org/id/county-council/staffordshire  ,
Staffordshire County Council,Foster Care Recruitment Team,New Beacon Group,06/12/2018,4982.40,Training Resources,Training Resources,http://opendatacommunities.org/id/county-council/staffordshire  ,
Staffordshire County Council,Home to school transport-main,New Street Taxis,06/12/2018,20864.39,Manned Transpt - Hire Medical,Manned Transpt - Hire Medical,http://opendatacommunities.org/id/county-council/staffordshire  ,
Staffordshire County Council,On-Street Parking Back Office,Newlyn PLC,06/12/2018,1094.20,OTHER HIRED SERVICES,OTHER HIRED SERVICES,http://opendatacommunities.org/id/county-council/staffordshire  ,
Staffordshire County Council,On-Street Parking Back Office,Newlyn PLC,06/12/2018,1148.78,OTHER HIRED SERVICES,OTHER HIRED SERVICES,http://opendatacommunities.org/id/county-council/staffordshire  ,
Staffordshire County Council,Rights Of Way,Penna Plc,06/12/2018,930.22,Advertising,Advertising,http://opendatacommunities.org/id/county-council/staffordshire  ,
Staffordshire County Council,1178 Moorlands Ccent Albert St,PHS GROUP PLC,06/12/2018,1187.93,Contract Cleaning,Contract Cleaning,http://opendatacommunities.org/id/county-council/staffordshire  ,
Staffordshire County Council,Horninglow Bungalows,PHS GROUP PLC,06/12/2018,3642.59,OTHER HIRED SERVICES,OTHER HIRED SERVICES,http://opendatacommunities.org/id/county-council/staffordshire  ,
Staffordshire County Council,Speed Awareness,Professional Driver Services Ltd,06/12/2018,5606.48,OTHER HIRED SERVICES,OTHER HIRED SERVICES,http://opendatacommunities.org/id/county-council/staffordshire  ,
Staffordshire County Council,Highways Laboratory,R H Traffic Management Limited,06/12/2018,4278.12,CONSULTANT FEES,CONSULTANT FEES,http://opendatacommunities.org/id/county-council/staffordshire  ,
Staffordshire County Council,All Saints CE(C) Pri Trysull,ROY DYKE ELECTRICAL LTD,06/12/2018,847.09,Service/Test Fixed Electrical,Service/Test Fixed Electrical,http://opendatacommunities.org/id/county-council/staffordshire  ,
Staffordshire County Council,Madeley SU4,RUMPLAN T/A ROSEVILLE TAXIS & MNBSS,06/12/2018,648.00,S17 TRANSPORT,S17 TRANSPORT,http://opendatacommunities.org/id/county-council/staffordshire  ,
Staffordshire County Council,Road Safety Education,Specialist Computer Centres Ltd,06/12/2018,784.38,General Equipment Purchase,General Equipment Purchase,http://opendatacommunities.org/id/county-council/staffordshire  ,
Staffordshire County Council,Client Device Rollout,Specialist Computer Centres Ltd,06/12/2018,3690.00,Purchase of Hardware,Purchase of Hardware,http://opendatacommunities.org/id/county-council/staffordshire  ,
Staffordshire County Council,Client Device Rollout,Specialist Computer Centres Ltd,06/12/2018,2642.11,Purchase of Hardware,Purchase of Hardware,http://opendatacommunities.org/id/county-council/staffordshire  ,
Staffordshire County Council,SCC Digital,Specialist Computer Centres Ltd,06/12/2018,12480.00,SOFTWARE LICENCES,SOFTWARE LICENCES,http://opendatacommunities.org/id/county-council/staffordshire  ,
Staffordshire County Council,Syrian Refugee Support,Spring Housing Association,06/12/2018,10917.25,Other Agency Contributions,Other Agency Contributions,http://opendatacommunities.org/id/county-council/staffordshire  ,
Staffordshire County Council,Syrian Refugee Support,Spring Housing Association,06/12/2018,738.31,Other Agency Contributions,Other Agency Contributions,http://opendatacommunities.org/id/county-council/staffordshire  ,
Staffordshire County Council,Better Care Fund,STAFFORDSHIRE MOORLANDS DIS CNCL,06/12/2018,1448804.00,Grants Other,Grants Other,http://opendatacommunities.org/id/county-council/staffordshire  ,
Staffordshire County Council,0741 Biddulph Town Hall ST8 6A,STAFFORDSHIRE MOORLANDS DIS CNCL,06/12/2018,2138.42,Rent / Lease Of Premises,Rent / Lease Of Premises,http://opendatacommunities.org/id/county-council/staffordshire  ,
Staffordshire County Council,0741 Biddulph Town Hall ST8 6A,STAFFORDSHIRE MOORLANDS DIS CNCL,06/12/2018,16529.50,Rent / Lease Of Premises,Rent / Lease Of Premises,http://opendatacommunities.org/id/county-council/staffordshire  ,
Staffordshire County Council,CSE,Stoke on Trent City Council,06/12/2018,73187.50,OTHER HIRED SERVICES,OTHER HIRED SERVICES,http://opendatacommunities.org/id/county-council/staffordshire  ,
Staffordshire County Council,AEN Funding Academies/Free/Col,Stoneydelph Primary School,06/12/2018,18598.00,Grants to third parties,Grants to third parties,http://opendatacommunities.org/id/county-council/staffordshire  ,
Staffordshire County Council,Better Care Fund,TAMWORTH BOROUGH COUNCIL,06/12/2018,362074.32,Grants Other,Grants Other,http://opendatacommunities.org/id/county-council/staffordshire  ,
Staffordshire County Council,EStaffs/Tamw Disability Team,Taxi 92,06/12/2018,768.00,S17 TRANSPORT,S17 TRANSPORT,http://opendatacommunities.org/id/county-council/staffordshire  ,
Staffordshire County Council,S Staffs LD Team,Thera East Midlands,06/12/2018,5783.68,RCLS Learning Disability,RCLS Learning Disability,http://opendatacommunities.org/id/county-council/staffordshire  ,
Staffordshire County Council,DIPS,,06/12/2018,1980.00,Direct Payments Other,Direct Payments Other,http://opendatacommunities.org/id/county-council/staffordshire  ,
Staffordshire County Council,Growth Hub ERDF 2016-2019,UK Surveyors Ltd,06/12/2018,3110.64,Grants Other,Grants Other,http://opendatacommunities.org/id/county-council/staffordshire  ,
Staffordshire County Council,TSU - Design,VANTAGE CONSULTING (MIDLANDS) LTD,06/12/2018,1824.00,AGENCY STAFF,AGENCY STAFF,http://opendatacommunities.org/id/county-council/staffordshire  ,
Staffordshire County Council,TSU - Design,VANTAGE CONSULTING (MIDLANDS) LTD,06/12/2018,2310.00,AGENCY STAFF,AGENCY STAFF,http://opendatacommunities.org/id/county-council/staffordshire  ,
Staffordshire County Council,Marston Lane Yarlet,W BURTON & SONS LTD,06/12/2018,943.20,General Equipment Repair/Maint,General Equipment Repair/Maint,http://opendatacommunities.org/id/county-council/staffordshire  ,
Staffordshire County Council,Meadows School,,07/12/2018,650.00,Personal Travel Budgets,Personal Travel Budgets,http://opendatacommunities.org/id/county-council/staffordshire  ,
Staffordshire County Council,Home to school transport-main,24HR WEST SIDE TAXIS,07/12/2018,32639.28,Home School Contract Vehicles,Home School Contract Vehicles,http://opendatacommunities.org/id/county-council/staffordshire  ,
Staffordshire County Council,Hednesford Valley High,24HR WEST SIDE TAXIS,07/12/2018,4183.80,Home School Contract Vehicles,Home School Contract Vehicles,http://opendatacommunities.org/id/county-council/staffordshire  ,
Staffordshire County Council,Stafford Invoice Led Phys Disa,5 Care Services Limited,07/12/2018,7810.50,Practical Care,Practical Care,http://opendatacommunities.org/id/county-council/staffordshire  ,
Staffordshire County Council,Cannock Invoice Led Older Peop,5 Care Services Limited,07/12/2018,1397.25,Practical Care,Practical Care,http://opendatacommunities.org/id/county-council/staffordshire  ,
Staffordshire County Council,Moorlands Invoice Led Older Pe,AMG NURSING & CARE SERVICES,07/12/2018,1014.16,Practical Care,Practical Care,http://opendatacommunities.org/id/county-council/staffordshire  ,
Staffordshire County Council,Moorlands Invoice Led Older Pe,AMG NURSING & CARE SERVICES,07/12/2018,760.62,Practical Care,Practical Care,http://opendatacommunities.org/id/county-council/staffordshire  ,
Staffordshire County Council,Moorlands Invoice Led Older Pe,AMG NURSING & CARE SERVICES,07/12/2018,507.08,Practical Care,Practical Care,http://opendatacommunities.org/id/county-council/staffordshire  ,
Staffordshire County Council,Moorlands Invoice Led Older Pe,AMG NURSING & CARE SERVICES,07/12/2018,1014.16,Practical Care,Practical Care,http://opendatacommunities.org/id/county-council/staffordshire  ,
Staffordshire County Council,Moorlands Invoice Led Older Pe,AMG NURSING & CARE SERVICES,07/12/2018,507.08,Practical Care,Practical Care,http://opendatacommunities.org/id/county-council/staffordshire  ,
Staffordshire County Council,Moorlands Invoice Led Older Pe,AMG NURSING & CARE SERVICES,07/12/2018,1014.16,Practical Care,Practical Care,http://opendatacommunities.org/id/county-council/staffordshire  ,
Staffordshire County Council,Moorlands Invoice Led Older Pe,AMG NURSING & CARE SERVICES,07/12/2018,507.08,Practical Care,Practical Care,http://opendatacommunities.org/id/county-council/staffordshire  ,
Staffordshire County Council,Moorlands Invoice Led Older Pe,AMG NURSING & CARE SERVICES,07/12/2018,1014.16,Practical Care,Practical Care,http://opendatacommunities.org/id/county-council/staffordshire  ,
Staffordshire County Council,Moorlands Invoice Led Older Pe,AMG NURSING & CARE SERVICES,07/12/2018,507.08,Practical Care,Practical Care,http://opendatacommunities.org/id/county-council/staffordshire  ,
Staffordshire County Council,Moorlands Invoice Led Older Pe,AMG NURSING & CARE SERVICES,07/12/2018,507.08,Practical Care,Practical Care,http://opendatacommunities.org/id/county-council/staffordshire  ,
Staffordshire County Council,Moorlands Invoice Led Older Pe,AMG NURSING & CARE SERVICES,07/12/2018,507.08,Practical Care,Practical Care,http://opendatacommunities.org/id/county-council/staffordshire  ,
Staffordshire County Council,Moorlands Invoice Led Older Pe,AMG NURSING & CARE SERVICES,07/12/2018,507.08,Practical Care,Practical Care,http://opendatacommunities.org/id/county-council/staffordshire  ,
Staffordshire County Council,Moorlands Invoice Led Older Pe,AMG NURSING & CARE SERVICES,07/12/2018,507.08,Practical Care,Practical Care,http://opendatacommunities.org/id/county-council/staffordshire  ,
Staffordshire County Council,Newcastle Invoice Led Older Pe,AMG NURSING & CARE SERVICES,07/12/2018,835.68,Practical Care,Practical Care,http://opendatacommunities.org/id/county-council/staffordshire  ,
Staffordshire County Council,Newcastle Invoice Led Older Pe,AMG NURSING & CARE SERVICES,07/12/2018,731.22,Practical Care,Practical Care,http://opendatacommunities.org/id/county-council/staffordshire  ,
Staffordshire County Council,Newcastle Invoice Led Older Pe,AMG NURSING & CARE SERVICES,07/12/2018,731.22,Practical Care,Practical Care,http://opendatacommunities.org/id/county-council/staffordshire  ,
Staffordshire County Council,Newcastle Invoice Led Older Pe,AMG NURSING & CARE SERVICES,07/12/2018,974.96,Practical Care,Practical Care,http://opendatacommunities.org/id/county-council/staffordshire  ,
Staffordshire County Council,Moorlands Invoice Led Older Pe,AMG NURSING & CARE SERVICES,07/12/2018,507.08,Practical Care,Practical Care,http://opendatacommunities.org/id/county-council/staffordshire  ,
Staffordshire County Council,Moorlands Invoice Led Older Pe,AMG NURSING & CARE SERVICES,07/12/2018,507.08,Practical Care,Practical Care,http://opendatacommunities.org/id/county-council/staffordshire  ,
Staffordshire County Council,Moorlands Invoice Led Older Pe,AMG NURSING & CARE SERVICES,07/12/2018,974.96,Practical Care,Practical Care,http://opendatacommunities.org/id/county-council/staffordshire  ,
Staffordshire County Council,Newcastle Invoice Led Older Pe,AMG NURSING & CARE SERVICES,07/12/2018,1014.16,Practical Care,Practical Care,http://opendatacommunities.org/id/county-council/staffordshire  ,
Staffordshire County Council,Moorlands Invoice Led Older Pe,AMG NURSING & CARE SERVICES,07/12/2018,974.96,Practical Care,Practical Care,http://opendatacommunities.org/id/county-council/staffordshire  ,
Staffordshire County Council,Newcastle Invoice Led Older Pe,AMG NURSING & CARE SERVICES,07/12/2018,1014.16,Practical Care,Practical Care,http://opendatacommunities.org/id/county-council/staffordshire  ,
Staffordshire County Council,East Staffs Invoice Led Older ,AMG NURSING & CARE SERVICES,07/12/2018,1014.16,Practical Care,Practical Care,http://opendatacommunities.org/id/county-council/staffordshire  ,
Staffordshire County Council,East Staffs Invoice Led Older ,AMG NURSING & CARE SERVICES,07/12/2018,1014.16,Practical Care,Practical Care,http://opendatacommunities.org/id/county-council/staffordshire  ,
Staffordshire County Council,East Staffs Invoice Led Older ,AMG NURSING & CARE SERVICES,07/12/2018,731.22,Practical Care,Practical Care,http://opendatacommunities.org/id/county-council/staffordshire  ,
Staffordshire County Council,East Staffs Invoice Led Older ,AMG NURSING & CARE SERVICES,07/12/2018,731.22,Practical Care,Practical Care,http://opendatacommunities.org/id/county-council/staffordshire  ,
Staffordshire County Council,East Staffs Invoice Led Older ,AMG NURSING & CARE SERVICES,07/12/2018,1014.16,Practical Care,Practical Care,http://opendatacommunities.org/id/county-council/staffordshire  ,
Staffordshire County Council,East Staffs Invoice Led Older ,AMG NURSING & CARE SERVICES,07/12/2018,1014.16,Practical Care,Practical Care,http://opendatacommunities.org/id/county-council/staffordshire  ,
Staffordshire County Council,Stafford Invoice Led Older Peo,AMG NURSING & CARE SERVICES,07/12/2018,1218.70,Practical Care,Practical Care,http://opendatacommunities.org/id/county-council/staffordshire  ,
Staffordshire County Council,Stafford Invoice Led Older Peo,AMG NURSING & CARE SERVICES,07/12/2018,1218.70,Practical Care,Practical Care,http://opendatacommunities.org/id/county-council/staffordshire  ,
Staffordshire County Council,Stafford Invoice Led Older Peo,AMG NURSING & CARE SERVICES,07/12/2018,507.08,Practical Care,Practical Care,http://opendatacommunities.org/id/county-council/staffordshire  ,
Staffordshire County Council,Stafford Invoice Led Older Peo,AMG NURSING & CARE SERVICES,07/12/2018,507.08,Practical Care,Practical Care,http://opendatacommunities.org/id/county-council/staffordshire  ,
Staffordshire County Council,Newcastle Invoice Led Physical,AMG NURSING & CARE SERVICES,07/12/2018,1014.16,Practical Care,Practical Care,http://opendatacommunities.org/id/county-council/staffordshire  ,
Staffordshire County Council,Newcastle Invoice Led Physical,AMG NURSING & CARE SERVICES,07/12/2018,1014.16,Practical Care,Practical Care,http://opendatacommunities.org/id/county-council/staffordshire  ,
Staffordshire County Council,Newcastle Invoice Led Physical,AMG NURSING & CARE SERVICES,07/12/2018,507.08,Practical Care,Practical Care,http://opendatacommunities.org/id/county-council/staffordshire  ,
Staffordshire County Council,Stafford Invoice Led Older Peo,Angel Homecaring,07/12/2018,519.55,Practical Care,Practical Care,http://opendatacommunities.org/id/county-council/staffordshire  ,
Staffordshire County Council,Independent School Fee Special,ARC SCHOOL,07/12/2018,2520.00,Fees to Independent Schools,Fees to Independent Schools,http://opendatacommunities.org/id/county-council/staffordshire  ,
Staffordshire County Council,Moorlands Invoice Led Older Pe,Assist DC Ltd TA Choose Your Care,07/12/2018,507.15,Practical Care,Practical Care,http://opendatacommunities.org/id/county-council/staffordshire  ,
Staffordshire County Council,Moorlands Invoice Led Older Pe,Assist DC Ltd TA Choose Your Care,07/12/2018,610.00,Practical Care,Practical Care,http://opendatacommunities.org/id/county-council/staffordshire  ,
Staffordshire County Council,Moorlands Invoice Led Older Pe,Assist DC Ltd TA Choose Your Care,07/12/2018,630.00,Practical Care,Practical Care,http://opendatacommunities.org/id/county-council/staffordshire  ,
Staffordshire County Council,Newcastle Invoice Led Older Pe,Assist DC Ltd TA Choose Your Care,07/12/2018,1100.40,Practical Care,Practical Care,http://opendatacommunities.org/id/county-council/staffordshire  ,
Staffordshire County Council,Newcastle Invoice Led Older Pe,Assist DC Ltd TA Choose Your Care,07/12/2018,1105.42,Practical Care,Practical Care,http://opendatacommunities.org/id/county-council/staffordshire  ,
Staffordshire County Council,Speed Awareness,BOUNDARY SCHOOL OF MOTORING,07/12/2018,780.00,DRIVING INSTRUCTION,DRIVING INSTRUCTION,http://opendatacommunities.org/id/county-council/staffordshire  ,
Staffordshire County Council,HRSSC,Busy Bees Benefits Ltd,07/12/2018,64220.10,Extra District Charges Other,Extra District Charges Other,http://opendatacommunities.org/id/county-council/staffordshire  ,
Staffordshire County Council,Tamworth LD Team,Care First,07/12/2018,990.00,Day Care,Day Care,http://opendatacommunities.org/id/county-council/staffordshire  ,
Staffordshire County Council,LEP Core,CITY OF STOKE ON TRENT,07/12/2018,50000.00,Advertising,Advertising,http://opendatacommunities.org/id/county-council/staffordshire  ,
Staffordshire County Council,Central Winter Maintenance Wor,COMPASS MINERALS UK LTD,07/12/2018,1420.34,Winter Salt Purchases,Winter Salt Purchases,http://opendatacommunities.org/id/county-council/staffordshire  ,
Staffordshire County Council,New School - Land Henhurst Rid,Corona Energy Retail 4 Ltd,07/12/2018,1676.70,Construction Works,Construction Works,http://opendatacommunities.org/id/county-council/staffordshire  ,
Staffordshire County Council,Stafford Invoice Led Phys Disa,CSPC Healthcare Ltd,07/12/2018,507.15,Practical Care,Practical Care,http://opendatacommunities.org/id/county-council/staffordshire  ,
Staffordshire County Council,HRSSC,CYCLESCHEME,07/12/2018,1175.00,Contingency,Contingency,http://opendatacommunities.org/id/county-council/staffordshire  ,
Staffordshire County Council,Childcare,D BIRK,07/12/2018,2400.00,Legal Costs and Stamp Duty,Legal Costs and Stamp Duty,http://opendatacommunities.org/id/county-council/staffordshire  ,
Staffordshire County Council,E Staffs LD Team,D E Healthcare,07/12/2018,2418.07,Supported Group Care,Supported Group Care,http://opendatacommunities.org/id/county-council/staffordshire  ,
Staffordshire County Council,E Staffs LD Team,D E Healthcare,07/12/2018,3054.68,Supported Group Care,Supported Group Care,http://opendatacommunities.org/id/county-council/staffordshire  ,
Staffordshire County Council,E Staffs LD Team,D E Healthcare,07/12/2018,5026.68,Supported Group Care,Supported Group Care,http://opendatacommunities.org/id/county-council/staffordshire  ,
Staffordshire County Council,E Staffs LD Team,D E Healthcare,07/12/2018,4966.88,Supported Group Care,Supported Group Care,http://opendatacommunities.org/id/county-council/staffordshire  ,
Staffordshire County Council,E Staffs LD Team,D E Healthcare,07/12/2018,2462.92,Supported Group Care,Supported Group Care,http://opendatacommunities.org/id/county-council/staffordshire  ,
Staffordshire County Council,E Staffs LD Team,D E Healthcare,07/12/2018,3819.58,Supported Group Care,Supported Group Care,http://opendatacommunities.org/id/county-council/staffordshire  ,
Staffordshire County Council,Stafford LD Team,D E Healthcare,07/12/2018,2414.28,Supported Group Care,Supported Group Care,http://opendatacommunities.org/id/county-council/staffordshire  ,
Staffordshire County Council,E Staffs LD Team,D E Healthcare,07/12/2018,3580.38,Supported Group Care,Supported Group Care,http://opendatacommunities.org/id/county-council/staffordshire  ,
Staffordshire County Council,Stat-OOC transport,,07/12/2018,1125.00,Personal Travel Budgets,Personal Travel Budgets,http://opendatacommunities.org/id/county-council/staffordshire  ,
Staffordshire County Council,Tillington Manor Int remodel,DAWKES & CO LTD,07/12/2018,11956.44,Construction Works,Construction Works,http://opendatacommunities.org/id/county-council/staffordshire  ,
Staffordshire County Council,East Staffs Invoice Led Older ,Desire Care,07/12/2018,1225.90,Practical Care,Practical Care,http://opendatacommunities.org/id/county-council/staffordshire  ,
Staffordshire County Council,3 Deanery - Building Extension,DeVille and Lear Ltd,07/12/2018,11390.40,Construction Works,Construction Works,http://opendatacommunities.org/id/county-council/staffordshire  ,
Staffordshire County Council,Business Support,DODS PARLIAMENTARY COMM LTD,07/12/2018,507.60,Conference Fees,Conference Fees,http://opendatacommunities.org/id/county-council/staffordshire  ,
Staffordshire County Council,Security Print,Elliott Baxter & Company Ltd,07/12/2018,923.99,General Equipment Repair/Maint,General Equipment Repair/Maint,http://opendatacommunities.org/id/county-council/staffordshire  ,
Staffordshire County Council,Stafford Invoice Led Phys Disa,Embrace Quality Care,07/12/2018,527.00,Practical Care,Practical Care,http://opendatacommunities.org/id/county-council/staffordshire  ,
Staffordshire County Council,Stafford Invoice Led Phys Disa,Embrace Quality Care,07/12/2018,527.00,Practical Care,Practical Care,http://opendatacommunities.org/id/county-council/staffordshire  ,
Staffordshire County Council,Virtual School - Pupil Premium,Emotion Coaching UK Limited,07/12/2018,4170.00,Conference Fees,Conference Fees,http://opendatacommunities.org/id/county-council/staffordshire  ,
Staffordshire County Council,Improvements Contracts,Entcorp UK Ltd,07/12/2018,7830.00,SOFTWARE LICENCES,SOFTWARE LICENCES,http://opendatacommunities.org/id/county-council/staffordshire  ,
Staffordshire County Council,County,Fleet Factors Ltd,07/12/2018,4323.77,CFC Parts Issues - County,CFC Parts Issues - County,http://opendatacommunities.org/id/county-council/staffordshire  ,
Staffordshire County Council,Walton Priory 96 Place Expansi,FORDS OF BLYTHE BRIDGE LTD,07/12/2018,141627.48,Construction Works,Construction Works,http://opendatacommunities.org/id/county-council/staffordshire  ,
Staffordshire County Council,Libraries Live,Geoff Broadway,07/12/2018,1500.00,other services external,other services external,http://opendatacommunities.org/id/county-council/staffordshire  ,
Staffordshire County Council,Newcastle MH Team U65,Gray Healthcare Ltd,07/12/2018,7923.20,Supported Group Care,Supported Group Care,http://opendatacommunities.org/id/county-council/staffordshire  ,
Staffordshire County Council,Moorlands Invoice Led Older Pe,H I C A,07/12/2018,1316.00,Practical Care,Practical Care,http://opendatacommunities.org/id/county-council/staffordshire  ,
Staffordshire County Council,Moorlands Invoice Led Older Pe,H I C A,07/12/2018,560.00,Practical Care,Practical Care,http://opendatacommunities.org/id/county-council/staffordshire  ,
Staffordshire County Council,Moorlands Invoice Led Older Pe,H I C A,07/12/2018,1008.00,Practical Care,Practical Care,http://opendatacommunities.org/id/county-council/staffordshire  ,
Staffordshire County Council,Moorlands Invoice Led Older Pe,H I C A,07/12/2018,888.00,Practical Care,Practical Care,http://opendatacommunities.org/id/county-council/staffordshire  ,
Staffordshire County Council,Moorlands Invoice Led Older Pe,H I C A,07/12/2018,528.00,Practical Care,Practical Care,http://opendatacommunities.org/id/county-council/staffordshire  ,
Staffordshire County Council,Moorlands Invoice Led Older Pe,H I C A,07/12/2018,2016.00,Practical Care,Practical Care,http://opendatacommunities.org/id/county-council/staffordshire  ,
Staffordshire County Council,Branston Road - New Sec School,HARDY SIGNS,07/12/2018,3889.20,Construction Works,Construction Works,http://opendatacommunities.org/id/county-council/staffordshire  ,
Staffordshire County Council,Learning Disabilities Unalloc,HAS Technology Ltd,07/12/2018,27868.15,Practical Care,Practical Care,http://opendatacommunities.org/id/county-council/staffordshire  ,
Staffordshire County Council,Tamworth Invoice Led Older Peo,Hills Angels Homecare,07/12/2018,507.15,Practical Care,Practical Care,http://opendatacommunities.org/id/county-council/staffordshire  ,
Staffordshire County Council,Lichfield Invoice Led Older Pe,Hills Angels Homecare,07/12/2018,563.50,Practical Care,Practical Care,http://opendatacommunities.org/id/county-council/staffordshire  ,
Staffordshire County Council,County Fleet Care Purchase Of ,HRVS GROUP LTD,07/12/2018,25510.00,Vehicle Purchase,Vehicle Purchase,http://opendatacommunities.org/id/county-council/staffordshire  ,
Staffordshire County Council,County Fleet Care Purchase Of ,HRVS GROUP LTD,07/12/2018,25510.00,Vehicle Purchase,Vehicle Purchase,http://opendatacommunities.org/id/county-council/staffordshire  ,
Staffordshire County Council,Meals,I CARE GB LTD,07/12/2018,612.85,Comm Care Meals,Comm Care Meals,http://opendatacommunities.org/id/county-council/staffordshire  ,
Staffordshire County Council,Cannock Invoice Led Older Peop,ICare (GB) Ltd,07/12/2018,754.40,Practical Care,Practical Care,http://opendatacommunities.org/id/county-council/staffordshire  ,
Staffordshire County Council,Newcastle LD Team,Jump 2 Independence Ltd,07/12/2018,573.54,Supported Group Care,Supported Group Care,http://opendatacommunities.org/id/county-council/staffordshire  ,
Staffordshire County Council,Newcastle LD Team,Jump 2 Independence Ltd,07/12/2018,1560.64,Supported Group Care,Supported Group Care,http://opendatacommunities.org/id/county-council/staffordshire  ,
Staffordshire County Council,Newcastle LD Team,Jump 2 Independence Ltd,07/12/2018,2083.14,Supported Group Care,Supported Group Care,http://opendatacommunities.org/id/county-council/staffordshire  ,
Staffordshire County Council,Newcastle LD Team,Jump 2 Independence Ltd,07/12/2018,1354.39,Supported Group Care,Supported Group Care,http://opendatacommunities.org/id/county-council/staffordshire  ,
Staffordshire County Council,Newcastle LD Team,Jump 2 Independence Ltd,07/12/2018,1962.82,Supported Group Care,Supported Group Care,http://opendatacommunities.org/id/county-council/staffordshire  ,
Staffordshire County Council,Newcastle LD Team,Jump 2 Independence Ltd,07/12/2018,1474.70,Supported Group Care,Supported Group Care,http://opendatacommunities.org/id/county-council/staffordshire  ,
Staffordshire County Council,Newcastle LD Team,Jump 2 Independence Ltd,07/12/2018,2511.86,Supported Group Care,Supported Group Care,http://opendatacommunities.org/id/county-council/staffordshire  ,
Staffordshire County Council,East Staffs Invoice Led Older ,Kind Hearts Care,07/12/2018,1397.98,Practical Care,Practical Care,http://opendatacommunities.org/id/county-council/staffordshire  ,
Staffordshire County Council,East Staffs Invoice Led Older ,Kind Hearts Care,07/12/2018,732.25,Practical Care,Practical Care,http://opendatacommunities.org/id/county-council/staffordshire  ,
Staffordshire County Council,East Staffs Invoice Led Older ,Kind Hearts Care,07/12/2018,538.00,Practical Care,Practical Care,http://opendatacommunities.org/id/county-council/staffordshire  ,
Staffordshire County Council,Lichfield Invoice Led Older Pe,Kind Hearts Care,07/12/2018,805.00,Practical Care,Practical Care,http://opendatacommunities.org/id/county-council/staffordshire  ,
Staffordshire County Council,East Staffs Invoice Led Older ,Kind Hearts Care,07/12/2018,1056.60,Practical Care,Practical Care,http://opendatacommunities.org/id/county-council/staffordshire  ,
Staffordshire County Council,East Staffs Invoice Led Older ,Kind Hearts Care,07/12/2018,1852.00,Practical Care,Practical Care,http://opendatacommunities.org/id/county-council/staffordshire  ,
Staffordshire County Council,Keele Ic5,KPL Landscapes Ltd,07/12/2018,1173.20,Construction Works,Construction Works,http://opendatacommunities.org/id/county-council/staffordshire  ,
Staffordshire County Council,Street Lighting PFI Scheme,LIGHTING FOR STAFFORDSHIRE LTD,07/12/2018,1271374.58,PFI - Street Lighting,PFI - Street Lighting,http://opendatacommunities.org/id/county-council/staffordshire  ,
Staffordshire County Council,Stat-OOC transport,,07/12/2018,785.40,Personal Travel Budgets,Personal Travel Budgets,http://opendatacommunities.org/id/county-council/staffordshire  ,
Staffordshire County Council,1538 Unit 6 Astonfields Ind.Es,M R & J E FELIX,07/12/2018,2437.50,Rent / Lease Of Premises,Rent / Lease Of Premises,http://opendatacommunities.org/id/county-council/staffordshire  ,
Staffordshire County Council,Home to school transport-main,MAJESTIC TRAVEL,07/12/2018,9960.00,Home School Contract Vehicles,Home School Contract Vehicles,http://opendatacommunities.org/id/county-council/staffordshire  ,
Staffordshire County Council,Independent School Fee Special,MAPLE HAYES SCHOOL,07/12/2018,6510.20,Fees to Independent Schools,Fees to Independent Schools,http://opendatacommunities.org/id/county-council/staffordshire  ,
Staffordshire County Council,Independent School Fee Special,MAPLE HAYES SCHOOL,07/12/2018,6510.20,Fees to Independent Schools,Fees to Independent Schools,http://opendatacommunities.org/id/county-council/staffordshire  ,
Staffordshire County Council,Independent School Fee Special,MAPLE HAYES SCHOOL,07/12/2018,6510.20,Fees to Independent Schools,Fees to Independent Schools,http://opendatacommunities.org/id/county-council/staffordshire  ,
Staffordshire County Council,Independent School Fee Special,MAPLE HAYES SCHOOL,07/12/2018,6510.20,Fees to Independent Schools,Fees to Independent Schools,http://opendatacommunities.org/id/county-council/staffordshire  ,
Staffordshire County Council,Independent School Fee Special,MAPLE HAYES SCHOOL,07/12/2018,6510.20,Fees to Independent Schools,Fees to Independent Schools,http://opendatacommunities.org/id/county-council/staffordshire  ,
Staffordshire County Council,Independent School Fee Special,MAPLE HAYES SCHOOL,07/12/2018,6510.20,Fees to Independent Schools,Fees to Independent Schools,http://opendatacommunities.org/id/county-council/staffordshire  ,
Staffordshire County Council,Independent School Fee Special,MAPLE HAYES SCHOOL,07/12/2018,6510.20,Fees to Independent Schools,Fees to Independent Schools,http://opendatacommunities.org/id/county-council/staffordshire  ,
Staffordshire County Council,Independent School Fee Special,MAPLE HAYES SCHOOL,07/12/2018,6510.20,Fees to Independent Schools,Fees to Independent Schools,http://opendatacommunities.org/id/county-council/staffordshire  ,
Staffordshire County Council,Independent School Fee Special,MAPLE HAYES SCHOOL,07/12/2018,6510.20,Fees to Independent Schools,Fees to Independent Schools,http://opendatacommunities.org/id/county-council/staffordshire  ,
Staffordshire County Council,Independent School Fee Special,MAPLE HAYES SCHOOL,07/12/2018,6510.20,Fees to Independent Schools,Fees to Independent Schools,http://opendatacommunities.org/id/county-council/staffordshire  ,
Staffordshire County Council,Independent School Fee Special,MAPLE HAYES SCHOOL,07/12/2018,6510.20,Fees to Independent Schools,Fees to Independent Schools,http://opendatacommunities.org/id/county-council/staffordshire  ,
Staffordshire County Council,Independent School Fee Special,MAPLE HAYES SCHOOL,07/12/2018,6510.20,Fees to Independent Schools,Fees to Independent Schools,http://opendatacommunities.org/id/county-council/staffordshire  ,
Staffordshire County Council,Independent School Fee Special,MAPLE HAYES SCHOOL,07/12/2018,6510.20,Fees to Independent Schools,Fees to Independent Schools,http://opendatacommunities.org/id/county-council/staffordshire  ,
Staffordshire County Council,Independent School Fee Special,MAPLE HAYES SCHOOL,07/12/2018,6510.20,Fees to Independent Schools,Fees to Independent Schools,http://opendatacommunities.org/id/county-council/staffordshire  ,
Staffordshire County Council,Independent School Fee Special,MAPLE HAYES SCHOOL,07/12/2018,6510.20,Fees to Independent Schools,Fees to Independent Schools,http://opendatacommunities.org/id/county-council/staffordshire  ,
Staffordshire County Council,Independent School Fee Special,MAPLE HAYES SCHOOL,07/12/2018,6510.20,Fees to Independent Schools,Fees to Independent Schools,http://opendatacommunities.org/id/county-council/staffordshire  ,
Staffordshire County Council,Independent School Fee Special,MAPLE HAYES SCHOOL,07/12/2018,6510.20,Fees to Independent Schools,Fees to Independent Schools,http://opendatacommunities.org/id/county-council/staffordshire  ,
Staffordshire County Council,Independent School Fee Special,MAPLE HAYES SCHOOL,07/12/2018,6510.20,Fees to Independent Schools,Fees to Independent Schools,http://opendatacommunities.org/id/county-council/staffordshire  ,
Staffordshire County Council,Independent School Fee Special,MAPLE HAYES SCHOOL,07/12/2018,6510.20,Fees to Independent Schools,Fees to Independent Schools,http://opendatacommunities.org/id/county-council/staffordshire  ,
Staffordshire County Council,Independent School Fee Special,MAPLE HAYES SCHOOL,07/12/2018,6510.20,Fees to Independent Schools,Fees to Independent Schools,http://opendatacommunities.org/id/county-council/staffordshire  ,
Staffordshire County Council,Independent School Fee Special,MAPLE HAYES SCHOOL,07/12/2018,4810.20,Fees to Independent Schools,Fees to Independent Schools,http://opendatacommunities.org/id/county-council/staffordshire  ,
Staffordshire County Council,Independent School Fee Special,MAPLE HAYES SCHOOL,07/12/2018,6510.20,Fees to Independent Schools,Fees to Independent Schools,http://opendatacommunities.org/id/county-council/staffordshire  ,
Staffordshire County Council,Independent School Fee Special,MAPLE HAYES SCHOOL,07/12/2018,6510.20,Fees to Independent Schools,Fees to Independent Schools,http://opendatacommunities.org/id/county-council/staffordshire  ,
Staffordshire County Council,Independent School Fee Special,MAPLE HAYES SCHOOL,07/12/2018,6510.20,Fees to Independent Schools,Fees to Independent Schools,http://opendatacommunities.org/id/county-council/staffordshire  ,
Staffordshire County Council,Independent School Fee Special,MAPLE HAYES SCHOOL,07/12/2018,6510.20,Fees to Independent Schools,Fees to Independent Schools,http://opendatacommunities.org/id/county-council/staffordshire  ,
Staffordshire County Council,Independent School Fee Special,MAPLE HAYES SCHOOL,07/12/2018,6510.20,Fees to Independent Schools,Fees to Independent Schools,http://opendatacommunities.org/id/county-council/staffordshire  ,
Staffordshire County Council,Independent School Fee Special,MAPLE HAYES SCHOOL,07/12/2018,6510.20,Fees to Independent Schools,Fees to Independent Schools,http://opendatacommunities.org/id/county-council/staffordshire  ,
Staffordshire County Council,Independent School Fee Special,MAPLE HAYES SCHOOL,07/12/2018,6510.20,Fees to Independent Schools,Fees to Independent Schools,http://opendatacommunities.org/id/county-council/staffordshire  ,
Staffordshire County Council,Independent School Fee Special,MAPLE HAYES SCHOOL,07/12/2018,4810.20,Fees to Independent Schools,Fees to Independent Schools,http://opendatacommunities.org/id/county-council/staffordshire  ,
Staffordshire County Council,Independent School Fee Special,MAPLE HAYES SCHOOL,07/12/2018,4810.20,Fees to Independent Schools,Fees to Independent Schools,http://opendatacommunities.org/id/county-council/staffordshire  ,
Staffordshire County Council,Independent School Fee Special,MAPLE HAYES SCHOOL,07/12/2018,4810.20,Fees to Independent Schools,Fees to Independent Schools,http://opendatacommunities.org/id/county-council/staffordshire  ,
Staffordshire County Council,Independent School Fee Special,MAPLE HAYES SCHOOL,07/12/2018,4810.20,Fees to Independent Schools,Fees to Independent Schools,http://opendatacommunities.org/id/county-council/staffordshire  ,
Staffordshire County Council,Independent School Fee Special,MAPLE HAYES SCHOOL,07/12/2018,6510.20,Fees to Independent Schools,Fees to Independent Schools,http://opendatacommunities.org/id/county-council/staffordshire  ,
Staffordshire County Council,Independent School Fee Special,MAPLE HAYES SCHOOL,07/12/2018,6510.20,Fees to Independent Schools,Fees to Independent Schools,http://opendatacommunities.org/id/county-council/staffordshire  ,
Staffordshire County Council,Independent School Fee Special,MAPLE HAYES SCHOOL,07/12/2018,4810.20,Fees to Independent Schools,Fees to Independent Schools,http://opendatacommunities.org/id/county-council/staffordshire  ,
Staffordshire County Council,Independent School Fee Special,MAPLE HAYES SCHOOL,07/12/2018,4810.20,Fees to Independent Schools,Fees to Independent Schools,http://opendatacommunities.org/id/county-council/staffordshire  ,
Staffordshire County Council,Independent School Fee Special,MAPLE HAYES SCHOOL,07/12/2018,4810.20,Fees to Independent Schools,Fees to Independent Schools,http://opendatacommunities.org/id/county-council/staffordshire  ,
Staffordshire County Council,Independent School Fee Special,MAPLE HAYES SCHOOL,07/12/2018,4810.20,Fees to Independent Schools,Fees to Independent Schools,http://opendatacommunities.org/id/county-council/staffordshire  ,
Staffordshire County Council,Independent School Fee Special,MAPLE HAYES SCHOOL,07/12/2018,4810.20,Fees to Independent Schools,Fees to Independent Schools,http://opendatacommunities.org/id/county-council/staffordshire  ,
Staffordshire County Council,Independent School Fee Special,MAPLE HAYES SCHOOL,07/12/2018,4810.20,Fees to Independent Schools,Fees to Independent Schools,http://opendatacommunities.org/id/county-council/staffordshire  ,
Staffordshire County Council,Independent School Fee Special,MAPLE HAYES SCHOOL,07/12/2018,4810.20,Fees to Independent Schools,Fees to Independent Schools,http://opendatacommunities.org/id/county-council/staffordshire  ,
Staffordshire County Council,Independent School Fee Special,MAPLE HAYES SCHOOL,07/12/2018,4810.20,Fees to Independent Schools,Fees to Independent Schools,http://opendatacommunities.org/id/county-council/staffordshire  ,
Staffordshire County Council,Independent School Fee Special,MAPLE HAYES SCHOOL,07/12/2018,4810.20,Fees to Independent Schools,Fees to Independent Schools,http://opendatacommunities.org/id/county-council/staffordshire  ,
Staffordshire County Council,East Staffs Invoice Led Phys D,MEDILINE NURSES,07/12/2018,5335.68,Practical Care,Practical Care,http://opendatacommunities.org/id/county-council/staffordshire  ,
Staffordshire County Council,CMU - Corporate Support,MIND,07/12/2018,864.30,Conference Fees,Conference Fees,http://opendatacommunities.org/id/county-council/staffordshire  ,
Staffordshire County Council,Project A - A50 Growth Corrido,Movecorp,07/12/2018,702.00,Construction Works,Construction Works,http://opendatacommunities.org/id/county-council/staffordshire  ,
Staffordshire County Council,Speed Awareness,P GORING,07/12/2018,1040.00,DRIVING INSTRUCTION,DRIVING INSTRUCTION,http://opendatacommunities.org/id/county-council/staffordshire  ,
Staffordshire County Council,South Staffs Coroner,P R ACLAND,07/12/2018,1642.40,INQ EXPS S STAFFS,INQ EXPS S STAFFS,http://opendatacommunities.org/id/county-council/staffordshire  ,
Staffordshire County Council,Printers Staffordshire Place,Premier Paper Group Ltd,07/12/2018,1494.00,Stationery General,Stationery General,http://opendatacommunities.org/id/county-council/staffordshire  ,
Staffordshire County Council,Other Corporate Items,RAIL SETTLEMENT PLAN LTD,07/12/2018,4883.80,Public Transport Other,Public Transport Other,http://opendatacommunities.org/id/county-council/staffordshire  ,
Staffordshire County Council,Independent School Fee Nursery,Reach for the Stars Nursery,07/12/2018,635.70,Grants to third parties,Grants to third parties,http://opendatacommunities.org/id/county-council/staffordshire  ,
Staffordshire County Council,Speed Awareness,S CHIPMAN,07/12/2018,520.00,DRIVING INSTRUCTION,DRIVING INSTRUCTION,http://opendatacommunities.org/id/county-council/staffordshire  ,
Staffordshire County Council,Speed Awareness,S CHIPMAN,07/12/2018,520.00,DRIVING INSTRUCTION,DRIVING INSTRUCTION,http://opendatacommunities.org/id/county-council/staffordshire  ,
Staffordshire County Council,Speed Awareness,S CHIPMAN,07/12/2018,520.00,DRIVING INSTRUCTION,DRIVING INSTRUCTION,http://opendatacommunities.org/id/county-council/staffordshire  ,
Staffordshire County Council,Speed Awareness,S CHIPMAN,07/12/2018,520.00,DRIVING INSTRUCTION,DRIVING INSTRUCTION,http://opendatacommunities.org/id/county-council/staffordshire  ,
Staffordshire County Council,Speed Awareness,S CHIPMAN,07/12/2018,520.00,DRIVING INSTRUCTION,DRIVING INSTRUCTION,http://opendatacommunities.org/id/county-council/staffordshire  ,
Staffordshire County Council,SStaffs Invoice Led Older Peop,Sevacare,07/12/2018,1014.30,Practical Care,Practical Care,http://opendatacommunities.org/id/county-council/staffordshire  ,
Staffordshire County Council,7338 Venture House Davidson Rd,SEVERN TRENT WATER LTD,07/12/2018,2032.02,Day to Day Int Wall Door etc,Day to Day Int Wall Door etc,http://opendatacommunities.org/id/county-council/staffordshire  ,
Staffordshire County Council,Stafford Western Access Rd 13/,SEVERN TRENT WATER LTD,07/12/2018,538.52,Utilities Construction,Utilities Construction,http://opendatacommunities.org/id/county-council/staffordshire  ,
Staffordshire County Council,Adoption Support Fund,Social Care Assessment Services Ltd,07/12/2018,7200.00,PROFESSIONAL FEES,PROFESSIONAL FEES,http://opendatacommunities.org/id/county-council/staffordshire  ,
Staffordshire County Council,Occupational Health Unit,SOUTH STAFFS & SHROPS H'CARE NHS FT,07/12/2018,1944.00,OTHER HIRED SERVICES,OTHER HIRED SERVICES,http://opendatacommunities.org/id/county-council/staffordshire  ,
Staffordshire County Council,First Response Team,Specialist Computer Centres Ltd,07/12/2018,852.29,Purchase of Hardware,Purchase of Hardware,http://opendatacommunities.org/id/county-council/staffordshire  ,
Staffordshire County Council,Infrastructure Project,Specialist Computer Centres Ltd,07/12/2018,2910.00,Computer Equipment purchase,Computer Equipment purchase,http://opendatacommunities.org/id/county-council/staffordshire  ,
Staffordshire County Council,ICT Service Management,Specialist Computer Centres Ltd,07/12/2018,4110.00,AGENCY STAFF,AGENCY STAFF,http://opendatacommunities.org/id/county-council/staffordshire  ,
Staffordshire County Council,Lichfield Library Relocation,St Marys in the Market Square,07/12/2018,174689.40,Construction Works,Construction Works,http://opendatacommunities.org/id/county-council/staffordshire  ,
Staffordshire County Council,Independent School Fee Nursery,St Thomas Church Playgroup,07/12/2018,674.80,Grants to third parties,Grants to third parties,http://opendatacommunities.org/id/county-council/staffordshire  ,
Staffordshire County Council,Pooled Accom Central Charges,Stark Software International Ltd,07/12/2018,681.91,Energy Costs budget Only,Energy Costs budget Only,http://opendatacommunities.org/id/county-council/staffordshire  ,
Staffordshire County Council,Tamworth Invoice Led Older Peo,Tamworth Home Care Ltd,07/12/2018,772.80,Practical Care,Practical Care,http://opendatacommunities.org/id/county-council/staffordshire  ,
Staffordshire County Council,East Staffs Invoice Led Phys D,TLC Homecare Services,07/12/2018,657.50,Practical Care,Practical Care,http://opendatacommunities.org/id/county-council/staffordshire  ,
Staffordshire County Council,1 STI Test & Treat,University Hospitals B'ham NHS FT,07/12/2018,1928.00,other services internal,other services internal,http://opendatacommunities.org/id/county-council/staffordshire  ,
Staffordshire County Council,1 STI Test & Treat,University Hospitals B'ham NHS FT,07/12/2018,1420.00,other services internal,other services internal,http://opendatacommunities.org/id/county-council/staffordshire  ,
Staffordshire County Council,TSU - Design,VANTAGE CONSULTING (MIDLANDS) LTD,07/12/2018,1848.00,AGENCY STAFF,AGENCY STAFF,http://opendatacommunities.org/id/county-council/staffordshire  ,
Staffordshire County Council,Libraries General,VISIGN LTD,07/12/2018,720.00,Advertising,Advertising,http://opendatacommunities.org/id/county-council/staffordshire  ,
Staffordshire County Council,Rights Of Way Improvement Plan,Westcot Contractors,07/12/2018,6316.80,Construction Works,Construction Works,http://opendatacommunities.org/id/county-council/staffordshire  ,
Staffordshire County Council,Stafford LD Team,WESTSIDE (STAFFORD) LTD,07/12/2018,1447.80,Rental of Vehicles,Rental of Vehicles,http://opendatacommunities.org/id/county-council/staffordshire  ,
Staffordshire County Council,Stafford LD Team,WESTSIDE (STAFFORD) LTD,07/12/2018,1447.80,Rental of Vehicles,Rental of Vehicles,http://opendatacommunities.org/id/county-council/staffordshire  ,
Staffordshire County Council,DIPS,Workman LLP,07/12/2018,6625.80,Rent / Lease Of Premises,Rent / Lease Of Premises,http://opendatacommunities.org/id/county-council/staffordshire  ,
Staffordshire County Council,Branston Road - New Sec School,YORKSHIRE PURCHASING ORG,07/12/2018,649.97,Furniture/Equip Purchase,Furniture/Equip Purchase,http://opendatacommunities.org/id/county-council/staffordshire  ,
Staffordshire County Council,Various,COMENSURALTD,07/12/2018,215447.29,AGENCY STAFF,AGENCY STAFF,http://opendatacommunities.org/id/county-council/staffordshire  ,
Staffordshire County Council,Nursery Education Grant,A Dewis,10/12/2018,660.24,Grants Nursery Education Pymnt,Grants Nursery Education Pymnt,http://opendatacommunities.org/id/county-council/staffordshire  ,
Staffordshire County Council,Nursery Education Grant,A Ratcliffe,10/12/2018,1279.20,Grants Nursery Education Pymnt,Grants Nursery Education Pymnt,http://opendatacommunities.org/id/county-council/staffordshire  ,
Staffordshire County Council,Nursery Education Grant,A SHAW-MATTHEWS,10/12/2018,687.73,Grants Nursery Education Pymnt,Grants Nursery Education Pymnt,http://opendatacommunities.org/id/county-council/staffordshire  ,
Staffordshire County Council,Think 2 Project,A Smith,10/12/2018,1050.00,Awards Funded Childcare Places,Awards Funded Childcare Places,http://opendatacommunities.org/id/county-council/staffordshire  ,
Staffordshire County Council,Think 2 Project,ABACUS NURSERY,10/12/2018,10637.50,Awards Funded Childcare Places,Awards Funded Childcare Places,http://opendatacommunities.org/id/county-council/staffordshire  ,
Staffordshire County Council,Nursery Education Grant,ABACUS NURSERY,10/12/2018,8665.60,Grants Nursery Education Pymnt,Grants Nursery Education Pymnt,http://opendatacommunities.org/id/county-council/staffordshire  ,
Staffordshire County Council,Think 2 Project,ACADEMY EARLY YEARS CHILDCARE LTD,10/12/2018,4072.50,Awards Funded Childcare Places,Awards Funded Childcare Places,http://opendatacommunities.org/id/county-council/staffordshire  ,
Staffordshire County Council,Nursery Education Grant,ACADEMY EARLY YEARS CHILDCARE LTD,10/12/2018,8710.77,Grants Nursery Education Pymnt,Grants Nursery Education Pymnt,http://opendatacommunities.org/id/county-council/staffordshire  ,
Staffordshire County Council,Cannock Invoice Led Phys Disab,Active Assistance,10/12/2018,1176.56,Practical Care,Practical Care,http://opendatacommunities.org/id/county-council/staffordshire  ,
Staffordshire County Council,Cannock Invoice Led Older Peop,ADVANCE HEALTHCARE UK LTD,10/12/2018,1633.45,Practical Care,Practical Care,http://opendatacommunities.org/id/county-council/staffordshire  ,
Staffordshire County Council,Cannock Chase LD Team,Affinity Trust Ltd,10/12/2018,10506.12,Supported Group Care,Supported Group Care,http://opendatacommunities.org/id/county-council/staffordshire  ,
Staffordshire County Council,Cannock Chase LD Team,Affinity Trust Ltd,10/12/2018,5840.84,Supported Group Care,Supported Group Care,http://opendatacommunities.org/id/county-council/staffordshire  ,
Staffordshire County Council,S Staffs LD Team,Affinity Trust Ltd,10/12/2018,3185.80,Supported Group Care,Supported Group Care,http://opendatacommunities.org/id/county-council/staffordshire  ,
Staffordshire County Council,Cannock Chase LD Team,Affinity Trust Ltd,10/12/2018,3548.00,Supported Group Care,Supported Group Care,http://opendatacommunities.org/id/county-council/staffordshire  ,
Staffordshire County Council,Cannock Chase LD Team,Affinity Trust Ltd,10/12/2018,4666.84,Supported Group Care,Supported Group Care,http://opendatacommunities.org/id/county-council/staffordshire  ,
Staffordshire County Council,Cannock Chase LD Team,Affinity Trust Ltd,10/12/2018,4632.16,Supported Group Care,Supported Group Care,http://opendatacommunities.org/id/county-council/staffordshire  ,
Staffordshire County Council,Cannock Chase LD Team,Affinity Trust Ltd,10/12/2018,2786.80,Supported Group Care,Supported Group Care,http://opendatacommunities.org/id/county-council/staffordshire  ,
Staffordshire County Council,Cannock Chase LD Team,Affinity Trust Ltd,10/12/2018,3083.00,Supported Group Care,Supported Group Care,http://opendatacommunities.org/id/county-council/staffordshire  ,
Staffordshire County Council,Cannock Chase LD Team,Affinity Trust Ltd,10/12/2018,2503.68,Supported Group Care,Supported Group Care,http://opendatacommunities.org/id/county-council/staffordshire  ,
Staffordshire County Council,The Deanery Penkridge,AGGREGATE INDUSTRIES UK LTD,10/12/2018,706.68,General Equipment Repair/Maint,General Equipment Repair/Maint,http://opendatacommunities.org/id/county-council/staffordshire  ,
Staffordshire County Council,Adoption Support Fund,Albyfield Ltd,10/12/2018,540.00,PROFESSIONAL FEES,PROFESSIONAL FEES,http://opendatacommunities.org/id/county-council/staffordshire  ,
Staffordshire County Council,Nursery Education Grant,ALL SAINTS KIDS CLUB,10/12/2018,1812.22,Grants Nursery Education Pymnt,Grants Nursery Education Pymnt,http://opendatacommunities.org/id/county-council/staffordshire  ,
Staffordshire County Council,Newcastle Invoice Led Physical,AMG NURSING & CARE SERVICES,10/12/2018,1014.16,Practical Care,Practical Care,http://opendatacommunities.org/id/county-council/staffordshire  ,
Staffordshire County Council,Newcastle Invoice Led Physical,AMG NURSING & CARE SERVICES,10/12/2018,507.08,Practical Care,Practical Care,http://opendatacommunities.org/id/county-council/staffordshire  ,
Staffordshire County Council,Newcastle Invoice Led Physical,AMG NURSING & CARE SERVICES,10/12/2018,974.96,Practical Care,Practical Care,http://opendatacommunities.org/id/county-council/staffordshire  ,
Staffordshire County Council,Newcastle Invoice Led Physical,AMG NURSING & CARE SERVICES,10/12/2018,870.50,Practical Care,Practical Care,http://opendatacommunities.org/id/county-council/staffordshire  ,
Staffordshire County Council,Newcastle Invoice Led Physical,AMG NURSING & CARE SERVICES,10/12/2018,974.96,Practical Care,Practical Care,http://opendatacommunities.org/id/county-council/staffordshire  ,
Staffordshire County Council,Think 2 Project,ARGYLE PRE SCHOOL NURSERY,10/12/2018,3667.50,Awards Funded Childcare Places,Awards Funded Childcare Places,http://opendatacommunities.org/id/county-council/staffordshire  ,
Staffordshire County Council,Nursery Education Grant,ARGYLE PRE SCHOOL NURSERY,10/12/2018,6901.11,Grants Nursery Education Pymnt,Grants Nursery Education Pymnt,http://opendatacommunities.org/id/county-council/staffordshire  ,
Staffordshire County Council,Nursery Education Grant,ARMITAGE PRE SCHOOL,10/12/2018,4611.08,Grants Nursery Education Pymnt,Grants Nursery Education Pymnt,http://opendatacommunities.org/id/county-council/staffordshire  ,
Staffordshire County Council,Public Transp Support & Co-ord,ARRIVA MIDLANDS LTD,10/12/2018,1431.00,Payments to Bus Operators,Payments to Bus Operators,http://opendatacommunities.org/id/county-council/staffordshire  ,
Staffordshire County Council,Case Manage Team -Central West,Atkinson Lewis,10/12/2018,1590.00,Prev Supp Legal Costs,Prev Supp Legal Costs,http://opendatacommunities.org/id/county-council/staffordshire  ,
Staffordshire County Council,Case Manage Team -Central West,Atkinson Lewis,10/12/2018,585.00,Prev Supp Legal Costs,Prev Supp Legal Costs,http://opendatacommunities.org/id/county-council/staffordshire  ,
Staffordshire County Council,Nursery Education Grant,B COOPER,10/12/2018,825.30,Grants Nursery Education Pymnt,Grants Nursery Education Pymnt,http://opendatacommunities.org/id/county-council/staffordshire  ,
Staffordshire County Council,Nursery Education Grant,Barney Bears Nursery,10/12/2018,14894.80,Grants Nursery Education Pymnt,Grants Nursery Education Pymnt,http://opendatacommunities.org/id/county-council/staffordshire  ,
Staffordshire County Council,Stock Management,Bertram Library Services,10/12/2018,1988.97,Books,Books,http://opendatacommunities.org/id/county-council/staffordshire  ,
Staffordshire County Council,Think 2 Project,Birches First School,10/12/2018,750.00,Awards Funded Childcare Places,Awards Funded Childcare Places,http://opendatacommunities.org/id/county-council/staffordshire  ,
Staffordshire County Council,Nursery Education Grant,Birches First School,10/12/2018,7869.64,Grants Nursery Education Pymnt,Grants Nursery Education Pymnt,http://opendatacommunities.org/id/county-council/staffordshire  ,
Staffordshire County Council,Think 2 Project,Birchwood Private Day Nursery,10/12/2018,2625.00,Awards Funded Childcare Places,Awards Funded Childcare Places,http://opendatacommunities.org/id/county-council/staffordshire  ,
Staffordshire County Council,Nursery Education Grant,Birchwood Private Day Nursery,10/12/2018,6963.06,Grants Nursery Education Pymnt,Grants Nursery Education Pymnt,http://opendatacommunities.org/id/county-council/staffordshire  ,
Staffordshire County Council,Brewood Educational Endowment,Blessed William Howard Schl Endwmnts,10/12/2018,5881.52,Discretionary Grants to School,Discretionary Grants to School,http://opendatacommunities.org/id/county-council/staffordshire  ,
Staffordshire County Council,Think 2 Project,BOLEY PARK PRE-SCHOOL,10/12/2018,1470.00,Awards Funded Childcare Places,Awards Funded Childcare Places,http://opendatacommunities.org/id/county-council/staffordshire  ,
Staffordshire County Council,Nursery Education Grant,BOLEY PARK PRE-SCHOOL,10/12/2018,5584.54,Grants Nursery Education Pymnt,Grants Nursery Education Pymnt,http://opendatacommunities.org/id/county-council/staffordshire  ,
Staffordshire County Council,Brewood Middle School Charity,Brewood Middle School,10/12/2018,2948.09,Educational Visits,Educational Visits,http://opendatacommunities.org/id/county-council/staffordshire  ,
Staffordshire County Council,Think 2 Project,BRIGHT BEGINNINGS DAY NURSERY,10/12/2018,1050.00,Awards Funded Childcare Places,Awards Funded Childcare Places,http://opendatacommunities.org/id/county-council/staffordshire  ,
Staffordshire County Council,Nursery Education Grant,BRIGHT BEGINNINGS DAY NURSERY,10/12/2018,12372.08,Grants Nursery Education Pymnt,Grants Nursery Education Pymnt,http://opendatacommunities.org/id/county-council/staffordshire  ,
Staffordshire County Council,Oakhill Primary School,British Gas Services (Commercial) Ltd,10/12/2018,736.79,Service/Test Gas Soundness,Service/Test Gas Soundness,http://opendatacommunities.org/id/county-council/staffordshire  ,
Staffordshire County Council,Nursery Education Grant,BROWN EDGE BUSY BEES,10/12/2018,3287.70,Grants Nursery Education Pymnt,Grants Nursery Education Pymnt,http://opendatacommunities.org/id/county-council/staffordshire  ,
Staffordshire County Council,Think 2 Project,BROWNSHORE PRE-SCHOOL PLAYGROUP,10/12/2018,1102.50,Awards Funded Childcare Places,Awards Funded Childcare Places,http://opendatacommunities.org/id/county-council/staffordshire  ,
Staffordshire County Council,Nursery Education Grant,BROWNSHORE PRE-SCHOOL PLAYGROUP,10/12/2018,1465.69,Grants Nursery Education Pymnt,Grants Nursery Education Pymnt,http://opendatacommunities.org/id/county-council/staffordshire  ,
Staffordshire County Council,Nursery Education Grant,Busy Bees at St Matthews,10/12/2018,540.00,Grants Nursery Education Pymnt,Grants Nursery Education Pymnt,http://opendatacommunities.org/id/county-council/staffordshire  ,
Staffordshire County Council,Nursery Education Grant,Busy Bees at St Matthews,10/12/2018,7074.00,Grants Nursery Education Pymnt,Grants Nursery Education Pymnt,http://opendatacommunities.org/id/county-council/staffordshire  ,
Staffordshire County Council,Think 2 Project,BUSYDAYS CHILDCARE,10/12/2018,2625.00,Awards Funded Childcare Places,Awards Funded Childcare Places,http://opendatacommunities.org/id/county-council/staffordshire  ,
Staffordshire County Council,Nursery Education Grant,C Anckaert,10/12/2018,658.27,Grants Nursery Education Pymnt,Grants Nursery Education Pymnt,http://opendatacommunities.org/id/county-council/staffordshire  ,
Staffordshire County Council,Nursery Education Grant,C Ree,10/12/2018,646.46,Grants Nursery Education Pymnt,Grants Nursery Education Pymnt,http://opendatacommunities.org/id/county-council/staffordshire  ,
Staffordshire County Council,Cannock Enterprise Centre,CALOR GAS LTD,10/12/2018,727.78,Gas,Gas,http://opendatacommunities.org/id/county-council/staffordshire  ,
Staffordshire County Council,Nursery Education Grant,Castle Primary School,10/12/2018,7592.76,Grants Nursery Education Pymnt,Grants Nursery Education Pymnt,http://opendatacommunities.org/id/county-council/staffordshire  ,
Staffordshire County Council,Think 2 Project,CHEEKY MONKEYS DAY NURSERY,10/12/2018,4200.00,Awards Funded Childcare Places,Awards Funded Childcare Places,http://opendatacommunities.org/id/county-council/staffordshire  ,
Staffordshire County Council,Nursery Education Grant,CHEEKY MONKEYS DAY NURSERY,10/12/2018,11733.06,Grants Nursery Education Pymnt,Grants Nursery Education Pymnt,http://opendatacommunities.org/id/county-council/staffordshire  ,
Staffordshire County Council,Nursery Education Grant,CHEEKY MONKEYS DAY NURSERY,10/12/2018,825.30,Grants Nursery Education Pymnt,Grants Nursery Education Pymnt,http://opendatacommunities.org/id/county-council/staffordshire  ,
Staffordshire County Council,Think 2 Project,CHEEKY MONKEYS DAY NURSERY,10/12/2018,2175.00,Awards Funded Childcare Places,Awards Funded Childcare Places,http://opendatacommunities.org/id/county-council/staffordshire  ,
Staffordshire County Council,Nursery Education Grant,CHEEKY MONKEYS DAY NURSERY,10/12/2018,825.30,Grants Nursery Education Pymnt,Grants Nursery Education Pymnt,http://opendatacommunities.org/id/county-council/staffordshire  ,
Staffordshire County Council,Brewood Educational Endowment,CHESLYN HAY HIGH SCHOOL,10/12/2018,10144.55,Discretionary Grants to School,Discretionary Grants to School,http://opendatacommunities.org/id/county-council/staffordshire  ,
Staffordshire County Council,Nursery Education Grant,CHESTERTON ACADEMY TRUST,10/12/2018,8583.78,Grants Nursery Education Pymnt,Grants Nursery Education Pymnt,http://opendatacommunities.org/id/county-council/staffordshire  ,
Staffordshire County Council,Think 2 Project,Chesterton Primary School,10/12/2018,2887.50,Awards Funded Childcare Places,Awards Funded Childcare Places,http://opendatacommunities.org/id/county-council/staffordshire  ,
Staffordshire County Council,Nursery Education Grant,Chesterton Primary School,10/12/2018,2554.09,Grants Nursery Education Pymnt,Grants Nursery Education Pymnt,http://opendatacommunities.org/id/county-council/staffordshire  ,
Staffordshire County Council,Newcastle Invoice Led Older Pe,CHOICES HOUSING ASSOCIATION LTD,10/12/2018,1461.09,Practical Care,Practical Care,http://opendatacommunities.org/id/county-council/staffordshire  ,
Staffordshire County Council,Nursery Education Grant,Christ The King T/A St Mary's CPS,10/12/2018,32998.80,Grants Nursery Education Pymnt,Grants Nursery Education Pymnt,http://opendatacommunities.org/id/county-council/staffordshire  ,
Staffordshire County Council,Think 2 Project,Churchfield C E Primary Academy,10/12/2018,7125.00,Awards Funded Childcare Places,Awards Funded Childcare Places,http://opendatacommunities.org/id/county-council/staffordshire  ,
Staffordshire County Council,Nursery Education Grant,Churchfield C E Primary Academy,10/12/2018,23973.60,Grants Nursery Education Pymnt,Grants Nursery Education Pymnt,http://opendatacommunities.org/id/county-council/staffordshire  ,
Staffordshire County Council,Nursery Education Grant,CHURCHFIELDS PRIM SCHOOL,10/12/2018,7406.52,Grants Nursery Education Pymnt,Grants Nursery Education Pymnt,http://opendatacommunities.org/id/county-council/staffordshire  ,
Staffordshire County Council,Nursery Education Grant,Claire Radford,10/12/2018,707.40,Grants Nursery Education Pymnt,Grants Nursery Education Pymnt,http://opendatacommunities.org/id/county-council/staffordshire  ,
Staffordshire County Council,Brewood Educational Endowment,CODSALL COMMUNITY HIGH SCHOOL,10/12/2018,10144.55,Discretionary Grants to School,Discretionary Grants to School,http://opendatacommunities.org/id/county-council/staffordshire  ,
Staffordshire County Council,Nursery Education Grant,COOGEE NURSERY SCHOOL,10/12/2018,3645.02,Grants Nursery Education Pymnt,Grants Nursery Education Pymnt,http://opendatacommunities.org/id/county-council/staffordshire  ,
Staffordshire County Council,Think 2 Project,Coton Green Church Preschool,10/12/2018,1837.50,Awards Funded Childcare Places,Awards Funded Childcare Places,http://opendatacommunities.org/id/county-council/staffordshire  ,
Staffordshire County Council,Nursery Education Grant,Coton Green Church Preschool,10/12/2018,3983.25,Grants Nursery Education Pymnt,Grants Nursery Education Pymnt,http://opendatacommunities.org/id/county-council/staffordshire  ,
Staffordshire County Council,Newcastle LD Team,CPK Empowering Families Ltd,10/12/2018,800.40,Practical Care,Practical Care,http://opendatacommunities.org/id/county-council/staffordshire  ,
Staffordshire County Council,Tamworth LD Team,Creative Choices CIC,10/12/2018,550.00,Day Care,Day Care,http://opendatacommunities.org/id/county-council/staffordshire  ,
Staffordshire County Council,Tamworth LD Team,Creative Choices CIC,10/12/2018,550.00,Day Care,Day Care,http://opendatacommunities.org/id/county-council/staffordshire  ,
Staffordshire County Council,Moorlands LD Team,Creative Support Ltd,10/12/2018,3200.16,Supported Group Care,Supported Group Care,http://opendatacommunities.org/id/county-council/staffordshire  ,
Staffordshire County Council,Moorlands LD Team,Creative Support Ltd,10/12/2018,3596.60,Supported Group Care,Supported Group Care,http://opendatacommunities.org/id/county-council/staffordshire  ,
Staffordshire County Council,Moorlands LD Team,Creative Support Ltd,10/12/2018,6724.16,Supported Group Care,Supported Group Care,http://opendatacommunities.org/id/county-council/staffordshire  ,
Staffordshire County Council,Moorlands LD Team,Creative Support Ltd,10/12/2018,5484.44,Supported Group Care,Supported Group Care,http://opendatacommunities.org/id/county-council/staffordshire  ,
Staffordshire County Council,Moorlands LD Team,Creative Support Ltd,10/12/2018,5598.08,Supported Group Care,Supported Group Care,http://opendatacommunities.org/id/county-council/staffordshire  ,
Staffordshire County Council,Moorlands LD Team,Creative Support Ltd,10/12/2018,4257.92,Supported Group Care,Supported Group Care,http://opendatacommunities.org/id/county-council/staffordshire  ,
Staffordshire County Council,Moorlands LD Team,Creative Support Ltd,10/12/2018,5223.56,Supported Group Care,Supported Group Care,http://opendatacommunities.org/id/county-council/staffordshire  ,
Staffordshire County Council,Moorlands LD Team,Creative Support Ltd,10/12/2018,7169.68,Supported Group Care,Supported Group Care,http://opendatacommunities.org/id/county-council/staffordshire  ,
Staffordshire County Council,Stafford LD Team,Creative Support Ltd,10/12/2018,4268.80,Supported Group Care,Supported Group Care,http://opendatacommunities.org/id/county-council/staffordshire  ,
Staffordshire County Council,Cannock Chase LD Team,Creative Support Ltd,10/12/2018,3534.00,Supported Group Care,Supported Group Care,http://opendatacommunities.org/id/county-council/staffordshire  ,
Staffordshire County Council,Cannock Chase LD Team,Creative Support Ltd,10/12/2018,3934.64,Supported Group Care,Supported Group Care,http://opendatacommunities.org/id/county-council/staffordshire  ,
Staffordshire County Council,Moorlands LD Team,Creative Support Ltd,10/12/2018,3000.40,Supported Group Care,Supported Group Care,http://opendatacommunities.org/id/county-council/staffordshire  ,
Staffordshire County Council,Moorlands LD Team,Creative Support Ltd,10/12/2018,2718.72,Supported Group Care,Supported Group Care,http://opendatacommunities.org/id/county-council/staffordshire  ,
Staffordshire County Council,Cannock Chase LD Team,Creative Support Ltd,10/12/2018,3920.04,Supported Group Care,Supported Group Care,http://opendatacommunities.org/id/county-council/staffordshire  ,
Staffordshire County Council,S Staffs LD Team,Creative Support Ltd,10/12/2018,8108.44,Supported Group Care,Supported Group Care,http://opendatacommunities.org/id/county-council/staffordshire  ,
Staffordshire County Council,Cannock Chase LD Team,Creative Support Ltd,10/12/2018,14644.80,Supported Group Care,Supported Group Care,http://opendatacommunities.org/id/county-council/staffordshire  ,
Staffordshire County Council,Cannock Chase LD Team,Creative Support Ltd,10/12/2018,3926.64,Supported Group Care,Supported Group Care,http://opendatacommunities.org/id/county-council/staffordshire  ,
Staffordshire County Council,Think 2 Project,CROFT DAY NURSERY SCHOOL,10/12/2018,3937.50,Awards Funded Childcare Places,Awards Funded Childcare Places,http://opendatacommunities.org/id/county-council/staffordshire  ,
Staffordshire County Council,Nursery Education Grant,CROFT DAY NURSERY SCHOOL,10/12/2018,3685.92,Grants Nursery Education Pymnt,Grants Nursery Education Pymnt,http://opendatacommunities.org/id/county-council/staffordshire  ,
Staffordshire County Council,Stafford Invoice Led Phys Disa,CSPC Healthcare Ltd,10/12/2018,507.15,Practical Care,Practical Care,http://opendatacommunities.org/id/county-council/staffordshire  ,
Staffordshire County Council,Think 2 Project,D Copeland,10/12/2018,1050.00,Awards Funded Childcare Places,Awards Funded Childcare Places,http://opendatacommunities.org/id/county-council/staffordshire  ,
Staffordshire County Council,Think 2 Project,D DAVIE,10/12/2018,1732.50,Awards Funded Childcare Places,Awards Funded Childcare Places,http://opendatacommunities.org/id/county-council/staffordshire  ,
Staffordshire County Council,E Staffs LD Team,D E Healthcare,10/12/2018,14332.59,Supported Group Care,Supported Group Care,http://opendatacommunities.org/id/county-council/staffordshire  ,
Staffordshire County Council,E Staffs LD Team,D E Healthcare,10/12/2018,2713.28,Supported Group Care,Supported Group Care,http://opendatacommunities.org/id/county-council/staffordshire  ,
Staffordshire County Council,Nursery Education Grant,D Williams,10/12/2018,1084.10,Grants Nursery Education Pymnt,Grants Nursery Education Pymnt,http://opendatacommunities.org/id/county-council/staffordshire  ,
Staffordshire County Council,Think 2 Project,D Woodward-Jones,10/12/2018,787.50,Awards Funded Childcare Places,Awards Funded Childcare Places,http://opendatacommunities.org/id/county-council/staffordshire  ,
Staffordshire County Council,1 STI Test & Treat,Derbyshire Comm Health Servs NHS FT,10/12/2018,2255.50,other services internal,other services internal,http://opendatacommunities.org/id/county-council/staffordshire  ,
Staffordshire County Council,Stafford LD Team,Dimensions UK,10/12/2018,3736.80,Supported Group Care,Supported Group Care,http://opendatacommunities.org/id/county-council/staffordshire  ,
Staffordshire County Council,Stafford LD Team,Dimensions UK,10/12/2018,3581.12,Supported Group Care,Supported Group Care,http://opendatacommunities.org/id/county-council/staffordshire  ,
Staffordshire County Council,S Staffs LD Team,Dimensions UK,10/12/2018,9161.10,Supported Group Care,Supported Group Care,http://opendatacommunities.org/id/county-council/staffordshire  ,
Staffordshire County Council,Stafford LD Team,Dimensions UK,10/12/2018,3997.24,Supported Group Care,Supported Group Care,http://opendatacommunities.org/id/county-council/staffordshire  ,
Staffordshire County Council,Nursery Education Grant,DOLLY MIXTURES DAY NURSERY,10/12/2018,12490.80,Grants Nursery Education Pymnt,Grants Nursery Education Pymnt,http://opendatacommunities.org/id/county-council/staffordshire  ,
Staffordshire County Council,Think 2 Project,DOSTHILL PARK PRE SCHOOL P GRP,10/12/2018,3217.50,Awards Funded Childcare Places,Awards Funded Childcare Places,http://opendatacommunities.org/id/county-council/staffordshire  ,
Staffordshire County Council,Nursery Education Grant,Dosthill Primary Academy,10/12/2018,19181.47,Grants Nursery Education Pymnt,Grants Nursery Education Pymnt,http://opendatacommunities.org/id/county-council/staffordshire  ,
Staffordshire County Council,Rtpi Countywide,E ON UK ENERGY SERVICES LTD,10/12/2018,3273.86,Ext Fees Construction,Ext Fees Construction,http://opendatacommunities.org/id/county-council/staffordshire  ,
Staffordshire County Council,New School - Land Henhurst Rid,E ON UK ENERGY SERVICES LTD,10/12/2018,8474.60,Ext Fees Construction,Ext Fees Construction,http://opendatacommunities.org/id/county-council/staffordshire  ,
Staffordshire County Council,Independent Sch Fees Mainstr'm,Elmfield Rudolph Steiner School Ltd,10/12/2018,7410.00,Fees to Independent Schools,Fees to Independent Schools,http://opendatacommunities.org/id/county-council/staffordshire  ,
Staffordshire County Council,Independent Sch Fees Mainstr'm,Elmfield Rudolph Steiner School Ltd,10/12/2018,17865.00,Fees to Independent Schools,Fees to Independent Schools,http://opendatacommunities.org/id/county-council/staffordshire  ,
Staffordshire County Council,Virtual School - Pupil Premium,Emotion Coaching UK Limited,10/12/2018,1408.00,Conference Fees,Conference Fees,http://opendatacommunities.org/id/county-council/staffordshire  ,
Staffordshire County Council,Norton Canes Lab Refurb,Environmental Essentials,10/12/2018,840.00,Construction Works,Construction Works,http://opendatacommunities.org/id/county-council/staffordshire  ,
Staffordshire County Council,1323 Hawthorn House WS13 6EN,Environmental Essentials,10/12/2018,534.00,Planned Int Wall Door Fixtures,Planned Int Wall Door Fixtures,http://opendatacommunities.org/id/county-council/staffordshire  ,
Staffordshire County Council,Nursery Education Grant,F Tipper,10/12/2018,860.43,Grants Nursery Education Pymnt,Grants Nursery Education Pymnt,http://opendatacommunities.org/id/county-council/staffordshire  ,
Staffordshire County Council,Nursery Education Grant,Farlea Childcare Ltd,10/12/2018,832.18,Grants Nursery Education Pymnt,Grants Nursery Education Pymnt,http://opendatacommunities.org/id/county-council/staffordshire  ,
Staffordshire County Council,Nursery Education Grant,Farlea Childcare Ltd,10/12/2018,3997.77,Grants Nursery Education Pymnt,Grants Nursery Education Pymnt,http://opendatacommunities.org/id/county-council/staffordshire  ,
Staffordshire County Council,Think 2 Project,Farlea Childcare Ltd,10/12/2018,1050.00,Awards Funded Childcare Places,Awards Funded Childcare Places,http://opendatacommunities.org/id/county-council/staffordshire  ,
Staffordshire County Council,Nursery Education Grant,Farlea Childcare Ltd,10/12/2018,7252.77,Grants Nursery Education Pymnt,Grants Nursery Education Pymnt,http://opendatacommunities.org/id/county-council/staffordshire  ,
Staffordshire County Council,Nursery Education Grant,Farlea Childcare Ltd,10/12/2018,4220.84,Grants Nursery Education Pymnt,Grants Nursery Education Pymnt,http://opendatacommunities.org/id/county-council/staffordshire  ,
Staffordshire County Council,Think 2 Project,Farlea Childcare Ltd,10/12/2018,1312.50,Awards Funded Childcare Places,Awards Funded Childcare Places,http://opendatacommunities.org/id/county-council/staffordshire  ,
Staffordshire County Council,Nursery Education Grant,Farlea Childcare Ltd,10/12/2018,8022.52,Grants Nursery Education Pymnt,Grants Nursery Education Pymnt,http://opendatacommunities.org/id/county-council/staffordshire  ,
Staffordshire County Council,Nursery Education Grant,FIVE SPIRES ACADEMY NURSERY,10/12/2018,5811.65,Grants Nursery Education Pymnt,Grants Nursery Education Pymnt,http://opendatacommunities.org/id/county-council/staffordshire  ,
Staffordshire County Council,Think 2 Project,Footsteps Day Nurseries Ltd-Cannock,10/12/2018,1537.50,Awards Funded Childcare Places,Awards Funded Childcare Places,http://opendatacommunities.org/id/county-council/staffordshire  ,
Staffordshire County Council,Nursery Education Grant,Footsteps Day Nurseries Ltd-Cannock,10/12/2018,13310.95,Grants Nursery Education Pymnt,Grants Nursery Education Pymnt,http://opendatacommunities.org/id/county-council/staffordshire  ,
Staffordshire County Council,Think 2 Project,Footsteps Day Nurseries Ltd-Fazeley,10/12/2018,4462.50,Awards Funded Childcare Places,Awards Funded Childcare Places,http://opendatacommunities.org/id/county-council/staffordshire  ,
Staffordshire County Council,Nursery Education Grant,Footsteps Day Nurseries Ltd-Fazeley,10/12/2018,6492.09,Grants Nursery Education Pymnt,Grants Nursery Education Pymnt,http://opendatacommunities.org/id/county-council/staffordshire  ,
Staffordshire County Council,Think 2 Project,FOOTSTEPS DAY NURSERY,10/12/2018,1575.00,Awards Funded Childcare Places,Awards Funded Childcare Places,http://opendatacommunities.org/id/county-council/staffordshire  ,
Staffordshire County Council,Nursery Education Grant,FOOTSTEPS DAY NURSERY,10/12/2018,6492.21,Grants Nursery Education Pymnt,Grants Nursery Education Pymnt,http://opendatacommunities.org/id/county-council/staffordshire  ,
Staffordshire County Council,Think 2 Project,FOOTSTEPS DAY NURSERY,10/12/2018,3625.00,Awards Funded Childcare Places,Awards Funded Childcare Places,http://opendatacommunities.org/id/county-council/staffordshire  ,
Staffordshire County Council,Think 2 Project,FOOTSTEPS DAY NURSERY,10/12/2018,2100.00,Awards Funded Childcare Places,Awards Funded Childcare Places,http://opendatacommunities.org/id/county-council/staffordshire  ,
Staffordshire County Council,Nursery Education Grant,FOOTSTEPS DAY NURSERY,10/12/2018,11134.38,Grants Nursery Education Pymnt,Grants Nursery Education Pymnt,http://opendatacommunities.org/id/county-council/staffordshire  ,
Staffordshire County Council,Nursery Education Grant,FOOTSTEPS DAY NURSERY,10/12/2018,10325.85,Grants Nursery Education Pymnt,Grants Nursery Education Pymnt,http://opendatacommunities.org/id/county-council/staffordshire  ,
Staffordshire County Council,Think 2 Project,FOOTSTEPS NURSERY & PRE-SCHOOL,10/12/2018,7012.50,Awards Funded Childcare Places,Awards Funded Childcare Places,http://opendatacommunities.org/id/county-council/staffordshire  ,
Staffordshire County Council,Nursery Education Grant,FOOTSTEPS NURSERY & PRE-SCHOOL,10/12/2018,7620.16,Grants Nursery Education Pymnt,Grants Nursery Education Pymnt,http://opendatacommunities.org/id/county-council/staffordshire  ,
Staffordshire County Council,Think 2 Project,FOOTSTEPS NURSERY AND PRE SCHOOL,10/12/2018,3850.00,Awards Funded Childcare Places,Awards Funded Childcare Places,http://opendatacommunities.org/id/county-council/staffordshire  ,
Staffordshire County Council,Nursery Education Grant,FOOTSTEPS NURSERY AND PRE SCHOOL,10/12/2018,29007.21,Grants Nursery Education Pymnt,Grants Nursery Education Pymnt,http://opendatacommunities.org/id/county-council/staffordshire  ,
Staffordshire County Council,Think 2 Project,Forton Day Nursery,10/12/2018,1275.00,Awards Funded Childcare Places,Awards Funded Childcare Places,http://opendatacommunities.org/id/county-council/staffordshire  ,
Staffordshire County Council,Nursery Education Grant,Forton Day Nursery,10/12/2018,6065.90,Grants Nursery Education Pymnt,Grants Nursery Education Pymnt,http://opendatacommunities.org/id/county-council/staffordshire  ,
Staffordshire County Council,7334 Northfields Ctr,Furniture Scheme,10/12/2018,1276.00,Rent / Lease Of Premises,Rent / Lease Of Premises,http://opendatacommunities.org/id/county-council/staffordshire  ,
Staffordshire County Council,Think 2 Project,GORSYBANK PRE SCHOOL,10/12/2018,2100.00,Awards Funded Childcare Places,Awards Funded Childcare Places,http://opendatacommunities.org/id/county-council/staffordshire  ,
Staffordshire County Council,Nursery Education Grant,GORSYBANK PRE SCHOOL,10/12/2018,47427.24,Grants Nursery Education Pymnt,Grants Nursery Education Pymnt,http://opendatacommunities.org/id/county-council/staffordshire  ,
Staffordshire County Council,Comms & Marketing Staff,GovDelivery Inc,10/12/2018,2743.00,Project Activities,Project Activities,http://opendatacommunities.org/id/county-council/staffordshire  ,
Staffordshire County Council,Nursery Education Grant,Grange Infant School,10/12/2018,23799.30,Grants Nursery Education Pymnt,Grants Nursery Education Pymnt,http://opendatacommunities.org/id/county-council/staffordshire  ,
Staffordshire County Council,Think 2 Project,GREAT HAYWOOD UNDER 5'S,10/12/2018,525.00,Awards Funded Childcare Places,Awards Funded Childcare Places,http://opendatacommunities.org/id/county-council/staffordshire  ,
Staffordshire County Council,Nursery Education Grant,GREAT HAYWOOD UNDER 5'S,10/12/2018,3604.35,Grants Nursery Education Pymnt,Grants Nursery Education Pymnt,http://opendatacommunities.org/id/county-council/staffordshire  ,
Staffordshire County Council,Think 2 Project,HANBURYS FARM PRE SCHOOL,10/12/2018,8325.00,Awards Funded Childcare Places,Awards Funded Childcare Places,http://opendatacommunities.org/id/county-council/staffordshire  ,
Staffordshire County Council,Nursery Education Grant,HANBURYS FARM PRE SCHOOL,10/12/2018,9450.15,Grants Nursery Education Pymnt,Grants Nursery Education Pymnt,http://opendatacommunities.org/id/county-council/staffordshire  ,
Staffordshire County Council,SStaffs Invoice Led Older Peop,Hands on Care Wombourne Ltd,10/12/2018,590.94,Practical Care,Practical Care,http://opendatacommunities.org/id/county-council/staffordshire  ,
Staffordshire County Council,SStaffs Invoice Led Older Peop,Hands on Care Wombourne Ltd,10/12/2018,590.94,Practical Care,Practical Care,http://opendatacommunities.org/id/county-council/staffordshire  ,
Staffordshire County Council,S Staffs Invoice Led Physic Di,Hands on Care Wombourne Ltd,10/12/2018,763.39,Practical Care,Practical Care,http://opendatacommunities.org/id/county-council/staffordshire  ,
Staffordshire County Council,Moorlands Invoice Led Older Pe,Helping Hands,10/12/2018,2134.00,Practical Care,Practical Care,http://opendatacommunities.org/id/county-council/staffordshire  ,
Staffordshire County Council,Moorlands Invoice Led Phys Dis,Helping Hands,10/12/2018,631.20,Practical Care,Practical Care,http://opendatacommunities.org/id/county-council/staffordshire  ,
Staffordshire County Council,Tamworth Invoice Led Older Peo,Hills Angels Homecare,10/12/2018,507.15,Practical Care,Practical Care,http://opendatacommunities.org/id/county-council/staffordshire  ,
Staffordshire County Council,Lichfield Invoice Led Older Pe,Hills Angels Homecare,10/12/2018,563.50,Practical Care,Practical Care,http://opendatacommunities.org/id/county-council/staffordshire  ,
Staffordshire County Council,Occupational Health Unit,HOBSON HEALTH LTD,10/12/2018,2856.00,CONSULTANT FEES,CONSULTANT FEES,http://opendatacommunities.org/id/county-council/staffordshire  ,
Staffordshire County Council,Think 2 Project,HOLLY LANE NURSERY,10/12/2018,3401.25,Awards Funded Childcare Places,Awards Funded Childcare Places,http://opendatacommunities.org/id/county-council/staffordshire  ,
Staffordshire County Council,Nursery Education Grant,HOLLY LANE NURSERY,10/12/2018,7753.73,Grants Nursery Education Pymnt,Grants Nursery Education Pymnt,http://opendatacommunities.org/id/county-council/staffordshire  ,
Staffordshire County Council,Independent School Fee Nursery,HONEYBUNS DAY NURSERY,10/12/2018,501.12,Grants to third parties,Grants to third parties,http://opendatacommunities.org/id/county-council/staffordshire  ,
Staffordshire County Council,Think 2 Project,HONEYBUNS DAY NURSERY,10/12/2018,1837.50,Awards Funded Childcare Places,Awards Funded Childcare Places,http://opendatacommunities.org/id/county-council/staffordshire  ,
Staffordshire County Council,Nursery Education Grant,HONEYBUNS DAY NURSERY,10/12/2018,9595.46,Grants Nursery Education Pymnt,Grants Nursery Education Pymnt,http://opendatacommunities.org/id/county-council/staffordshire  ,
Staffordshire County Council,Think 2 Project,HONEYBUNS NURSERY,10/12/2018,4950.00,Awards Funded Childcare Places,Awards Funded Childcare Places,http://opendatacommunities.org/id/county-council/staffordshire  ,
Staffordshire County Council,Nursery Education Grant,HONEYBUNS NURSERY,10/12/2018,6546.64,Grants Nursery Education Pymnt,Grants Nursery Education Pymnt,http://opendatacommunities.org/id/county-council/staffordshire  ,
Staffordshire County Council,Think 2 Project,HORN END NURSERY,10/12/2018,1837.50,Awards Funded Childcare Places,Awards Funded Childcare Places,http://opendatacommunities.org/id/county-council/staffordshire  ,
Staffordshire County Council,Nursery Education Grant,HORN END NURSERY,10/12/2018,16536.27,Grants Nursery Education Pymnt,Grants Nursery Education Pymnt,http://opendatacommunities.org/id/county-council/staffordshire  ,
Staffordshire County Council,Think 2 Project,HORN END NURSERY SCHOOL,10/12/2018,1962.50,Awards Funded Childcare Places,Awards Funded Childcare Places,http://opendatacommunities.org/id/county-council/staffordshire  ,
Staffordshire County Council,Nursery Education Grant,HORN END NURSERY SCHOOL,10/12/2018,6110.98,Grants Nursery Education Pymnt,Grants Nursery Education Pymnt,http://opendatacommunities.org/id/county-council/staffordshire  ,
Staffordshire County Council,Think 2 Project,HORN END NURSERY SCHOOL,10/12/2018,1050.00,Awards Funded Childcare Places,Awards Funded Childcare Places,http://opendatacommunities.org/id/county-council/staffordshire  ,
Staffordshire County Council,Nursery Education Grant,HORN END NURSERY SCHOOL,10/12/2018,4448.08,Grants Nursery Education Pymnt,Grants Nursery Education Pymnt,http://opendatacommunities.org/id/county-council/staffordshire  ,
Staffordshire County Council,Think 2 Project,HUGGIES DAY NURSERY LTD,10/12/2018,9300.00,Awards Funded Childcare Places,Awards Funded Childcare Places,http://opendatacommunities.org/id/county-council/staffordshire  ,
Staffordshire County Council,Nursery Education Grant,HUGGIES DAY NURSERY LTD,10/12/2018,6795.94,Grants Nursery Education Pymnt,Grants Nursery Education Pymnt,http://opendatacommunities.org/id/county-council/staffordshire  ,
Staffordshire County Council,Nursery Education Grant,J BARNES,10/12/2018,966.42,Grants Nursery Education Pymnt,Grants Nursery Education Pymnt,http://opendatacommunities.org/id/county-council/staffordshire  ,
Staffordshire County Council,Nursery Education Grant,J Butler,10/12/2018,660.24,Grants Nursery Education Pymnt,Grants Nursery Education Pymnt,http://opendatacommunities.org/id/county-council/staffordshire  ,
Staffordshire County Council,Nursery Education Grant,J CAIRNS,10/12/2018,1237.94,Grants Nursery Education Pymnt,Grants Nursery Education Pymnt,http://opendatacommunities.org/id/county-council/staffordshire  ,
Staffordshire County Council,Nursery Education Grant,J FEAR,10/12/2018,890.14,Grants Nursery Education Pymnt,Grants Nursery Education Pymnt,http://opendatacommunities.org/id/county-council/staffordshire  ,
Staffordshire County Council,Nursery Education Grant,J Glen,10/12/2018,990.36,Grants Nursery Education Pymnt,Grants Nursery Education Pymnt,http://opendatacommunities.org/id/county-council/staffordshire  ,
Staffordshire County Council,Nursery Education Grant,J Karpi,10/12/2018,618.96,Grants Nursery Education Pymnt,Grants Nursery Education Pymnt,http://opendatacommunities.org/id/county-council/staffordshire  ,
Staffordshire County Council,Nursery Education Grant,J Lee,10/12/2018,1444.24,Grants Nursery Education Pymnt,Grants Nursery Education Pymnt,http://opendatacommunities.org/id/county-council/staffordshire  ,
Staffordshire County Council,Nursery Education Grant,J TAYLOR,10/12/2018,1650.60,Grants Nursery Education Pymnt,Grants Nursery Education Pymnt,http://opendatacommunities.org/id/county-council/staffordshire  ,
Staffordshire County Council,Nursery Education Grant,J THOMAS,10/12/2018,3997.30,Grants Nursery Education Pymnt,Grants Nursery Education Pymnt,http://opendatacommunities.org/id/county-council/staffordshire  ,
Staffordshire County Council,Think 2 Project,JACK & JILLS PRE-SCHOOL,10/12/2018,682.50,Awards Funded Childcare Places,Awards Funded Childcare Places,http://opendatacommunities.org/id/county-council/staffordshire  ,
Staffordshire County Council,Nursery Education Grant,JACK & JILLS PRE-SCHOOL,10/12/2018,7662.67,Grants Nursery Education Pymnt,Grants Nursery Education Pymnt,http://opendatacommunities.org/id/county-council/staffordshire  ,
Staffordshire County Council,Think 2 Project,JELLY TOTZ,10/12/2018,1575.00,Awards Funded Childcare Places,Awards Funded Childcare Places,http://opendatacommunities.org/id/county-council/staffordshire  ,
Staffordshire County Council,Nursery Education Grant,JELLY TOTZ,10/12/2018,6341.20,Grants Nursery Education Pymnt,Grants Nursery Education Pymnt,http://opendatacommunities.org/id/county-council/staffordshire  ,
Staffordshire County Council,Nursery Education Grant,JELLYBEANS,10/12/2018,2409.76,Grants Nursery Education Pymnt,Grants Nursery Education Pymnt,http://opendatacommunities.org/id/county-council/staffordshire  ,
Staffordshire County Council,Think 2 Project,Julie Howard,10/12/2018,675.00,Awards Funded Childcare Places,Awards Funded Childcare Places,http://opendatacommunities.org/id/county-council/staffordshire  ,
Staffordshire County Council,Nursery Education Grant,K Joiner,10/12/2018,1403.97,Grants Nursery Education Pymnt,Grants Nursery Education Pymnt,http://opendatacommunities.org/id/county-council/staffordshire  ,
Staffordshire County Council,Think 2 Project,KIDDIE WINKS DAY CARE NURSERY LTD,10/12/2018,5637.50,Awards Funded Childcare Places,Awards Funded Childcare Places,http://opendatacommunities.org/id/county-council/staffordshire  ,
Staffordshire County Council,Nursery Education Grant,KIDDIE WINKS DAY CARE NURSERY LTD,10/12/2018,5924.74,Grants Nursery Education Pymnt,Grants Nursery Education Pymnt,http://opendatacommunities.org/id/county-council/staffordshire  ,
Staffordshire County Council,Think 2 Project,KINVER GARDEN DAY NURSERY,10/12/2018,2362.50,Awards Funded Childcare Places,Awards Funded Childcare Places,http://opendatacommunities.org/id/county-council/staffordshire  ,
Staffordshire County Council,Nursery Education Grant,KINVER GARDEN DAY NURSERY,10/12/2018,6745.70,Grants Nursery Education Pymnt,Grants Nursery Education Pymnt,http://opendatacommunities.org/id/county-council/staffordshire  ,
Staffordshire County Council,Nursery Education Grant,Knutton St Marys C of E Academy,10/12/2018,1855.22,Grants Nursery Education Pymnt,Grants Nursery Education Pymnt,http://opendatacommunities.org/id/county-council/staffordshire  ,
Staffordshire County Council,Think 2 Project,L Fellows,10/12/2018,1050.00,Awards Funded Childcare Places,Awards Funded Childcare Places,http://opendatacommunities.org/id/county-council/staffordshire  ,
Staffordshire County Council,Nursery Education Grant,L Fones,10/12/2018,1059.11,Grants Nursery Education Pymnt,Grants Nursery Education Pymnt,http://opendatacommunities.org/id/county-council/staffordshire  ,
Staffordshire County Council,Nursery Education Grant,L Hames,10/12/2018,925.50,Grants Nursery Education Pymnt,Grants Nursery Education Pymnt,http://opendatacommunities.org/id/county-council/staffordshire  ,
Staffordshire County Council,Think 2 Project,L HARVEY,10/12/2018,1050.00,Awards Funded Childcare Places,Awards Funded Childcare Places,http://opendatacommunities.org/id/county-council/staffordshire  ,
Staffordshire County Council,Nursery Education Grant,L Kendrick,10/12/2018,766.35,Grants Nursery Education Pymnt,Grants Nursery Education Pymnt,http://opendatacommunities.org/id/county-council/staffordshire  ,
Staffordshire County Council,Think 2 Project,L.ITTLE STARS PRE-SCHOOL,10/12/2018,2100.00,Awards Funded Childcare Places,Awards Funded Childcare Places,http://opendatacommunities.org/id/county-council/staffordshire  ,
Staffordshire County Council,Nursery Education Grant,L.ITTLE STARS PRE-SCHOOL,10/12/2018,5967.92,Grants Nursery Education Pymnt,Grants Nursery Education Pymnt,http://opendatacommunities.org/id/county-council/staffordshire  ,
Staffordshire County Council,Think 2 Project,LANDYWOOD PLAYGROUP,10/12/2018,2325.00,Awards Funded Childcare Places,Awards Funded Childcare Places,http://opendatacommunities.org/id/county-council/staffordshire  ,
Staffordshire County Council,Nursery Education Grant,Leasowes Extra Wraparound,10/12/2018,9857.01,Grants Nursery Education Pymnt,Grants Nursery Education Pymnt,http://opendatacommunities.org/id/county-council/staffordshire  ,
Staffordshire County Council,Stafford LD Team,Lifeways Community Care Ltd,10/12/2018,2804.20,Supported Group Care,Supported Group Care,http://opendatacommunities.org/id/county-council/staffordshire  ,
Staffordshire County Council,Stafford LD Team,Lifeways Community Care Ltd,10/12/2018,3486.08,Supported Group Care,Supported Group Care,http://opendatacommunities.org/id/county-council/staffordshire  ,
Staffordshire County Council,Stafford LD Team,Lifeways Community Care Ltd,10/12/2018,3594.84,Supported Group Care,Supported Group Care,http://opendatacommunities.org/id/county-council/staffordshire  ,
Staffordshire County Council,Stafford LD Team,Lifeways Community Care Ltd,10/12/2018,6163.76,Supported Group Care,Supported Group Care,http://opendatacommunities.org/id/county-council/staffordshire  ,
Staffordshire County Council,S Staffs LD Team,Lifeways Community Care Ltd,10/12/2018,5711.76,Supported Group Care,Supported Group Care,http://opendatacommunities.org/id/county-council/staffordshire  ,
Staffordshire County Council,Cannock Chase LD Team,Lifeways Community Care Ltd,10/12/2018,2928.64,Supported Group Care,Supported Group Care,http://opendatacommunities.org/id/county-council/staffordshire  ,
Staffordshire County Council,E Staffs LD Team,Lifeways Community Care Ltd,10/12/2018,5549.00,Supported Group Care,Supported Group Care,http://opendatacommunities.org/id/county-council/staffordshire  ,
Staffordshire County Council,E Staffs LD Team,Lifeways Community Care Ltd,10/12/2018,5549.00,Supported Group Care,Supported Group Care,http://opendatacommunities.org/id/county-council/staffordshire  ,
Staffordshire County Council,E Staffs LD Team,Lifeways Community Care Ltd,10/12/2018,5549.00,Supported Group Care,Supported Group Care,http://opendatacommunities.org/id/county-council/staffordshire  ,
Staffordshire County Council,Stafford LD Team,Linfield Care Ltd,10/12/2018,4503.48,Supported Group Care,Supported Group Care,http://opendatacommunities.org/id/county-council/staffordshire  ,
Staffordshire County Council,Stafford LD Team,Linfield Care Ltd,10/12/2018,4396.04,Supported Group Care,Supported Group Care,http://opendatacommunities.org/id/county-council/staffordshire  ,
Staffordshire County Council,Stafford LD Team,Linfield Care Ltd,10/12/2018,5825.60,Supported Group Care,Supported Group Care,http://opendatacommunities.org/id/county-council/staffordshire  ,
Staffordshire County Council,Nursery Education Grant,Lisa Hickinson,10/12/2018,825.30,Grants Nursery Education Pymnt,Grants Nursery Education Pymnt,http://opendatacommunities.org/id/county-council/staffordshire  ,
Staffordshire County Council,Nursery Education Grant,LITTLE ASTON PRE-SCHOOL,10/12/2018,5247.02,Grants Nursery Education Pymnt,Grants Nursery Education Pymnt,http://opendatacommunities.org/id/county-council/staffordshire  ,
Staffordshire County Council,Think 2 Project,Little Cherubs,10/12/2018,3450.00,Awards Funded Childcare Places,Awards Funded Childcare Places,http://opendatacommunities.org/id/county-council/staffordshire  ,
Staffordshire County Council,Nursery Education Grant,Little Cherubs,10/12/2018,14471.52,Grants Nursery Education Pymnt,Grants Nursery Education Pymnt,http://opendatacommunities.org/id/county-council/staffordshire  ,
Staffordshire County Council,Think 2 Project,LITTLE LEARNERS,10/12/2018,5302.50,Awards Funded Childcare Places,Awards Funded Childcare Places,http://opendatacommunities.org/id/county-council/staffordshire  ,
Staffordshire County Council,Nursery Education Grant,LITTLE LEARNERS,10/12/2018,6794.22,Grants Nursery Education Pymnt,Grants Nursery Education Pymnt,http://opendatacommunities.org/id/county-council/staffordshire  ,
Staffordshire County Council,Nursery Education Grant,Little learners at Fulford Pre School,10/12/2018,2564.22,Grants Nursery Education Pymnt,Grants Nursery Education Pymnt,http://opendatacommunities.org/id/county-council/staffordshire  ,
Staffordshire County Council,Think 2 Project,LITTLE MONSTERS DAY NURSERY,10/12/2018,1800.00,Awards Funded Childcare Places,Awards Funded Childcare Places,http://opendatacommunities.org/id/county-council/staffordshire  ,
Staffordshire County Council,Nursery Education Grant,LITTLE MONSTERS DAY NURSERY,10/12/2018,13096.68,Grants Nursery Education Pymnt,Grants Nursery Education Pymnt,http://opendatacommunities.org/id/county-council/staffordshire  ,
Staffordshire County Council,Think 2 Project,Little Oaks Day Nursery,10/12/2018,525.00,Awards Funded Childcare Places,Awards Funded Childcare Places,http://opendatacommunities.org/id/county-council/staffordshire  ,
Staffordshire County Council,Nursery Education Grant,Little Oaks Day Nursery,10/12/2018,3536.98,Grants Nursery Education Pymnt,Grants Nursery Education Pymnt,http://opendatacommunities.org/id/county-council/staffordshire  ,
Staffordshire County Council,Think 2 Project,LITTLE POTTERS DAY NURSERY,10/12/2018,7177.50,Awards Funded Childcare Places,Awards Funded Childcare Places,http://opendatacommunities.org/id/county-council/staffordshire  ,
Staffordshire County Council,Nursery Education Grant,LITTLE POTTERS DAY NURSERY,10/12/2018,3641.43,Grants Nursery Education Pymnt,Grants Nursery Education Pymnt,http://opendatacommunities.org/id/county-council/staffordshire  ,
Staffordshire County Council,Nursery Education Grant,Little Scallywags Day Nursery,10/12/2018,867.30,Grants Nursery Education Pymnt,Grants Nursery Education Pymnt,http://opendatacommunities.org/id/county-council/staffordshire  ,
Staffordshire County Council,Think 2 Project,Little Stars Childcare,10/12/2018,4200.00,Awards Funded Childcare Places,Awards Funded Childcare Places,http://opendatacommunities.org/id/county-council/staffordshire  ,
Staffordshire County Council,Nursery Education Grant,Little Stars Childcare,10/12/2018,5011.44,Grants Nursery Education Pymnt,Grants Nursery Education Pymnt,http://opendatacommunities.org/id/county-council/staffordshire  ,
Staffordshire County Council,Moorlands LD Team,Living Ambitions Limited,10/12/2018,4059.88,Supported Group Care,Supported Group Care,http://opendatacommunities.org/id/county-council/staffordshire  ,
Staffordshire County Council,Newcastle LD Team,Living Ambitions Limited,10/12/2018,3188.92,Supported Group Care,Supported Group Care,http://opendatacommunities.org/id/county-council/staffordshire  ,
Staffordshire County Council,Moorlands LD Team,Living Ambitions Limited,10/12/2018,3156.40,Supported Group Care,Supported Group Care,http://opendatacommunities.org/id/county-council/staffordshire  ,
Staffordshire County Council,Newcastle LD Team,Living Ambitions Limited,10/12/2018,3448.04,Supported Group Care,Supported Group Care,http://opendatacommunities.org/id/county-council/staffordshire  ,
Staffordshire County Council,Newcastle LD Team,Living Ambitions Limited,10/12/2018,4254.96,Supported Group Care,Supported Group Care,http://opendatacommunities.org/id/county-council/staffordshire  ,
Staffordshire County Council,Newcastle LD Team,Living Ambitions Limited,10/12/2018,4872.24,Supported Group Care,Supported Group Care,http://opendatacommunities.org/id/county-council/staffordshire  ,
Staffordshire County Council,Stafford LD Team,Living Ambitions Limited,10/12/2018,2684.44,Supported Group Care,Supported Group Care,http://opendatacommunities.org/id/county-council/staffordshire  ,
Staffordshire County Council,Newcastle LD Team,Living Ambitions Limited,10/12/2018,4488.16,Supported Group Care,Supported Group Care,http://opendatacommunities.org/id/county-council/staffordshire  ,
Staffordshire County Council,Newcastle LD Team,Living Ambitions Limited,10/12/2018,2448.28,Supported Group Care,Supported Group Care,http://opendatacommunities.org/id/county-council/staffordshire  ,
Staffordshire County Council,Newcastle LD Team,Living Ambitions Limited,10/12/2018,2889.40,Supported Group Care,Supported Group Care,http://opendatacommunities.org/id/county-council/staffordshire  ,
Staffordshire County Council,Newcastle LD Team,Living Ambitions Limited,10/12/2018,4053.20,Supported Group Care,Supported Group Care,http://opendatacommunities.org/id/county-council/staffordshire  ,
Staffordshire County Council,Newcastle LD Team,Living Ambitions Limited,10/12/2018,3315.56,Supported Group Care,Supported Group Care,http://opendatacommunities.org/id/county-council/staffordshire  ,
Staffordshire County Council,Newcastle LD Team,Living Ambitions Limited,10/12/2018,3851.12,Supported Group Care,Supported Group Care,http://opendatacommunities.org/id/county-council/staffordshire  ,
Staffordshire County Council,Stafford LD Team,Living Ambitions Limited,10/12/2018,4803.44,Supported Group Care,Supported Group Care,http://opendatacommunities.org/id/county-council/staffordshire  ,
Staffordshire County Council,Moorlands LD Team,Living Ambitions Limited,10/12/2018,3270.20,Supported Group Care,Supported Group Care,http://opendatacommunities.org/id/county-council/staffordshire  ,
Staffordshire County Council,Newcastle LD Team,Living Ambitions Limited,10/12/2018,4801.28,Supported Group Care,Supported Group Care,http://opendatacommunities.org/id/county-council/staffordshire  ,
Staffordshire County Council,Newcastle LD Team,Living Ambitions Limited,10/12/2018,3140.00,Supported Group Care,Supported Group Care,http://opendatacommunities.org/id/county-council/staffordshire  ,
Staffordshire County Council,Stafford LD Team,Living Ambitions Limited,10/12/2018,2498.36,Supported Group Care,Supported Group Care,http://opendatacommunities.org/id/county-council/staffordshire  ,
Staffordshire County Council,Stafford LD Team,Living Ambitions Limited,10/12/2018,3874.56,Supported Group Care,Supported Group Care,http://opendatacommunities.org/id/county-council/staffordshire  ,
Staffordshire County Council,Stafford LD Team,Living Ambitions Limited,10/12/2018,2965.24,Supported Group Care,Supported Group Care,http://opendatacommunities.org/id/county-council/staffordshire  ,
Staffordshire County Council,Stafford LD Team,Living Ambitions Limited,10/12/2018,3288.52,Supported Group Care,Supported Group Care,http://opendatacommunities.org/id/county-council/staffordshire  ,
Staffordshire County Council,Stafford LD Team,Living Ambitions Limited,10/12/2018,1939.36,Supported Group Care,Supported Group Care,http://opendatacommunities.org/id/county-council/staffordshire  ,
Staffordshire County Council,Stafford LD Team,Living Ambitions Limited,10/12/2018,2492.40,Supported Group Care,Supported Group Care,http://opendatacommunities.org/id/county-council/staffordshire  ,
Staffordshire County Council,Stafford LD Team,Living Ambitions Limited,10/12/2018,4663.72,Supported Group Care,Supported Group Care,http://opendatacommunities.org/id/county-council/staffordshire  ,
Staffordshire County Council,Stafford LD Team,Living Ambitions Limited,10/12/2018,1826.76,Supported Group Care,Supported Group Care,http://opendatacommunities.org/id/county-council/staffordshire  ,
Staffordshire County Council,Tamworth LD Team,Living Ambitions Limited,10/12/2018,3213.12,Supported Group Care,Supported Group Care,http://opendatacommunities.org/id/county-council/staffordshire  ,
Staffordshire County Council,Tamworth LD Team,Living Ambitions Limited,10/12/2018,2876.20,Supported Group Care,Supported Group Care,http://opendatacommunities.org/id/county-council/staffordshire  ,
Staffordshire County Council,Tamworth LD Team,Living Ambitions Limited,10/12/2018,3895.24,Supported Group Care,Supported Group Care,http://opendatacommunities.org/id/county-council/staffordshire  ,
Staffordshire County Council,Tamworth LD Team,Living Ambitions Limited,10/12/2018,23608.44,Supported Group Care,Supported Group Care,http://opendatacommunities.org/id/county-council/staffordshire  ,
Staffordshire County Council,Independent School Fee Special,Longdon Hall School,10/12/2018,16166.66,Fees to Independent Schools,Fees to Independent Schools,http://opendatacommunities.org/id/county-council/staffordshire  ,
Staffordshire County Council,Independent School Fee Special,Longdon Hall School,10/12/2018,10546.26,Fees to Independent Schools,Fees to Independent Schools,http://opendatacommunities.org/id/county-council/staffordshire  ,
Staffordshire County Council,Nursery Education Grant,LONGDON PRE SCH PLAYGROUP,10/12/2018,990.36,Grants Nursery Education Pymnt,Grants Nursery Education Pymnt,http://opendatacommunities.org/id/county-council/staffordshire  ,
Staffordshire County Council,Third Car Leasing Scheme,LOOKERS LEASING LTD,10/12/2018,3282.77,Staff Car Leasing Recharge,Staff Car Leasing Recharge,http://opendatacommunities.org/id/county-council/staffordshire  ,
Staffordshire County Council,Third Car Leasing Scheme,LOOKERS LEASING LTD,10/12/2018,4239.51,Staff Car Leasing Recharge,Staff Car Leasing Recharge,http://opendatacommunities.org/id/county-council/staffordshire  ,
Staffordshire County Council,2 Contraception,MADELEY PRACTICE,10/12/2018,844.72,other services external,other services external,http://opendatacommunities.org/id/county-council/staffordshire  ,
Staffordshire County Council,Think 2 Project,Marshbrook First School,10/12/2018,787.50,Awards Funded Childcare Places,Awards Funded Childcare Places,http://opendatacommunities.org/id/county-council/staffordshire  ,
Staffordshire County Council,Nursery Education Grant,Marshbrook First School,10/12/2018,4870.38,Grants Nursery Education Pymnt,Grants Nursery Education Pymnt,http://opendatacommunities.org/id/county-council/staffordshire  ,
Staffordshire County Council,East Staffs Invoice Led Phys D,MEDILINE NURSES,10/12/2018,5087.88,Practical Care,Practical Care,http://opendatacommunities.org/id/county-council/staffordshire  ,
Staffordshire County Council,Extra Care Contracts,Midland Heart Ltd,10/12/2018,886.56,Extra Care Long Stay,Extra Care Long Stay,http://opendatacommunities.org/id/county-council/staffordshire  ,
Staffordshire County Council,Pre-Sale And Planning Costs,Movecorp,10/12/2018,5211.00,Construction Works,Construction Works,http://opendatacommunities.org/id/county-council/staffordshire  ,
Staffordshire County Council,Nursery Education Grant,MUMBLES DAY NURSERY,10/12/2018,1650.58,Grants Nursery Education Pymnt,Grants Nursery Education Pymnt,http://opendatacommunities.org/id/county-council/staffordshire  ,
Staffordshire County Council,Think 2 Project,MUMBLES DAY NURSERY LTD SANDON,10/12/2018,960.00,Awards Funded Childcare Places,Awards Funded Childcare Places,http://opendatacommunities.org/id/county-council/staffordshire  ,
Staffordshire County Council,Nursery Education Grant,MUMBLES DAY NURSERY LTD SANDON,10/12/2018,3790.44,Grants Nursery Education Pymnt,Grants Nursery Education Pymnt,http://opendatacommunities.org/id/county-council/staffordshire  ,
Staffordshire County Council,Nursery Education Grant,N Draycott,10/12/2018,3804.04,Grants Nursery Education Pymnt,Grants Nursery Education Pymnt,http://opendatacommunities.org/id/county-council/staffordshire  ,
Staffordshire County Council,Think 2 Project,N Holiday,10/12/2018,1050.00,Awards Funded Childcare Places,Awards Funded Childcare Places,http://opendatacommunities.org/id/county-council/staffordshire  ,
Staffordshire County Council,Nursery Education Grant,Natalie Brown,10/12/2018,3046.78,Grants Nursery Education Pymnt,Grants Nursery Education Pymnt,http://opendatacommunities.org/id/county-council/staffordshire  ,
Staffordshire County Council,Think 2 Project,Norton Canes Primary Academy,10/12/2018,1042.50,Awards Funded Childcare Places,Awards Funded Childcare Places,http://opendatacommunities.org/id/county-council/staffordshire  ,
Staffordshire County Council,Nursery Education Grant,Norton Canes Primary Academy,10/12/2018,9805.57,Grants Nursery Education Pymnt,Grants Nursery Education Pymnt,http://opendatacommunities.org/id/county-council/staffordshire  ,
Staffordshire County Council,Think 2 Project,ORCHARD DAY NURSERY,10/12/2018,787.50,Awards Funded Childcare Places,Awards Funded Childcare Places,http://opendatacommunities.org/id/county-council/staffordshire  ,
Staffordshire County Council,Nursery Education Grant,ORCHARD DAY NURSERY,10/12/2018,3902.76,Grants Nursery Education Pymnt,Grants Nursery Education Pymnt,http://opendatacommunities.org/id/county-council/staffordshire  ,
Staffordshire County Council,Nursery Education Grant,Our Lady & St Werburgh's Cath Pri Sch,10/12/2018,17442.60,Grants Nursery Education Pymnt,Grants Nursery Education Pymnt,http://opendatacommunities.org/id/county-council/staffordshire  ,
Staffordshire County Council,Nursery Education Grant,Outwoods Primary School,10/12/2018,25047.90,Grants Nursery Education Pymnt,Grants Nursery Education Pymnt,http://opendatacommunities.org/id/county-council/staffordshire  ,
Staffordshire County Council,Independent School Fee Special,OVERLEY HALL SCHOOL LTD,10/12/2018,35559.00,Fees to Independent Schools,Fees to Independent Schools,http://opendatacommunities.org/id/county-council/staffordshire  ,
Staffordshire County Council,Think 2 Project,P GREENWAY,10/12/2018,825.00,Awards Funded Childcare Places,Awards Funded Childcare Places,http://opendatacommunities.org/id/county-council/staffordshire  ,
Staffordshire County Council,Speed Awareness,P Law,10/12/2018,2340.00,DRIVING INSTRUCTION,DRIVING INSTRUCTION,http://opendatacommunities.org/id/county-council/staffordshire  ,
Staffordshire County Council,Think 2 Project,Parkside Primary School,10/12/2018,3507.50,Awards Funded Childcare Places,Awards Funded Childcare Places,http://opendatacommunities.org/id/county-council/staffordshire  ,
Staffordshire County Council,Nursery Education Grant,Parkside Primary School,10/12/2018,10453.58,Grants Nursery Education Pymnt,Grants Nursery Education Pymnt,http://opendatacommunities.org/id/county-council/staffordshire  ,
Staffordshire County Council,Think 2 Project,PARRS PLAYHOUSE CHILDCARE LTD,10/12/2018,5062.50,Awards Funded Childcare Places,Awards Funded Childcare Places,http://opendatacommunities.org/id/county-council/staffordshire  ,
Staffordshire County Council,Nursery Education Grant,PARRS PLAYHOUSE CHILDCARE LTD,10/12/2018,8242.77,Grants Nursery Education Pymnt,Grants Nursery Education Pymnt,http://opendatacommunities.org/id/county-council/staffordshire  ,
Staffordshire County Council,Think 2 Project,PATHWAYS CHILDCARE CENTRE,10/12/2018,1875.00,Awards Funded Childcare Places,Awards Funded Childcare Places,http://opendatacommunities.org/id/county-council/staffordshire  ,
Staffordshire County Council,Nursery Education Grant,PATHWAYS CHILDCARE CENTRE,10/12/2018,2475.84,Grants Nursery Education Pymnt,Grants Nursery Education Pymnt,http://opendatacommunities.org/id/county-council/staffordshire  ,
Staffordshire County Council,Think 2 Project,Pear Tree Nursery,10/12/2018,4200.00,Awards Funded Childcare Places,Awards Funded Childcare Places,http://opendatacommunities.org/id/county-council/staffordshire  ,
Staffordshire County Council,Nursery Education Grant,Pear Tree Nursery,10/12/2018,7975.15,Grants Nursery Education Pymnt,Grants Nursery Education Pymnt,http://opendatacommunities.org/id/county-council/staffordshire  ,
Staffordshire County Council,Think 2 Project,PENNYMOOR PRE SCHOOL,10/12/2018,1820.00,Awards Funded Childcare Places,Awards Funded Childcare Places,http://opendatacommunities.org/id/county-council/staffordshire  ,
Staffordshire County Council,Nursery Education Grant,PENNYMOOR PRE SCHOOL,10/12/2018,557.96,Grants Nursery Education Pymnt,Grants Nursery Education Pymnt,http://opendatacommunities.org/id/county-council/staffordshire  ,
Staffordshire County Council,Nursery Education Grant,Picknalls First School,10/12/2018,6861.63,Grants Nursery Education Pymnt,Grants Nursery Education Pymnt,http://opendatacommunities.org/id/county-council/staffordshire  ,
Staffordshire County Council,East Staffs Invoice Led Phys D,Portland College,10/12/2018,9819.95,Supported Group Care,Supported Group Care,http://opendatacommunities.org/id/county-council/staffordshire  ,
Staffordshire County Council,Independent Sch Fees Mainstr'm,PRE SCHOOL LEARNING ALLIANCE,10/12/2018,2205.00,Fees to Independent Schools,Fees to Independent Schools,http://opendatacommunities.org/id/county-council/staffordshire  ,
Staffordshire County Council,Nursery Education Grant,Princefield First School,10/12/2018,11112.88,Grants Nursery Education Pymnt,Grants Nursery Education Pymnt,http://opendatacommunities.org/id/county-council/staffordshire  ,
Staffordshire County Council,Nursery Education Grant,Pye Green Academy,10/12/2018,5803.16,Grants Nursery Education Pymnt,Grants Nursery Education Pymnt,http://opendatacommunities.org/id/county-council/staffordshire  ,
Staffordshire County Council,Speech and Language/O Therapy,R Gudger,10/12/2018,1170.00,OTHER HIRED SERVICES,OTHER HIRED SERVICES,http://opendatacommunities.org/id/county-council/staffordshire  ,
Staffordshire County Council,Speech and Language/O Therapy,R Gudger,10/12/2018,1170.00,OTHER HIRED SERVICES,OTHER HIRED SERVICES,http://opendatacommunities.org/id/county-council/staffordshire  ,
Staffordshire County Council,Nursery Education Grant,R J Collier,10/12/2018,1650.60,Grants Nursery Education Pymnt,Grants Nursery Education Pymnt,http://opendatacommunities.org/id/county-council/staffordshire  ,
Staffordshire County Council,Nursery Education Grant,R JEFFERY,10/12/2018,935.34,Grants Nursery Education Pymnt,Grants Nursery Education Pymnt,http://opendatacommunities.org/id/county-council/staffordshire  ,
Staffordshire County Council,Speed Awareness,R JOHNSON,10/12/2018,1040.00,DRIVING INSTRUCTION,DRIVING INSTRUCTION,http://opendatacommunities.org/id/county-council/staffordshire  ,
Staffordshire County Council,Libraries Live,R Singer,10/12/2018,2500.00,other services external,other services external,http://opendatacommunities.org/id/county-council/staffordshire  ,
Staffordshire County Council,Think 2 Project,Reach for the Stars Nursery,10/12/2018,3150.00,Awards Funded Childcare Places,Awards Funded Childcare Places,http://opendatacommunities.org/id/county-council/staffordshire  ,
Staffordshire County Council,Nursery Education Grant,Reach for the Stars Nursery,10/12/2018,658.39,Grants Nursery Education Pymnt,Grants Nursery Education Pymnt,http://opendatacommunities.org/id/county-council/staffordshire  ,
Staffordshire County Council,Think 2 Project,Reach for the Stars Nursery,10/12/2018,712.50,Awards Funded Childcare Places,Awards Funded Childcare Places,http://opendatacommunities.org/id/county-council/staffordshire  ,
Staffordshire County Council,Nursery Education Grant,Reach for the Stars Nursery,10/12/2018,3296.24,Grants Nursery Education Pymnt,Grants Nursery Education Pymnt,http://opendatacommunities.org/id/county-council/staffordshire  ,
Staffordshire County Council,Think 2 Project,Reach for the Stars Nursery,10/12/2018,1417.50,Awards Funded Childcare Places,Awards Funded Childcare Places,http://opendatacommunities.org/id/county-council/staffordshire  ,
Staffordshire County Council,Nursery Education Grant,Reach for the Stars Nursery,10/12/2018,8065.31,Grants Nursery Education Pymnt,Grants Nursery Education Pymnt,http://opendatacommunities.org/id/county-council/staffordshire  ,
Staffordshire County Council,Kingsfield First Demolition,RHODAR LTD,10/12/2018,36300.00,Construction Works,Construction Works,http://opendatacommunities.org/id/county-council/staffordshire  ,
Staffordshire County Council,SCC Digital,Risual Group Ltd,10/12/2018,1920.00,PROFESSIONAL FEES,PROFESSIONAL FEES,http://opendatacommunities.org/id/county-council/staffordshire  ,
Staffordshire County Council,Nursery Education Grant,ROLLESTON PRE-SCHOOL,10/12/2018,5200.13,Grants Nursery Education Pymnt,Grants Nursery Education Pymnt,http://opendatacommunities.org/id/county-council/staffordshire  ,
Staffordshire County Council,Think 2 Project,ROOSTER'S DAY NURSERY,10/12/2018,1837.50,Awards Funded Childcare Places,Awards Funded Childcare Places,http://opendatacommunities.org/id/county-council/staffordshire  ,
Staffordshire County Council,Nursery Education Grant,ROOSTER'S DAY NURSERY,10/12/2018,1125.92,Grants Nursery Education Pymnt,Grants Nursery Education Pymnt,http://opendatacommunities.org/id/county-council/staffordshire  ,
Staffordshire County Council,Think 2 Project,Rosebuds Private Day Nursery,10/12/2018,1642.50,Awards Funded Childcare Places,Awards Funded Childcare Places,http://opendatacommunities.org/id/county-council/staffordshire  ,
Staffordshire County Council,Nursery Education Grant,Rosebuds Private Day Nursery,10/12/2018,3849.67,Grants Nursery Education Pymnt,Grants Nursery Education Pymnt,http://opendatacommunities.org/id/county-council/staffordshire  ,
Staffordshire County Council,Nursery Education Grant,Rowley Park Primary Academy,10/12/2018,7629.62,Grants Nursery Education Pymnt,Grants Nursery Education Pymnt,http://opendatacommunities.org/id/county-council/staffordshire  ,
Staffordshire County Council,Think 2 Project,S Astell,10/12/2018,1950.00,Awards Funded Childcare Places,Awards Funded Childcare Places,http://opendatacommunities.org/id/county-council/staffordshire  ,
Staffordshire County Council,Nursery Education Grant,S Harvey,10/12/2018,618.96,Grants Nursery Education Pymnt,Grants Nursery Education Pymnt,http://opendatacommunities.org/id/county-council/staffordshire  ,
Staffordshire County Council,Think 2 Project,SCALLYWAGS PRE-SCHOOL GROUP,10/12/2018,4462.50,Awards Funded Childcare Places,Awards Funded Childcare Places,http://opendatacommunities.org/id/county-council/staffordshire  ,
Staffordshire County Council,Nursery Education Grant,SCALLYWAGS PRE-SCHOOL GROUP,10/12/2018,4364.23,Grants Nursery Education Pymnt,Grants Nursery Education Pymnt,http://opendatacommunities.org/id/county-council/staffordshire  ,
Staffordshire County Council,Sth Staffs OP Team 1,SCC Sundry BACS  1 Company,10/12/2018,6701.00,RCLS Mental Disorder >65 V Dep,RCLS Mental Disorder >65 V Dep,http://opendatacommunities.org/id/county-council/staffordshire  ,
Staffordshire County Council,Nursery Education Grant,SEABRIDGE CARE CLUB,10/12/2018,943.20,Grants Nursery Education Pymnt,Grants Nursery Education Pymnt,http://opendatacommunities.org/id/county-council/staffordshire  ,
Staffordshire County Council,Nursery Education Grant,Shobnall Primary School,10/12/2018,21791.70,Grants Nursery Education Pymnt,Grants Nursery Education Pymnt,http://opendatacommunities.org/id/county-council/staffordshire  ,
Staffordshire County Council,Inter authority Recoup- Mainst,SHROPSHIRE C C,10/12/2018,48764.45,Extra District Charges Other,Extra District Charges Other,http://opendatacommunities.org/id/county-council/staffordshire  ,
Staffordshire County Council,Think 2 Project,Smiley Faces,10/12/2018,4725.00,Awards Funded Childcare Places,Awards Funded Childcare Places,http://opendatacommunities.org/id/county-council/staffordshire  ,
Staffordshire County Council,Nursery Education Grant,Smiley Faces,10/12/2018,6068.46,Grants Nursery Education Pymnt,Grants Nursery Education Pymnt,http://opendatacommunities.org/id/county-council/staffordshire  ,
Staffordshire County Council,Nursery Education Grant,SMILEY'S CRECHE,10/12/2018,20514.49,Grants Nursery Education Pymnt,Grants Nursery Education Pymnt,http://opendatacommunities.org/id/county-council/staffordshire  ,
Staffordshire County Council,Think 2 Project,SMILEY'S CRECHE,10/12/2018,4950.00,Awards Funded Childcare Places,Awards Funded Childcare Places,http://opendatacommunities.org/id/county-council/staffordshire  ,
Staffordshire County Council,Central Winter Maintenance Wor,S-O-T Mobile Link Ltd,10/12/2018,661.54,Radios,Radios,http://opendatacommunities.org/id/county-council/staffordshire  ,
Staffordshire County Council,Think 2 Project,SOUTHLANDS NURSERIES LTD,10/12/2018,750.00,Awards Funded Childcare Places,Awards Funded Childcare Places,http://opendatacommunities.org/id/county-council/staffordshire  ,
Staffordshire County Council,Nursery Education Grant,SOUTHLANDS NURSERIES LTD,10/12/2018,6395.96,Grants Nursery Education Pymnt,Grants Nursery Education Pymnt,http://opendatacommunities.org/id/county-council/staffordshire  ,
Staffordshire County Council,Client Device Rollout,Specialist Computer Centres Ltd,10/12/2018,877.33,Purchase of Hardware,Purchase of Hardware,http://opendatacommunities.org/id/county-council/staffordshire  ,
Staffordshire County Council,Think 2 Project,Springhill Academy,10/12/2018,1050.00,Awards Funded Childcare Places,Awards Funded Childcare Places,http://opendatacommunities.org/id/county-council/staffordshire  ,
Staffordshire County Council,Nursery Education Grant,Springhill Academy,10/12/2018,11475.45,Grants Nursery Education Pymnt,Grants Nursery Education Pymnt,http://opendatacommunities.org/id/county-council/staffordshire  ,
Staffordshire County Council,Nursery Education Grant,ST BENEDICT BISCOP PRIMARY SCHOOL,10/12/2018,7649.31,Grants Nursery Education Pymnt,Grants Nursery Education Pymnt,http://opendatacommunities.org/id/county-council/staffordshire  ,
Staffordshire County Council,Think 2 Project,ST GEORGES PRE SCHOOL PLAYGROUP,10/12/2018,1867.50,Awards Funded Childcare Places,Awards Funded Childcare Places,http://opendatacommunities.org/id/county-council/staffordshire  ,
Staffordshire County Council,Nursery Education Grant,ST GEORGES PRE SCHOOL PLAYGROUP,10/12/2018,8555.11,Grants Nursery Education Pymnt,Grants Nursery Education Pymnt,http://opendatacommunities.org/id/county-council/staffordshire  ,
Staffordshire County Council,Independent School Fee Nursery,ST JOHNS NURSERY-HEATH HAYES,10/12/2018,1207.50,Grants to third parties,Grants to third parties,http://opendatacommunities.org/id/county-council/staffordshire  ,
Staffordshire County Council,Nursery Education Grant,St John's Primary Academy,10/12/2018,867.30,Grants Nursery Education Pymnt,Grants Nursery Education Pymnt,http://opendatacommunities.org/id/county-council/staffordshire  ,
Staffordshire County Council,Nursery Education Grant,St John's RC Primary School,10/12/2018,2661.57,Grants Nursery Education Pymnt,Grants Nursery Education Pymnt,http://opendatacommunities.org/id/county-council/staffordshire  ,
Staffordshire County Council,Nursery Education Grant,ST MARY'S RC PRIMARY SCHOOL,10/12/2018,2008.50,Grants Nursery Education Pymnt,Grants Nursery Education Pymnt,http://opendatacommunities.org/id/county-council/staffordshire  ,
Staffordshire County Council,Nursery Education Grant,St Nicholas C of E First School,10/12/2018,57250.70,Grants Nursery Education Pymnt,Grants Nursery Education Pymnt,http://opendatacommunities.org/id/county-council/staffordshire  ,
Staffordshire County Council,Nursery Education Grant,St Patrick's RC Primary School,10/12/2018,8308.59,Grants Nursery Education Pymnt,Grants Nursery Education Pymnt,http://opendatacommunities.org/id/county-council/staffordshire  ,
Staffordshire County Council,Nursery Education Grant,St Peter's CofE (C) Primary School,10/12/2018,13055.53,Grants Nursery Education Pymnt,Grants Nursery Education Pymnt,http://opendatacommunities.org/id/county-council/staffordshire  ,
Staffordshire County Council,Think 2 Project,ST PETERS PRE SCHOOL CHILDCARE,10/12/2018,2865.00,Awards Funded Childcare Places,Awards Funded Childcare Places,http://opendatacommunities.org/id/county-council/staffordshire  ,
Staffordshire County Council,Nursery Education Grant,ST PETERS PRE SCHOOL CHILDCARE,10/12/2018,6445.66,Grants Nursery Education Pymnt,Grants Nursery Education Pymnt,http://opendatacommunities.org/id/county-council/staffordshire  ,
Staffordshire County Council,Think 2 Project,St Thomas's Day Nursery,10/12/2018,525.00,Awards Funded Childcare Places,Awards Funded Childcare Places,http://opendatacommunities.org/id/county-council/staffordshire  ,
Staffordshire County Council,Nursery Education Grant,St Thomas's Day Nursery,10/12/2018,3554.66,Grants Nursery Education Pymnt,Grants Nursery Education Pymnt,http://opendatacommunities.org/id/county-council/staffordshire  ,
Staffordshire County Council,Nursery Education Grant,St. Giles and St. George's CofE Academy,10/12/2018,9487.66,Grants Nursery Education Pymnt,Grants Nursery Education Pymnt,http://opendatacommunities.org/id/county-council/staffordshire  ,
Staffordshire County Council,Speed Awareness,Staffordshire Wildlife Trading Ltd,10/12/2018,1378.08,Premises Services,Premises Services,http://opendatacommunities.org/id/county-council/staffordshire  ,
Staffordshire County Council,Think 2 Project,STARZ,10/12/2018,1050.00,Awards Funded Childcare Places,Awards Funded Childcare Places,http://opendatacommunities.org/id/county-council/staffordshire  ,
Staffordshire County Council,Nursery Education Grant,STARZ,10/12/2018,5777.10,Grants Nursery Education Pymnt,Grants Nursery Education Pymnt,http://opendatacommunities.org/id/county-council/staffordshire  ,
Staffordshire County Council,Nursery Education Grant,Stephanie Egerton,10/12/2018,522.68,Grants Nursery Education Pymnt,Grants Nursery Education Pymnt,http://opendatacommunities.org/id/county-council/staffordshire  ,
Staffordshire County Council,Think 2 Project,STEPPING STONES,10/12/2018,2100.00,Awards Funded Childcare Places,Awards Funded Childcare Places,http://opendatacommunities.org/id/county-council/staffordshire  ,
Staffordshire County Council,Nursery Education Grant,STEPPING STONES,10/12/2018,11552.21,Grants Nursery Education Pymnt,Grants Nursery Education Pymnt,http://opendatacommunities.org/id/county-council/staffordshire  ,
Staffordshire County Council,Tamworth LD Team,Steps to Independence Limited,10/12/2018,4150.92,Supported Group Care,Supported Group Care,http://opendatacommunities.org/id/county-council/staffordshire  ,
Staffordshire County Council,NHS Campus Reprov. Phase 1,Stoke on Trent City Council,10/12/2018,41986.00,Supported Group Care,Supported Group Care,http://opendatacommunities.org/id/county-council/staffordshire  ,
Staffordshire County Council,Think 2 Project,STRAWBERRY POPPETS NURS'Y SCHOOL,10/12/2018,6825.00,Awards Funded Childcare Places,Awards Funded Childcare Places,http://opendatacommunities.org/id/county-council/staffordshire  ,
Staffordshire County Council,Nursery Education Grant,STRAWBERRY POPPETS NURS'Y SCHOOL,10/12/2018,6114.36,Grants Nursery Education Pymnt,Grants Nursery Education Pymnt,http://opendatacommunities.org/id/county-council/staffordshire  ,
Staffordshire County Council,Stafford Invoice Led Older Peo,Sunshine Care  TA Fuchsia Homecar,10/12/2018,1394.00,Practical Care,Practical Care,http://opendatacommunities.org/id/county-council/staffordshire  ,
Staffordshire County Council,Nursery Education Grant,Suzanne Mcgill,10/12/2018,990.36,Grants Nursery Education Pymnt,Grants Nursery Education Pymnt,http://opendatacommunities.org/id/county-council/staffordshire  ,
Staffordshire County Council,Think 2 Project,T Pullen,10/12/2018,1050.00,Awards Funded Childcare Places,Awards Funded Childcare Places,http://opendatacommunities.org/id/county-council/staffordshire  ,
Staffordshire County Council,Castle House (The Hub),Taybar Limited,10/12/2018,850.50,Premises Services,Premises Services,http://opendatacommunities.org/id/county-council/staffordshire  ,
Staffordshire County Council,5438 Staffs Place 1&2Tipping S,Taybar Limited,10/12/2018,1490.24,Premises Services,Premises Services,http://opendatacommunities.org/id/county-council/staffordshire  ,
Staffordshire County Council,Think 2 Project,Teddy Bears Nursery Ltd,10/12/2018,1802.50,Awards Funded Childcare Places,Awards Funded Childcare Places,http://opendatacommunities.org/id/county-council/staffordshire  ,
Staffordshire County Council,Nursery Education Grant,Teddy Bears Nursery Ltd,10/12/2018,2448.33,Grants Nursery Education Pymnt,Grants Nursery Education Pymnt,http://opendatacommunities.org/id/county-council/staffordshire  ,
Staffordshire County Council,Think 2 Project,THE ARK NURSERY,10/12/2018,4387.50,Awards Funded Childcare Places,Awards Funded Childcare Places,http://opendatacommunities.org/id/county-council/staffordshire  ,
Staffordshire County Council,Nursery Education Grant,THE ARK NURSERY,10/12/2018,9247.25,Grants Nursery Education Pymnt,Grants Nursery Education Pymnt,http://opendatacommunities.org/id/county-council/staffordshire  ,
Staffordshire County Council,ERDF Low Carbon Bus Evol Prog,TMT First Ltd,10/12/2018,7995.05,Grants to third parties,Grants to third parties,http://opendatacommunities.org/id/county-council/staffordshire  ,
Staffordshire County Council,Stafford Invoice Led Older Peo,Triband Recruit Ltd t/a Triband HomeCare,10/12/2018,567.00,Practical Care,Practical Care,http://opendatacommunities.org/id/county-council/staffordshire  ,
Staffordshire County Council,Stafford Invoice Led Older Peo,Triband Recruit Ltd t/a Triband HomeCare,10/12/2018,567.00,Practical Care,Practical Care,http://opendatacommunities.org/id/county-council/staffordshire  ,
Staffordshire County Council,Moorlands Invoice Led Phys Dis,Triband Recruit Ltd t/a Triband HomeCare,10/12/2018,567.00,Practical Care,Practical Care,http://opendatacommunities.org/id/county-council/staffordshire  ,
Staffordshire County Council,Moorlands Invoice Led Older Pe,Triband Recruit Ltd t/a Triband HomeCare,10/12/2018,630.00,Practical Care,Practical Care,http://opendatacommunities.org/id/county-council/staffordshire  ,
Staffordshire County Council,Moorlands Invoice Led Older Pe,Triband Recruit Ltd t/a Triband HomeCare,10/12/2018,567.00,Practical Care,Practical Care,http://opendatacommunities.org/id/county-council/staffordshire  ,
Staffordshire County Council,Moorlands Invoice Led Older Pe,Triband Recruit Ltd t/a Triband HomeCare,10/12/2018,882.00,Practical Care,Practical Care,http://opendatacommunities.org/id/county-council/staffordshire  ,
Staffordshire County Council,Moorlands Invoice Led Older Pe,Triband Recruit Ltd t/a Triband HomeCare,10/12/2018,630.00,Practical Care,Practical Care,http://opendatacommunities.org/id/county-council/staffordshire  ,
Staffordshire County Council,Think 2 Project,TUTBURY PRE SCHOOL,10/12/2018,682.50,Awards Funded Childcare Places,Awards Funded Childcare Places,http://opendatacommunities.org/id/county-council/staffordshire  ,
Staffordshire County Council,Nursery Education Grant,TUTBURY PRE SCHOOL,10/12/2018,11451.96,Grants Nursery Education Pymnt,Grants Nursery Education Pymnt,http://opendatacommunities.org/id/county-council/staffordshire  ,
Staffordshire County Council,Think 2 Project,TWINKLE TOTS PRE-SCHOOL,10/12/2018,7000.00,Awards Funded Childcare Places,Awards Funded Childcare Places,http://opendatacommunities.org/id/county-council/staffordshire  ,
Staffordshire County Council,Emerge Festival Lab,Unit Twelve,10/12/2018,500.00,General Grants,General Grants,http://opendatacommunities.org/id/county-council/staffordshire  ,
Staffordshire County Council,Think 2 Project,Violet Lane Nursery,10/12/2018,525.00,Awards Funded Childcare Places,Awards Funded Childcare Places,http://opendatacommunities.org/id/county-council/staffordshire  ,
Staffordshire County Council,Nursery Education Grant,Violet Lane Nursery,10/12/2018,23648.97,Grants Nursery Education Pymnt,Grants Nursery Education Pymnt,http://opendatacommunities.org/id/county-council/staffordshire  ,
Staffordshire County Council,Stafford LD Team,Voyage Care Ltd,10/12/2018,8530.52,Supported Group Care,Supported Group Care,http://opendatacommunities.org/id/county-council/staffordshire  ,
Staffordshire County Council,E Staffs LD Team,Voyage Care Ltd,10/12/2018,4584.20,Supported Group Care,Supported Group Care,http://opendatacommunities.org/id/county-council/staffordshire  ,
Staffordshire County Council,E Staffs LD Team,Voyage Care Ltd,10/12/2018,4788.36,Supported Group Care,Supported Group Care,http://opendatacommunities.org/id/county-council/staffordshire  ,
Staffordshire County Council,E Staffs LD Team,Voyage Care Ltd,10/12/2018,4789.60,Supported Group Care,Supported Group Care,http://opendatacommunities.org/id/county-council/staffordshire  ,
Staffordshire County Council,Think 2 Project,W DOUGLAS,10/12/2018,1267.50,Awards Funded Childcare Places,Awards Funded Childcare Places,http://opendatacommunities.org/id/county-council/staffordshire  ,
Staffordshire County Council,Nursery Education Grant,W DOUGLAS,10/12/2018,935.31,Grants Nursery Education Pymnt,Grants Nursery Education Pymnt,http://opendatacommunities.org/id/county-council/staffordshire  ,
Staffordshire County Council,Equipment Maintenance SET,WESSEX LIFT CO LTD,10/12/2018,3360.00,Servicing Equipment Purchase,Servicing Equipment Purchase,http://opendatacommunities.org/id/county-council/staffordshire  ,
Staffordshire County Council,Equipment Maintenance SET,WESSEX LIFT CO LTD,10/12/2018,1176.00,Servicing Equipment Purchase,Servicing Equipment Purchase,http://opendatacommunities.org/id/county-council/staffordshire  ,
Staffordshire County Council,Equipment Maintenance SET,WESSEX LIFT CO LTD,10/12/2018,576.00,Servicing Equipment Purchase,Servicing Equipment Purchase,http://opendatacommunities.org/id/county-council/staffordshire  ,
Staffordshire County Council,Equipment Maintenance SET,WESSEX LIFT CO LTD,10/12/2018,3192.00,Servicing Equipment Purchase,Servicing Equipment Purchase,http://opendatacommunities.org/id/county-council/staffordshire  ,
Staffordshire County Council,Equipment Maintenance SET,WESSEX LIFT CO LTD,10/12/2018,1200.00,Servicing Equipment Purchase,Servicing Equipment Purchase,http://opendatacommunities.org/id/county-council/staffordshire  ,
